Departmental Family,Entity,Date,Expense Type,Expense Area,Supplier ,Transaction Number,Amount
Departmental Family,Entity,Date,Account Group Desc,Level 3 Description,Supplier,Transaction Number,Amount
Department for Work and Pensions ,Corporate,07/04/2010,NETWORK,CORPORATE IT,BT SYNTEGRA,1004145,"99,844,363.1"
Department for Work and Pensions ,Jobcentre Plus,30/04/2010,PRIME CHARGES,JOBCENTRE PLUS,TELEREAL TRILLIUM,2015099298,"29,338,415.5"
Department for Work and Pensions ,Employment Programmes,12/04/2010,GRANTS IN AID TO PUBLIC CORPORATIONS,WWG CORE PROGRAMME,REMPLOY LTD,1004153,"18,000,000.0"
Department for Work and Pensions ,Corporate,16/04/2010,BANKING AND ENCASHMENT COSTS,GROUP FINANCE,POST OFFICE LTD,1004168,"8,381,167.2"
Department for Work and Pensions ,Corporate,07/04/2010,GRANTS IN AID TO EXECUTIVE NDPBs,PENSIONS CLIENT DIRECTORATE,THE PENSIONS REGULATOR,1004149,"8,023,000.0"
Department for Work and Pensions ,Corporate,20/04/2010,HOSTING,CORPORATE IT,HP ENTERPRISE SERVICES UK LTD,2014855104,"7,781,444.6"
Department for Work and Pensions ,Corporate,12/04/2010,BANKING AND ENCASHMENT COSTS,GROUP FINANCE,POST OFFICE LTD,1004152,"7,670,763.5"
Department for Work and Pensions ,Corporate,16/04/2010,DESKTOP,CORPORATE IT,HP ENTERPRISE SERVICES UK LTD,2014840272,"7,314,086.0"
Department for Work and Pensions ,Corporate,13/04/2010,HOSTING,CORPORATE IT,HP ENTERPRISE SERVICES UK LTD,2014752927,"6,302,725.8"
Department for Work and Pensions ,Corporate,29/04/2010,BANKING AND ENCASHMENT COSTS,GROUP FINANCE,POST OFFICE LTD,1004190,"6,165,294.0"
Department for Work and Pensions ,Jobcentre Plus,21/04/2010,IS/IT,TPM PROGRAMMES,COMPUTACENTER UK LTD,2014874954,"5,717,374.6"
Department for Work and Pensions ,Jobcentre Plus,30/04/2010,,JOBCENTRE PLUS,TELEREAL TRILLIUM,2015099300,"4,675,396.4"
Department for Work and Pensions ,Jobcentre Plus,22/04/2010,MEDICAL SERVICES,JOBCENTRE PLUS,ATOS ORIGIN MEDICAL SERVICES,2014933320,"4,228,908.5"
Department for Work and Pensions ,Corporate,12/04/2010,COMPUTER SERVICES,CORPORATE IT,HP ENTERPRISE SERVICES UK LTD,2014744567,"4,184,911.2"
Department for Work and Pensions ,Jobcentre Plus,22/04/2010,MEDICAL SERVICES CONTRACT,JOBCENTRE PLUS,ATOS ORIGIN MEDICAL SERVICES,2014933320,"3,591,375.8"
Department for Work and Pensions ,Corporate,23/04/2010,NETWORK,CORPORATE IT,BT SYNTEGRA,2014941554,"3,334,473.7"
Department for Work and Pensions ,Employment Programmes,09/04/2010,EP GENERIC PROVIDER PAYMENTS,WWG CORE PROGRAMME,SERCO LTD,2014739469,"3,203,210.0"
Department for Work and Pensions ,Corporate,21/04/2010,IS/IT,SHARED SERVICES ,COMPUTACENTER UK LTD,2014874954,"3,031,859.6"
Department for Work and Pensions ,Corporate,16/04/2010,FINANCIAL ASSISTANCE SCHEME,PENSIONS CLIENT DIRECTORATE,PENSION PROTECTION FUND,1004166,"2,900,000.0"
Department for Work and Pensions ,Jobcentre Plus,23/04/2010,CONTRACTED OUT OFFICE SERVICES, FINANCE,BALFOUR BEATTY WORKPLACE LTD,2014941502,"2,808,477.6"
Department for Work and Pensions ,Corporate,16/04/2010,COMPUTER SERVICES,CORPORATE IT,HP ENTERPRISE SERVICES UK LTD,2014840272,"2,767,621.0"
Department for Work and Pensions ,Corporate,20/04/2010,DESKTOP,CORPORATE IT,HP ENTERPRISE SERVICES UK LTD,2014855104,"2,586,359.3"
Department for Work and Pensions ,"Pension, Disability Carers Services",30/04/2010,PRIME CHARGES,PDCS CORE,TELEREAL TRILLIUM,2015099298,"2,465,146.5"
Department for Work and Pensions ,Employment Programmes,09/04/2010,EP GENERIC PROVIDER PAYMENTS,WWG CORE PROGRAMME,A4E LTD,2014735625,"2,447,159.0"
Department for Work and Pensions ,Employment Programmes,09/04/2010,EP GENERIC PROVIDER PAYMENTS,WWG CORE PROGRAMME,CALDER UK LTD,2014735945,"2,247,641.0"
Department for Work and Pensions ,Corporate,21/04/2010,IS/IT,MISC RFR 5,COMPUTACENTER UK LTD,2014874954,"2,014,344.0"
Department for Work and Pensions ,Corporate,07/04/2010,GRANTS IN AID TO PUBLIC CORPORATIONS,PENSIONS CLIENT DIRECTORATE,PENSION PROTECTION FUND,1004148,"2,000,000.0"
Department for Work and Pensions ,Employment Programmes,09/04/2010,EP GENERIC PROVIDER PAYMENTS,WWG CORE PROGRAMME,A4E LTD,2014735625,"1,966,362.0"
Department for Work and Pensions ,Employment Programmes,09/04/2010,EP GENERIC PROVIDER PAYMENTS,WWG CORE PROGRAMME,WORKING LINKS,2014739793,"1,948,103.0"
Department for Work and Pensions ,Corporate,29/04/2010,TOTAL SUPPLIES & SERVICES,GROUP FINANCE,UK MAIL,2015055105,"1,947,876.1"
Department for Work and Pensions ,Employment Programmes,09/04/2010,EP GENERIC PROVIDER PAYMENTS,WWG CORE PROGRAMME,MAXIMUS EMPLOYMENT UK LTD,2014738811,"1,920,797.0"
Department for Work and Pensions ,Employment Programmes,09/04/2010,EP GENERIC PROVIDER PAYMENTS,WWG CORE PROGRAMME,SKILLS TRAINING UK LIMITED,2014739493,"1,920,782.0"
Department for Work and Pensions ,Jobcentre Plus,30/04/2010,ACCOMMODATION,JOBCENTRE PLUS,TELEREAL TRILLIUM,2015099301,"1,918,301.7"
Department for Work and Pensions ,Corporate,15/04/2010,NETWORK,CORPORATE IT,BT SYNTEGRA,2014830394,"1,901,630.5"
Department for Work and Pensions ,Employment Programmes,09/04/2010,EP GENERIC PROVIDER PAYMENTS,WWG CORE PROGRAMME,FOURSTAR EMPLOYMENT & SKILLS LTD,2014737881,"1,846,222.0"
Department for Work and Pensions ,Corporate,16/04/2010,HOSTING,CORPORATE IT,HP ENTERPRISE SERVICES UK LTD,2014840272,"1,838,185.0"
Department for Work and Pensions ,Employment Programmes,09/04/2010,EP GENERIC PROVIDER PAYMENTS,WWG CORE PROGRAMME,INGEUS UK LTD,2014738097,"1,709,388.0"
Department for Work and Pensions ,Corporate,23/04/2010,COMPUTER SERVICES,CORPORATE IT,BT SYNTEGRA,2014941554,"1,690,657.0"
Department for Work and Pensions ,Employment Programmes,09/04/2010,EP GENERIC PROVIDER PAYMENTS,WWG CORE PROGRAMME,WORKING LINKS,2014739793,"1,690,218.0"
Department for Work and Pensions ,Employment Programmes,09/04/2010,EP GENERIC PROVIDER PAYMENTS,WWG CORE PROGRAMME,SEETEC BUSINESS TECHNOLOGY CENTRE LTD,2014739464,"1,678,871.0"
Department for Work and Pensions ,Employment Programmes,09/04/2010,EP GENERIC PROVIDER PAYMENTS,WWG CORE PROGRAMME,A4E LTD,2014735625,"1,667,873.0"
Department for Work and Pensions ,Employment Programmes,09/04/2010,EP GENERIC PROVIDER PAYMENTS,WWG CORE PROGRAMME,WORKING LINKS,2014739793,"1,661,769.0"
Department for Work and Pensions ,Jobcentre Plus,14/04/2010,APPS DEV,TPM PROGRAMMES,HP ENTERPRISE SERVICES UK LTD,2014784199,"1,654,476.8"
Department for Work and Pensions ,Corporate,19/04/2010,IS/IT,CORPORATE IT,HP ENTERPRISE SERVICES UK LTD,2014846648,"1,653,429.3"
Department for Work and Pensions ,Corporate,16/04/2010,OTHER BANKING & PO COSTS,GROUP FINANCE,ALLIANCE & LEICESTER COMMERCIAL BANK PLC,1004156,"1,613,896.5"
Department for Work and Pensions ,Employment Programmes,09/04/2010,EP GENERIC PROVIDER PAYMENTS,WWG CORE PROGRAMME,PERTEMPS,2014739068,"1,613,304.0"
Department for Work and Pensions ,Employment Programmes,09/04/2010,EP GENERIC PROVIDER PAYMENTS,WWG CORE PROGRAMME,INGEUS UK LTD,2014738097,"1,610,070.0"
Department for Work and Pensions ,Corporate,26/04/2010,COMPUTER SERVICES,CORPORATE IT,FUJITSU UK & I,2014949742,"1,549,843.0"
Department for Work and Pensions ,Employment Programmes,09/04/2010,EP GENERIC PROVIDER PAYMENTS,WWG CORE PROGRAMME,REMPLOY LTD,2014739235,"1,529,042.0"
Department for Work and Pensions ,Employment Programmes,09/04/2010,EP GENERIC PROVIDER PAYMENTS,WWG CORE PROGRAMME,THE WISE GROUP,2014739648,"1,505,785.0"
Department for Work and Pensions ,Employment Programmes,09/04/2010,EP GENERIC PROVIDER PAYMENTS,WWG CORE PROGRAMME,A4E LTD,2014735625,"1,499,559.0"
Department for Work and Pensions ,Employment Programmes,09/04/2010,EP GENERIC PROVIDER PAYMENTS,WWG CORE PROGRAMME,A4E LTD,2014735625,"1,483,903.0"
Department for Work and Pensions ,Employment Programmes,09/04/2010,EP GENERIC PROVIDER PAYMENTS,WWG CORE PROGRAMME,SERCO LTD,2014739469,"1,482,611.0"
Department for Work and Pensions ,Employment Programmes,09/04/2010,EP GENERIC PROVIDER PAYMENTS,WWG CORE PROGRAMME,SERCO LTD,2014739469,"1,459,246.0"
Department for Work and Pensions ,Corporate,16/04/2010,CONTRACTED OUT OFFICE SERVICES,GROUP FINANCE,XEROX UK LIMITED 3W,2014842746,"1,431,858.0"
Department for Work and Pensions ,Corporate,22/04/2010,SIAM,CORPORATE IT,HP ENTERPRISE SERVICES UK LTD,2014935691,"1,423,421.8"
Department for Work and Pensions ,Employment Programmes,14/04/2010,YOUNG PERSONS GUARANTEE (YPG) AND FUTURE JOBS FUND (FJF),WWG CORE PROGRAMME,CSV,2014772334,"1,420,900.0"
Department for Work and Pensions ,Employment Programmes,09/04/2010,EP GENERIC PROVIDER PAYMENTS,WWG CORE PROGRAMME,TNG LTD,2014739661,"1,418,278.0"
Department for Work and Pensions ,Corporate,20/04/2010,COMPUTER SERVICES,CORPORATE IT,BT SYNTEGRA,2014851526,"1,407,859.8"
Department for Work and Pensions ,Corporate,13/04/2010,TOTAL SUPPLIES & SERVICES,GROUP FINANCE,ROYAL MAIL GROUP PLC,2014757346,"1,390,411.3"
Department for Work and Pensions ,Corporate,12/04/2010,OTHER GOODS AND SERVICES,WWG TOP LEVEL,VALUATION OFFICE AGENCY,1004155,"1,380,000.0"
Department for Work and Pensions ,Corporate,19/04/2010,NETWORK,CHANGE MANAGEMENT DIRECTORATE,BT SYNTEGRA,2014844602,"1,361,402.4"
Department for Work and Pensions ,Corporate,13/04/2010,POSTAGE,GROUP FINANCE,TNT UK LTD,2014758839,"1,343,232.0"
Department for Work and Pensions ,"Pension, Disability Carers Services",28/04/2010,MISC CAPITAL,PDCS CHANGE ,ACCENTURE,2014972717,"1,305,054.9"
Department for Work and Pensions ,Corporate,16/04/2010,POSTAGE,GROUP FINANCE,TNT UK LTD,2014842572,"1,285,493.3"
Department for Work and Pensions ,Corporate,15/04/2010,COMPUTER SERVICES,CORPORATE IT,BT SYNTEGRA,2014830394,"1,279,010.4"
Department for Work and Pensions ,"Pension, Disability Carers Services",28/04/2010,NON PRIME CHARGES,PDCS CORE,NORTH TYNESIDE COUNCIL,2015017528,"1,268,081.4"
Department for Work and Pensions ,Employment Programmes,12/04/2010,EP GENERIC PROVIDER PAYMENTS,WWG CORE PROGRAMME,A4E LTD,2014741958,"1,260,924.8"
Department for Work and Pensions ,Employment Programmes,08/04/2010,NDDP,WWG CORE PROGRAMME,SHAW TRUST LTD,2014732749,"1,258,809.7"
Department for Work and Pensions ,Corporate,14/04/2010,APPS DEV,GROUP FINANCE,HP ENTERPRISE SERVICES UK LTD,2014784199,"1,168,913.2"
Department for Work and Pensions ,Corporate,30/04/2010,PRIME CHARGES,GROUP FINANCE,TELEREAL TRILLIUM,2015099298,"1,135,601.0"
Department for Work and Pensions ,Employment Programmes,09/04/2010,EP GENERIC PROVIDER PAYMENTS,WWG CORE PROGRAMME,WORKING LINKS,2014739793,"1,095,911.0"
Department for Work and Pensions ,Jobcentre Plus,07/04/2010,ACCOMMODATION,TPM PROGRAMMES,TRILLIUM PRIME LTD,2014722092,"1,073,235.6"
Department for Work and Pensions ,Housing Benefits,14/04/2010,HOUSING BENEFIT ADMIN,HOUSING BENEFIT,BIRMINGHAM CITY COUNCIL,2014827267,"1,067,809.0"
Department for Work and Pensions ,Employment Programmes,09/04/2010,EP GENERIC PROVIDER PAYMENTS,WWG CORE PROGRAMME,DUDLEY MBC FUTURE SKILLS,2014737756,"1,067,262.0"
Department for Work and Pensions ,Jobcentre Plus,30/04/2010,PRIME CHARGES,JOBCENTRE PLUS,TELEREAL TRILLIUM,2015099298,"1,059,857.2"
Department for Work and Pensions ,Corporate,20/04/2010,COMPUTER SERVICES,CORPORATE IT,HP ENTERPRISE SERVICES UK LTD,2014855104,"1,027,756.4"
Department for Work and Pensions ,Employment Programmes,13/04/2010,WORKSTEP,WWG CORE PROGRAMME,SHAW TRUST LTD,2014758323,"1,000,000.0"
Department for Work and Pensions ,Corporate,29/04/2010,COMPUTER SERVICES,CORPORATE IT,CABLE & WIRELESS PLC,2015041959,"931,496.0"
Department for Work and Pensions ,Employment Programmes,12/04/2010,YOUNG PERSONS GUARANTEE (YPG) AND FUTURE JOBS FUND (FJF),WWG CORE PROGRAMME,GROUNDWORK UK,2014744475,"869,100.0"
Department for Work and Pensions ,Housing Benefits,14/04/2010,HOUSING BENEFIT ADMIN,HOUSING BENEFIT,CITY OF GLASGOW,2014827315,"867,338.0"
Department for Work and Pensions ,Jobcentre Plus,28/04/2010,MISCELLANEOUS EXPENDITURE,JOBCENTRE PLUS,CAPITA BUSINESS SERVICES LTD,2014979275,"855,436.0"
Department for Work and Pensions ,Corporate,16/04/2010,GRANTS IN AID TO EXECUTIVE NDPBs,PENSIONS CLIENT DIRECTORATE,THE PENSIONS OMBUDSMAN,1004169,"818,000.0"
Department for Work and Pensions ,Employment Programmes,08/04/2010,YOUNG PERSONS GUARANTEE (YPG) AND FUTURE JOBS FUND (FJF),WWG CORE PROGRAMME,3SC,2014728151,"804,750.0"
Department for Work and Pensions ,Employment Programmes,29/04/2010,YOUNG PERSONS GUARANTEE (YPG) AND FUTURE JOBS FUND (FJF),WWG CORE PROGRAMME,KNOWSLEY METROPOLITAN BOROUGH COUNCIL,2015048458,"780,067.0"
Department for Work and Pensions ,Corporate,30/04/2010,PRIME CHARGES,SHARED SERVICES ,TELEREAL TRILLIUM,2015099298,"751,528.9"
Department for Work and Pensions ,Corporate,26/04/2010,NETWORK,CORPORATE IT,BT SYNTEGRA,2014947485,"739,733.5"
Department for Work and Pensions ,Corporate,19/04/2010,DESKTOP,CORPORATE IT,HP ENTERPRISE SERVICES UK LTD,2014846648,"732,227.5"
Department for Work and Pensions ,Corporate,20/04/2010,COMPUTER SERVICES,CORPORATE IT,HP ENTERPRISE SERVICES UK LTD,2014855104,"724,511.0"
Department for Work and Pensions ,"Pension, Disability Carers Services",29/04/2010,CONTRACTED OUT OFFICE SERVICES,PDCS CORE,BALFOUR BEATTY WORKPLACE LTD,2015058475,"721,088.9"
Department for Work and Pensions ,Corporate,15/04/2010,COMPUTER SERVICES,CORPORATE IT,BT SYNTEGRA,2014830394,"714,681.6"
Department for Work and Pensions ,Employment Programmes,22/04/2010,EMPLOYMENT ZONES,WWG CORE PROGRAMME,REED IN PARTNERSHIP HACKNEY LTD,2014937811,"705,602.0"
Department for Work and Pensions ,Jobcentre Plus,16/04/2010,COMPUTER SERVICES,ISD,ACCENTURE UK LTD,2014837993,"685,718.0"
Department for Work and Pensions ,Jobcentre Plus,15/04/2010,ACCOMMODATION,JOBCENTRE PLUS,TELEREAL TRILLIUM,2014833482,"677,444.5"
Department for Work and Pensions ,Corporate,30/04/2010,PRIME CHARGES,GROUP FINANCE,TELEREAL TRILLIUM,2015099298,"661,551.8"
Department for Work and Pensions ,Corporate,07/04/2010,GRANTS IN AID TO PUBLIC CORPORATIONS,PENSIONS CLIENT DIRECTORATE,PENSION PROTECTION FUND,1004148,"640,000.0"
Department for Work and Pensions ,Corporate,26/04/2010,COMPUTER SERVICES,CORPORATE IT,ACCENTURE,2014947291,"613,622.9"
Department for Work and Pensions ,Housing Benefits,14/04/2010,HOUSING BENEFIT ADMIN,HOUSING BENEFIT,LIVERPOOL CITY COUNCIL,2014827416,"608,982.0"
Department for Work and Pensions ,Corporate,22/04/2010,COMPUTER SERVICES,CHANGE MANAGEMENT DIRECTORATE,ACCENTURE,2014933220,"587,046.3"
Department for Work and Pensions ,Corporate,23/04/2010,COMPUTER SERVICES,SHARED SERVICES ,FUJITSU SERVICES,2014943199,"578,748.0"
Department for Work and Pensions ,Corporate,20/04/2010,AMS,CORPORATE IT,HP ENTERPRISE SERVICES UK LTD,2014855104,"576,674.9"
Department for Work and Pensions ,Corporate,12/04/2010,COMPUTER SERVICES,CORPORATE IT,HP ENTERPRISE SERVICES UK LTD,2014744567,"560,489.0"
Department for Work and Pensions ,Employment Programmes,08/04/2010,YOUNG PERSONS GUARANTEE (YPG) AND FUTURE JOBS FUND (FJF),WWG CORE PROGRAMME,GROUNDWORK UK,2014730588,"553,350.0"
Department for Work and Pensions ,Corporate,16/04/2010,APPS DEV,CHANGE MANAGEMENT DIRECTORATE,ACCENTURE UK LTD,2014837993,"549,198.9"
Department for Work and Pensions ,Housing Benefits,14/04/2010,HOUSING BENEFIT ADMIN,HOUSING BENEFIT,LEEDS CITY COUNCIL,2014827411,"547,795.0"
Department for Work and Pensions ,Employment Programmes,28/04/2010,NDDP,WWG CORE PROGRAMME,ACTION FOR EMPLOYMENT,2014972724,"544,880.7"
Department for Work and Pensions ,Housing Benefits,14/04/2010,HOUSING BENEFIT ADMIN,HOUSING BENEFIT,MANCHESTER CITY COUNCIL,2014827449,"540,488.0"
Department for Work and Pensions ,Employment Programmes,22/04/2010,EMPLOYMENT ZONES,WWG CORE PROGRAMME,REED IN PARTNERSHIP HACKNEY LTD,2014937811,"536,582.0"
Department for Work and Pensions ,Jobcentre Plus,01/04/2010,JOBCENTRE PLUS PATHWAYS TO WORK,JOBCENTRE PLUS,WIRRAL PCT,2014650056,"519,680.0"
Department for Work and Pensions ,Employment Programmes,19/04/2010,OTHER CURRENT,WWG CORE PROGRAMME,OFSTED,2014847935,"517,566.0"
Department for Work and Pensions ,Employment Programmes,21/04/2010,EMPLOYMENT ZONES,WWG CORE PROGRAMME,REED IN PARTNERSHIP HACKNEY LTD,2014917097,"501,820.0"
Department for Work and Pensions ,Jobcentre Plus,07/04/2010,TOTAL IT & EQUIPMENT COSTS,TPM PROGRAMMES,ATOS ORIGIN IT SERVICES UK LTD,2014664042,"500,000.0"
Department for Work and Pensions ,Corporate,30/04/2010,PRIME CHARGES,GROUP FINANCE,TELEREAL TRILLIUM,2015099298,"489,720.4"
Department for Work and Pensions ,Jobcentre Plus,12/04/2010,TEMPORARY (TEMP) STAFF COSTS,JOBCENTRE PLUS,HM LAND REGISTRY,2014744562,"485,428.5"
Department for Work and Pensions ,Employment Programmes,13/04/2010,YOUNG PERSONS GUARANTEE (YPG) AND FUTURE JOBS FUND (FJF),WWG CORE PROGRAMME,KIRKLEES COUNCIL,2014754503,"479,700.0"
Department for Work and Pensions ,Corporate,12/04/2010,COMPUTER SERVICES,CORPORATE IT,HP ENTERPRISE SERVICES UK LTD,2014744567,"479,206.5"
Department for Work and Pensions ,Employment Programmes,12/04/2010,EP GENERIC PROVIDER PAYMENTS,WWG CORE PROGRAMME,STANDGUIDE LTD,2014746730,"478,984.3"
Department for Work and Pensions ,Corporate,27/04/2010,IS/IT,CORPORATE IT,COMPUTACENTER UK LTD,2014955795,"467,051.4"
Department for Work and Pensions ,"Pension, Disability Carers Services",09/04/2010,PUBLICITY,PDCS CORE,COI CENTRAL OFFICE OF INFORMATION,2014736022,"462,984.2"
Department for Work and Pensions ,Corporate,29/04/2010,MARKETING,MISC RFR 5,COI CENTRAL OFFICE OF INFO,2015042080,"462,939.0"
Department for Work and Pensions ,Corporate,26/04/2010,BANK COMMISSIONS,GROUP FINANCE,VOCALINK,2014952297,"460,000.0"
Department for Work and Pensions ,Employment Programmes,09/04/2010,YOUNG PERSONS GUARANTEE (YPG) AND FUTURE JOBS FUND (FJF),WWG CORE PROGRAMME,KNOWSLEY METROPOLITAN BOROUGH COUNCIL,2014738468,"458,959.9"
Department for Work and Pensions ,Corporate,19/04/2010,APPS DEV,CHANGE MANAGEMENT DIRECTORATE,HP ENTERPRISE SERVICES UK LTD,2014846648,"457,332.1"
Department for Work and Pensions ,Housing Benefits,14/04/2010,HOUSING BENEFIT ADMIN,HOUSING BENEFIT,DURHAM COUNCIL,2014827344,"456,042.0"
Department for Work and Pensions ,Housing Benefits,14/04/2010,HOUSING BENEFIT ADMIN,HOUSING BENEFIT,BRADFORD METROPOLITAN BOROUGH COUNCIL,2014827280,"454,773.0"
Department for Work and Pensions ,Corporate,21/04/2010,NETWORK,CORPORATE IT,BT SYNTEGRA,2014870017,"454,505.7"
Department for Work and Pensions ,Employment Programmes,28/04/2010,WORKSTEP,WWG CORE PROGRAMME,SHAW TRUST LTD,2015030505,"452,332.2"
Department for Work and Pensions ,Employment Programmes,12/04/2010,YOUNG PERSONS GUARANTEE (YPG) AND FUTURE JOBS FUND (FJF),WWG CORE PROGRAMME,MERTHYR TYDFIL COUNTY BOROUGH COUNCIL,2014747238,"451,100.0"
Department for Work and Pensions ,Employment Programmes,22/04/2010,EMPLOYMENT ZONES,WWG CORE PROGRAMME,INGEUS UK LTD,2014935745,"450,202.0"
Department for Work and Pensions ,Corporate,01/04/2010,MANAGEMENT CONSULTANCY,GROUP FINANCE,KPMG LLP,2014645972,"444,134.0"
Department for Work and Pensions ,Corporate,14/04/2010,APPS DEV,WWG TOP LEVEL,HP ENTERPRISE SERVICES UK LTD,2014784199,"439,611.8"
Department for Work and Pensions ,Jobcentre Plus,12/04/2010,ACCOMMODATION,JOBCENTRE PLUS,TELEREAL TRILLIUM,2014745374,"433,581.1"
Department for Work and Pensions ,Employment Programmes,21/04/2010,EMPLOYMENT ZONES,WWG CORE PROGRAMME,WORKING LINKS,2014929643,"419,544.0"
Department for Work and Pensions ,Corporate,07/04/2010,COMPUTER SERVICES,CHANGE MANAGEMENT DIRECTORATE,ATOS ORIGIN IT SERVICES UK LTD,2014664044,"419,101.5"
Department for Work and Pensions ,Jobcentre Plus,26/04/2010,ACCOMMODATION,JOBCENTRE PLUS,TELEREAL TRILLIUM,2014950766,"416,671.0"
Department for Work and Pensions ,Employment Programmes,06/04/2010,EP GENERIC PROVIDER PAYMENTS,WWG CORE PROGRAMME,REED IN PARTNERSHIP,2014655902,"416,415.9"
Department for Work and Pensions ,Employment Programmes,12/04/2010,YOUNG PERSONS GUARANTEE (YPG) AND FUTURE JOBS FUND (FJF),WWG CORE PROGRAMME,EAST AYRSHIRE COUNCIL,2014744250,"414,700.0"
Department for Work and Pensions ,Corporate,14/04/2010,CAPITAL GRANTS,GROUP FINANCE,EAST LANCS MONEYLINE,2014779667,"411,333.0"
Department for Work and Pensions ,"Pension, Disability Carers Services",30/04/2010,,PDCS CORE,TELEREAL TRILLIUM,2015099300,"411,326.5"
Department for Work and Pensions ,Corporate,01/04/2010,COMPUTER SERVICES,CORPORATE IT,ACCENTURE,2014640865,"409,879.9"
Department for Work and Pensions ,Corporate,14/04/2010,COMPUTER SERVICES,MISC RFR 5,HP ENTERPRISE SERVICES UK LTD,2014784199,"405,943.1"
Department for Work and Pensions ,Employment Programmes,22/04/2010,EMPLOYMENT ZONES,WWG CORE PROGRAMME,WORKING LINKS,2014938767,"399,512.0"
Department for Work and Pensions ,"Pension, Disability Carers Services",16/04/2010,COMPUTER SERVICES,PDCS CORE,HM Revenue & Customs,2014840259,"396,660.2"
Department for Work and Pensions ,Corporate,26/04/2010,CAPITAL GRANTS,GROUP FINANCE,SOUTH YORKSHIRE CREDIT UNION,2014952021,"396,351.0"
Department for Work and Pensions ,Housing Benefits,14/04/2010,HOUSING BENEFIT ADMIN,HOUSING BENEFIT,LONDON BOROUGH OF LAMBETH,2014827434,"395,891.0"
Department for Work and Pensions ,Housing Benefits,14/04/2010,HOUSING BENEFIT ADMIN,HOUSING BENEFIT,SHEFFIELD CITY COUNCIL,2014827529,"392,920.0"
Department for Work and Pensions ,Jobcentre Plus,14/04/2010,COMPUTER SERVICES,TPM PROGRAMMES,ACCENTURE UK LTD,2014765659,"392,614.9"
Department for Work and Pensions ,Jobcentre Plus,28/04/2010,COMPUTER SERVICES,TPM PROGRAMMES,ACCENTURE UK LTD,2014972719,"392,283.7"
Department for Work and Pensions ,Housing Benefits,14/04/2010,HOUSING BENEFIT ADMIN,HOUSING BENEFIT,LONDON BOROUGH OF TOWER HAMLETS,2014827442,"388,877.0"
Department for Work and Pensions ,Housing Benefits,14/04/2010,HOUSING BENEFIT ADMIN,HOUSING BENEFIT,BRISTOL CITY COUNCIL,2014827286,"387,917.0"
Department for Work and Pensions ,Housing Benefits,14/04/2010,HOUSING BENEFIT ADMIN,HOUSING BENEFIT,HACKNEY LBC,2014827383,"386,918.0"
Department for Work and Pensions ,Housing Benefits,14/04/2010,HOUSING BENEFIT ADMIN,HOUSING BENEFIT,CORNWALL COUNCIL,2014827324,"381,859.0"
Department for Work and Pensions ,Employment Programmes,21/04/2010,EMPLOYMENT ZONES,WWG CORE PROGRAMME,REED IN PARTNERSHIP HACKNEY LTD,2014917097,"377,260.0"
Department for Work and Pensions ,Corporate,30/04/2010,PRIME CHARGES,GROUP FINANCE,TELEREAL TRILLIUM,2015099298,"376,421.9"
Department for Work and Pensions ,"Pension, Disability Carers Services",20/04/2010,APPS DEV,PDCS CHANGE ,HP ENTERPRISE SERVICES UK LTD,2014855104,"376,116.7"
Department for Work and Pensions ,Corporate,26/04/2010,EMPLOYMENT ZONES,GROUP FINANCE,SOUTH YORKSHIRE CREDIT UNION,2014952021,"375,237.0"
Department for Work and Pensions ,Housing Benefits,14/04/2010,HOUSING BENEFIT ADMIN,HOUSING BENEFIT,LONDON BOROUGH OF LEWISHAM,2014827435,"367,564.0"
Department for Work and Pensions ,Corporate,14/04/2010,NETWORK,CHANGE MANAGEMENT DIRECTORATE,BT SYNTEGRA,2014767397,"366,115.3"
Department for Work and Pensions ,Corporate,26/04/2010,MANAGEMENT CONSULTANCY,GROUP FINANCE,PRICEWATERHOUSE COOPERS LLP,2014951481,"363,727.5"
Department for Work and Pensions ,Jobcentre Plus,23/04/2010,PROFESSIONAL FEES,HUMAN RESOURCES,FIELD FISHER WATERHOUSE LLP,2014943185,"361,654.0"
Department for Work and Pensions ,Employment Programmes,12/04/2010,EP GENERIC PROVIDER PAYMENTS,WWG CORE PROGRAMME,ESG HOLDINGS LTD,2014744291,"361,132.3"
Department for Work and Pensions ,Employment Programmes,12/04/2010,EP GENERIC PROVIDER PAYMENTS,WWG CORE PROGRAMME,PINNACLE PEOPLE,2014746053,"359,546.3"
Department for Work and Pensions ,Employment Programmes,19/04/2010,JSP ESF DEL P COSTS,WWG CORE PROGRAMME,INGEUS UK LTD,2014846696,"359,006.0"
Department for Work and Pensions ,Housing Benefits,14/04/2010,HOUSING BENEFIT ADMIN,HOUSING BENEFIT,LONDON BOROUGH OF SOUTHWARK,2014827440,"357,131.0"
Department for Work and Pensions ,Corporate,28/04/2010,IS/IT,CHANGE MANAGEMENT DIRECTORATE,COMPUTACENTER UK LTD,2014979618,"355,693.7"
Department for Work and Pensions ,Housing Benefits,14/04/2010,HOUSING BENEFIT ADMIN,HOUSING BENEFIT,LONDON BOROUGH OF NEWHAM,2014827437,"354,305.0"
Department for Work and Pensions ,Housing Benefits,16/04/2010,HOUSING BENEFIT ADMIN,HOUSING BENEFIT,EXPERIAN LTD,2014839950,"352,500.0"
Department for Work and Pensions ,Housing Benefits,14/04/2010,HOUSING BENEFIT ADMIN,HOUSING BENEFIT,EDINBURGH DISTRICT COUNCIL,2014827361,"349,774.0"
Department for Work and Pensions ,Employment Programmes,12/04/2010,YOUNG PERSONS GUARANTEE (YPG) AND FUTURE JOBS FUND (FJF),WWG CORE PROGRAMME,DEVON COUNTY COUNCIL,2014742685,"347,100.0"
Department for Work and Pensions ,Employment Programmes,12/04/2010,YOUNG PERSONS GUARANTEE (YPG) AND FUTURE JOBS FUND (FJF),WWG CORE PROGRAMME,NEWPORT CITY COUNCIL,2014747239,"345,800.0"
Department for Work and Pensions ,Employment Programmes,07/04/2010,NDDP,WWG CORE PROGRAMME,SHAW TRUST LTD,2014718918,"345,246.7"
Department for Work and Pensions ,Employment Programmes,12/04/2010,EP GENERIC PROVIDER PAYMENTS,WWG CORE PROGRAMME,A4E LTD,2014741958,"344,525.0"
Department for Work and Pensions ,Corporate,21/04/2010,PROFESSIONAL FEES,WWG TOP LEVEL,DEPARTMENT OF HEALTH,2014879153,"343,573.2"
Department for Work and Pensions ,Corporate,14/04/2010,CAPITAL GRANTS,GROUP FINANCE,CAPITAL CREDIT UNION LTD,2014771965,"340,980.0"
Department for Work and Pensions ,Jobcentre Plus,14/04/2010,APPS DEV,ISD,HP ENTERPRISE SERVICES UK LTD,2014784199,"340,173.4"
Department for Work and Pensions ,Employment Programmes,12/04/2010,EP GENERIC PROVIDER PAYMENTS,WWG CORE PROGRAMME,INGEUS UK LTD,2014744626,"339,925.0"
Department for Work and Pensions ,Employment Programmes,12/04/2010,EP GENERIC PROVIDER PAYMENTS,WWG CORE PROGRAMME,PINNACLE PEOPLE,2014746053,"338,590.3"
Department for Work and Pensions ,Housing Benefits,14/04/2010,HOUSING BENEFIT ADMIN,HOUSING BENEFIT,LONDON BOROUGH OF BRENT,2014827420,"335,730.0"
Department for Work and Pensions ,Housing Benefits,14/04/2010,HOUSING BENEFIT ADMIN,HOUSING BENEFIT,LEICESTER CITY COUNCIL,2014827412,"333,774.0"
Department for Work and Pensions ,Employment Programmes,21/04/2010,EMPLOYMENT ZONES,WWG CORE PROGRAMME,TNG WORKZONE LTD,2014927843,"333,772.0"
Department for Work and Pensions ,Corporate,21/04/2010,IS/IT,CORPORATE IT,COMPUTACENTER UK LTD,2014874954,"332,760.0"
Department for Work and Pensions ,Employment Programmes,14/04/2010,YOUNG PERSONS GUARANTEE (YPG) AND FUTURE JOBS FUND (FJF),WWG CORE PROGRAMME,MERTHYR TYDFIL COUNTY BOROUGH COUNCIL,2014829511,"332,550.0"
Department for Work and Pensions ,Corporate,16/04/2010,COMPUTER SERVICES,CHANGE MANAGEMENT DIRECTORATE,ACCENTURE UK LTD,2014837993,"327,683.8"
Department for Work and Pensions ,Housing Benefits,14/04/2010,HOUSING BENEFIT ADMIN,HOUSING BENEFIT,KIRKLEES METROPOLITAN BOROUGH COUNCIL,2014827408,"327,532.0"
Department for Work and Pensions ,Housing Benefits,14/04/2010,HOUSING BENEFIT ADMIN,HOUSING BENEFIT,LONDON BOROUGH OF EALING,2014827423,"322,603.0"
Department for Work and Pensions ,Employment Programmes,12/04/2010,YOUNG PERSONS GUARANTEE (YPG) AND FUTURE JOBS FUND (FJF),WWG CORE PROGRAMME,PINNACLE PEOPLE ENTERPRISES CIC,2014746054,"322,500.0"
Department for Work and Pensions ,Employment Programmes,09/04/2010,EMPLOYMENT ZONES,WWG CORE PROGRAMME,PERTEMPS,2014739067,"321,126.0"
Department for Work and Pensions ,Corporate,12/04/2010,COMPUTER SERVICES,SHARED SERVICES ,FUJITSU SERVICES,2014744351,"320,317.4"
Department for Work and Pensions ,Housing Benefits,14/04/2010,HOUSING BENEFIT ADMIN,HOUSING BENEFIT,SANDWELL BOROUGH COUNCIL,2014827522,"320,247.0"
Department for Work and Pensions ,Corporate,06/04/2010,TEMPORARY (TEMP) STAFF COSTS,CORPORATE IT,CAPITA RESOURCING LIMITED,2014653539,"319,304.6"
Department for Work and Pensions ,Corporate,14/04/2010,PUBLICITY,MISC RFR 5,COI CENTRAL OFFICE OF INFORMATION,2014772280,"315,003.5"
Department for Work and Pensions ,Corporate,12/04/2010,SIAM,CORPORATE IT,HP ENTERPRISE SERVICES UK LTD,2014744567,"313,949.2"
Department for Work and Pensions ,Employment Programmes,21/04/2010,EMPLOYMENT ZONES,WWG CORE PROGRAMME,THE WISE GROUP,2014927744,"312,652.0"
Department for Work and Pensions ,Housing Benefits,14/04/2010,HOUSING BENEFIT ADMIN,HOUSING BENEFIT,LONDON BOROUGH OF ISLINGTON,2014827432,"311,891.0"
Department for Work and Pensions ,Housing Benefits,14/04/2010,HOUSING BENEFIT ADMIN,HOUSING BENEFIT,SUNDERLAND CITY COUNCIL,2014827568,"306,805.0"
Department for Work and Pensions ,Corporate,23/04/2010,EMPLOYMENT ZONES,GROUP FINANCE,THE FIVE LAMPS ORGANISATION,2014945224,"306,592.8"
Department for Work and Pensions ,Employment Programmes,12/04/2010,EP GENERIC PROVIDER PAYMENTS,WWG CORE PROGRAMME,PERTEMPS,2014746041,"306,065.3"
Department for Work and Pensions ,Jobcentre Plus,13/04/2010,MANAGEMENT CONSULTANCY,HUMAN RESOURCES,MANPOWER UK LTD,2014755840,"305,598.7"
Department for Work and Pensions ,Housing Benefits,14/04/2010,HOUSING BENEFIT ADMIN,HOUSING BENEFIT,NOTTINGHAM CITY COUNCIL,2014827486,"304,683.0"
Department for Work and Pensions ,Employment Programmes,23/04/2010,YOUNG PERSONS GUARANTEE (YPG) AND FUTURE JOBS FUND (FJF),WWG CORE PROGRAMME,SCOTTISH COUNCIL FOR VOLUNTARY ORGANISATIONS,2014945017,"303,600.0"
Department for Work and Pensions ,Employment Programmes,12/04/2010,EP GENERIC PROVIDER PAYMENTS,WWG CORE PROGRAMME,A4E LTD,2014741958,"302,822.5"
Department for Work and Pensions ,Housing Benefits,14/04/2010,HOUSING BENEFIT ADMIN,HOUSING BENEFIT,LONDON BOROUGH OF CAMDEN,2014827422,"301,988.0"
Department for Work and Pensions ,Employment Programmes,12/04/2010,EP GENERIC PROVIDER PAYMENTS,WWG CORE PROGRAMME,A4E LTD,2014741958,"300,420.0"
Department for Work and Pensions ,Housing Benefits,14/04/2010,HOUSING BENEFIT ADMIN,HOUSING BENEFIT,NORTH LANARKSHIRE COUNCIL,2014827476,"300,013.0"
Department for Work and Pensions ,Housing Benefits,14/04/2010,HOUSING BENEFIT ADMIN,HOUSING BENEFIT,LONDON BOROUGH OF HARINGEY,2014827427,"297,439.0"
Department for Work and Pensions ,Housing Benefits,14/04/2010,HOUSING BENEFIT ADMIN,HOUSING BENEFIT,CROYDON PEO%,2014827331,"297,249.0"
Department for Work and Pensions ,Housing Benefits,14/04/2010,HOUSING BENEFIT ADMIN,HOUSING BENEFIT,BRIGHTON & HOVE COUNCIL,2014827285,"296,963.0"
Department for Work and Pensions ,Housing Benefits,14/04/2010,HOUSING BENEFIT ADMIN,HOUSING BENEFIT,CARDIFF CITY COUNCIL,2014827298,"295,577.0"
Department for Work and Pensions ,Corporate,14/04/2010,CAPITAL GRANTS,GROUP FINANCE,MANCHESTER CREDIT UNION,2014806213,"295,120.0"
Department for Work and Pensions ,Housing Benefits,14/04/2010,HOUSING BENEFIT ADMIN,HOUSING BENEFIT,KINGSTON UPON HULL CITY COUNCIL,2014827407,"292,996.0"
Department for Work and Pensions ,Housing Benefits,14/04/2010,HOUSING BENEFIT ADMIN,HOUSING BENEFIT,WALSALL BOROUGH COUNCIL,2014827595,"292,792.0"
Department for Work and Pensions ,Employment Programmes,12/04/2010,YOUNG PERSONS GUARANTEE (YPG) AND FUTURE JOBS FUND (FJF),WWG CORE PROGRAMME,CITY & COUNTY OF SWANSEA,2014742394,"292,500.0"
Department for Work and Pensions ,Employment Programmes,20/04/2010,EMPLOYMENT ZONES,WWG CORE PROGRAMME,PELCOMBE LTD,2014859116,"291,872.0"
Department for Work and Pensions ,Housing Benefits,14/04/2010,HOUSING BENEFIT ADMIN,HOUSING BENEFIT,LONDON BOROUGH OF ENFIELD,2014827424,"291,627.0"
Department for Work and Pensions ,Housing Benefits,14/04/2010,HOUSING BENEFIT ADMIN,HOUSING BENEFIT,WAKEFIELD METROPOLITAN DISTRICT COUNCIL,2014827594,"291,377.0"
Department for Work and Pensions ,Housing Benefits,14/04/2010,HOUSING BENEFIT ADMIN,HOUSING BENEFIT,COVENTRY CITY COUNCIL,2014827328,"290,752.0"
Department for Work and Pensions ,Corporate,30/04/2010,PRIME CHARGES,GROUP FINANCE,TELEREAL TRILLIUM,2015099298,"290,570.9"
Department for Work and Pensions ,Corporate,22/04/2010,CONTRACTED OUT OFFICE SERVICES,GROUP FINANCE,BALFOUR BEATTY WORKPLACE LTD,2014933397,"290,075.4"
Department for Work and Pensions ,Corporate,22/04/2010,NETWORK,CORPORATE IT,BT SYNTEGRA,2014933476,"288,833.9"
Department for Work and Pensions ,Housing Benefits,14/04/2010,HOUSING BENEFIT ADMIN,HOUSING BENEFIT,FIFE COUNCIL,2014827370,"288,157.0"
Department for Work and Pensions ,Jobcentre Plus,12/04/2010,ACCOMMODATION,JOBCENTRE PLUS,TELEREAL TRILLIUM,2014745374,"285,434.0"
Department for Work and Pensions ,Corporate,30/04/2010,,GROUP FINANCE,TELEREAL TRILLIUM,2015099300,"285,051.2"
Department for Work and Pensions ,Housing Benefits,14/04/2010,HOUSING BENEFIT ADMIN,HOUSING BENEFIT,WIRRAL BOROUGH COUNCIL,2014827617,"284,708.0"
Department for Work and Pensions ,Employment Programmes,12/04/2010,EP GENERIC PROVIDER PAYMENTS,WWG CORE PROGRAMME,JHP GROUP LTD,2014744953,"284,440.3"
Department for Work and Pensions ,Corporate,27/04/2010,CAPITAL GRANTS,GROUP FINANCE,SOUTH YORKSHIRE CREDIT UNION,2014964891,"284,214.0"
Department for Work and Pensions ,Employment Programmes,21/04/2010,EMPLOYMENT ZONES,WWG CORE PROGRAMME,WORKING LINKS,2014929643,"282,573.0"
Department for Work and Pensions ,Employment Programmes,12/04/2010,EP GENERIC PROVIDER PAYMENTS,WWG CORE PROGRAMME,REED IN PARTNERSHIP,2014746254,"281,250.0"
Department for Work and Pensions ,Corporate,12/04/2010,ACCOMMODATION,GROUP FINANCE,TELEREAL TRILLIUM,2014745374,"280,186.9"
Department for Work and Pensions ,Employment Programmes,20/04/2010,JOBCENTRE PLUS PATHWAYS TO WORK,WWG CORE PROGRAMME,NORTH STAFFORDSHIRE PCT,2014858690,"277,386.7"
Department for Work and Pensions ,Employment Programmes,08/04/2010,YOUNG PERSONS GUARANTEE (YPG) AND FUTURE JOBS FUND (FJF),WWG CORE PROGRAMME,KIRKLEES COUNCIL,2014731283,"275,600.0"
Department for Work and Pensions ,Corporate,23/04/2010,COMPUTER SERVICES,CORPORATE IT,HP ENTERPRISE SERVICES UK LTD,2014943393,"273,168.8"
Department for Work and Pensions ,Housing Benefits,14/04/2010,HOUSING BENEFIT ADMIN,HOUSING BENEFIT,LONDON BOROUGH OF GREENWICH,2014827425,"272,849.0"
Department for Work and Pensions ,Employment Programmes,15/04/2010,YOUNG PERSONS GUARANTEE (YPG) AND FUTURE JOBS FUND (FJF),WWG CORE PROGRAMME,WILTSHIRE COUNCIL,2014835461,"270,655.0"
Department for Work and Pensions ,Corporate,30/04/2010,TEMPORARY (TEMP) STAFF COSTS,CORPORATE IT,CAPITA RESOURCING LIMITED,2015070092,"269,698.0"
Department for Work and Pensions ,Employment Programmes,19/04/2010,WORKSTEP,WWG CORE PROGRAMME,RBLI EMPLOYMENT SERVICES,2014848261,"269,622.7"
Department for Work and Pensions ,"Pension, Disability Carers Services",19/04/2010,COMPUTER SERVICES,PDCS CHANGE ,ATOS ORIGIN IT SERVICES UK LTD,2014844484,"269,242.0"
Department for Work and Pensions ,Employment Programmes,01/04/2010,YOUNG PERSONS GUARANTEE (YPG) AND FUTURE JOBS FUND (FJF),WWG CORE PROGRAMME,SALFORD CITY COUNCIL,2014649250,"269,100.0"
Department for Work and Pensions ,Housing Benefits,14/04/2010,HOUSING BENEFIT ADMIN,HOUSING BENEFIT,LONDON BOROUGH OF WANDSWORTH,2014827444,"267,990.0"
Department for Work and Pensions ,Housing Benefits,14/04/2010,HOUSING BENEFIT ADMIN,HOUSING BENEFIT,WOLVERHAMPTON CITY COUNCIL,2014827620,"266,735.0"
Department for Work and Pensions ,Corporate,30/04/2010,PRIME CHARGES,GROUP FINANCE,TELEREAL TRILLIUM,2015099298,"264,837.3"
Department for Work and Pensions ,Corporate,29/04/2010,CONTRACTED OUT OFFICE SERVICES,GROUP FINANCE,BALFOUR BEATTY WORKPLACE LTD,2015058475,"263,786.4"
Department for Work and Pensions ,Corporate,14/04/2010,COMPUTER SERVICES,MISC RFR 5,HP ENTERPRISE SERVICES UK LTD,2014784199,"263,777.3"
Department for Work and Pensions ,Corporate,27/04/2010,PROFESSIONAL FEES,MISC RFR 5,ONS GEOGRAPHY,2014962578,"263,000.7"
Department for Work and Pensions ,Housing Benefits,14/04/2010,HOUSING BENEFIT ADMIN,HOUSING BENEFIT,LONDON BOROUGH OF BARNET,2014827418,"257,064.0"
Department for Work and Pensions ,Housing Benefits,14/04/2010,HOUSING BENEFIT ADMIN,HOUSING BENEFIT,DONCASTER METROPOLITAN BOROUGH COUNCIL,2014827339,"256,645.0"
Department for Work and Pensions ,Corporate,26/04/2010,TEMPORARY (TEMP) STAFF COSTS,CORPORATE IT,CAPITA RESOURCING LIMITED,2014947689,"256,624.8"
Department for Work and Pensions ,Corporate,26/04/2010,COMPUTER SERVICES,GROUP FINANCE,DELOITTE & TOUCHE LLP,2014947983,"256,597.0"
Department for Work and Pensions ,Corporate,27/04/2010,COMPUTER SERVICES,GROUP FINANCE,HP ENTERPRISE SERVICES UK LTD,2014958808,"255,367.0"
Department for Work and Pensions ,Housing Benefits,14/04/2010,HOUSING BENEFIT ADMIN,HOUSING BENEFIT,SOUTH LANARKSHIRE COUNCIL,2014827544,"255,246.0"
Department for Work and Pensions ,Jobcentre Plus,16/04/2010,APPS DEV,ISD,HP ENTERPRISE SERVICES UK LTD,2014840272,"254,189.6"
Department for Work and Pensions ,Housing Benefits,14/04/2010,HOUSING BENEFIT ADMIN,HOUSING BENEFIT,NEWCASTLE CITY COUNCIL,2014827466,"250,524.0"
Department for Work and Pensions ,Corporate,07/04/2010,GRANTS IN AID TO PUBLIC CORPORATIONS,PENSIONS CLIENT DIRECTORATE,PENSION PROTECTION FUND,1004148,"250,000.0"
Department for Work and Pensions ,Housing Benefits,14/04/2010,HOUSING BENEFIT ADMIN,HOUSING BENEFIT,SALFORD CITY COUNCIL,2014827521,"249,571.0"
Department for Work and Pensions ,Corporate,19/04/2010,TEMPORARY (TEMP) STAFF COSTS,CORPORATE IT,CAPITA RESOURCING LIMITED,2014844791,"244,280.6"
Department for Work and Pensions ,Housing Benefits,14/04/2010,HOUSING BENEFIT ADMIN,HOUSING BENEFIT,LONDON BOROUGH OF WALTHAM FOREST,2014827443,"244,198.0"
Department for Work and Pensions ,Corporate,23/04/2010,IS/IT,SHARED SERVICES ,COMPUTACENTER UK LTD,2014941777,"242,938.4"
Department for Work and Pensions ,Employment Programmes,28/04/2010,NDLP,WWG CORE PROGRAMME,WORKING LINKS,2015035740,"242,438.0"
Department for Work and Pensions ,Housing Benefits,14/04/2010,HOUSING BENEFIT ADMIN,HOUSING BENEFIT,CITY OF WESTMINSTER,2014827316,"242,253.0"
Department for Work and Pensions ,Employment Programmes,12/04/2010,EP GENERIC PROVIDER PAYMENTS,WWG CORE PROGRAMME,A4E LTD,2014741958,"238,845.0"
Department for Work and Pensions ,Employment Programmes,20/04/2010,YOUNG PERSONS GUARANTEE (YPG) AND FUTURE JOBS FUND (FJF),WWG CORE PROGRAMME,NORTH TYNESIDE COUNCIL,2014858692,"238,650.0"
Department for Work and Pensions ,Corporate,20/04/2010,APPS DEV,CHANGE MANAGEMENT DIRECTORATE,HP ENTERPRISE SERVICES UK LTD,2014855104,"238,311.9"
Department for Work and Pensions ,Housing Benefits,14/04/2010,HOUSING BENEFIT ADMIN,HOUSING BENEFIT,WILTSHIRE COUNCIL,2014827614,"237,896.0"
Department for Work and Pensions ,Housing Benefits,14/04/2010,HOUSING BENEFIT ADMIN,HOUSING BENEFIT,DUDLEY METROPOLITAN BOROUGH COUNCIL,2014827341,"237,479.0"
Department for Work and Pensions ,Employment Programmes,12/04/2010,EP GENERIC PROVIDER PAYMENTS,WWG CORE PROGRAMME,SEETEC BUSINESS TECHNOLOGY CENTRE LTD,2014746634,"237,455.0"
Department for Work and Pensions ,Corporate,29/04/2010,COMPUTER SERVICES,CORPORATE IT,ATOS ORIGIN IT SERVICES UK LTD,2015040748,"235,546.0"
Department for Work and Pensions ,Corporate,30/04/2010,,GROUP FINANCE,TELEREAL TRILLIUM,2015099300,"234,596.0"
Department for Work and Pensions ,Housing Benefits,14/04/2010,HOUSING BENEFIT ADMIN,HOUSING BENEFIT,WIGAN BOROUGH COUNCIL,2014827613,"233,860.0"
Department for Work and Pensions ,Jobcentre Plus,16/04/2010,APPS DEV,TPM PROGRAMMES,HP ENTERPRISE SERVICES UK LTD,2014840272,"232,832.7"
Department for Work and Pensions ,Employment Programmes,12/04/2010,EP GENERIC PROVIDER PAYMENTS,WWG CORE PROGRAMME,JHP GROUP LTD,2014744953,"232,623.5"
Department for Work and Pensions ,"Pension, Disability Carers Services",29/04/2010,COMPUTER SERVICES,PDCS CHANGE ,ACCENTURE,2015040585,"232,572.5"
Department for Work and Pensions ,Corporate,21/04/2010,NON PRIME CHARGES,GROUP FINANCE,SOUTHERN ELECTRIC PLC,548446,"229,987.9"
Department for Work and Pensions ,Corporate,15/04/2010,NETWORK,CORPORATE IT,BT SYNTEGRA,2014830394,"228,657.9"
Department for Work and Pensions ,"Pension, Disability Carers Services",30/04/2010,ACCOMMODATION,PDCS CORE,TELEREAL TRILLIUM,2015099301,"228,145.3"
Department for Work and Pensions ,Housing Benefits,14/04/2010,HOUSING BENEFIT ADMIN,HOUSING BENEFIT,STOKE ON TRENT CITY COUNCIL,2014827564,"228,040.0"
Department for Work and Pensions ,Employment Programmes,12/04/2010,EP GENERIC PROVIDER PAYMENTS,WWG CORE PROGRAMME,CAPITAL TRAINING GROUP LTD,2014742369,"225,952.5"
Department for Work and Pensions ,Housing Benefits,14/04/2010,HOUSING BENEFIT ADMIN,HOUSING BENEFIT,SEFTON METROPOLITAN BOROUGH COUNCIL,2014827526,"224,789.0"
Department for Work and Pensions ,Corporate,29/04/2010,PUBLICITY,MISC RFR 5,COI CENTRAL OFFICE OF INFORMATION,2015042081,"224,409.6"
Department for Work and Pensions ,Corporate,19/04/2010,CAPITAL GRANTS,GROUP FINANCE,HASTINGS TRUST,441910,"223,319.0"
Department for Work and Pensions ,Corporate,14/04/2010,EMPLOYMENT ZONES,GROUP FINANCE,EAST LANCS MONEYLINE,2014779667,"220,955.0"
Department for Work and Pensions ,Housing Benefits,14/04/2010,HOUSING BENEFIT ADMIN,HOUSING BENEFIT,LONDON BOROUGH OF HOUNSLOW,2014827431,"220,464.0"
Department for Work and Pensions ,Employment Programmes,12/04/2010,EP GENERIC PROVIDER PAYMENTS,WWG CORE PROGRAMME,TNG LTD,2014746911,"220,239.0"
Department for Work and Pensions ,Jobcentre Plus,06/04/2010,ESTATES CHARGEABLE EXTRAS,TPM PROGRAMMES,TELEREAL TRILLIUM,2014655504,"219,996.1"
Department for Work and Pensions ,Employment Programmes,01/04/2010,YOUNG PERSONS GUARANTEE (YPG) AND FUTURE JOBS FUND (FJF),WWG CORE PROGRAMME,BARNSLEY METROPOLITAN BOROUGH COUNCIL,2014641149,"218,400.0"
Department for Work and Pensions ,Housing Benefits,14/04/2010,HOUSING BENEFIT ADMIN,HOUSING BENEFIT,BOLTON METROPOLITAN BOROUGH COUNCIL,2014827273,"218,051.0"
Department for Work and Pensions ,Corporate,15/04/2010,COMPUTER SERVICES,CORPORATE IT,BT SYNTEGRA,2014830394,"217,719.9"
Department for Work and Pensions ,Corporate,14/04/2010,APPS DEV,CHANGE MANAGEMENT DIRECTORATE,HP ENTERPRISE SERVICES UK LTD,2014784199,"217,253.1"
Department for Work and Pensions ,Corporate,29/04/2010,CONTRACTED OUT OFFICE SERVICES,SHARED SERVICES ,BALFOUR BEATTY WORKPLACE LTD,2015058475,"215,480.5"
Department for Work and Pensions ,Corporate,23/04/2010,COMPUTER SERVICES,CORPORATE IT,TELEFONICA O2 UK LTD,2014945212,"215,013.4"
Department for Work and Pensions ,"Pension, Disability Carers Services",22/04/2010,CONTRACTED OUT OFFICE SERVICES,PDCS CORE,CAPITA BUSINESS SERVICES LTD,2014933722,"213,557.7"
Department for Work and Pensions ,Employment Programmes,20/04/2010,OTHER CURRENT,WWG CORE PROGRAMME,SCOTTISH GOVERNMENT,2014860795,"212,022.1"
Department for Work and Pensions ,Employment Programmes,20/04/2010,WORKSTEP,WWG CORE PROGRAMME,THE PLUSS ORGANISATION LTD,2014861322,"209,849.8"
Department for Work and Pensions ,Employment Programmes,27/04/2010,NDDP,WWG CORE PROGRAMME,REED,2014963650,"207,916.8"
Department for Work and Pensions ,Employment Programmes,12/04/2010,EP GENERIC PROVIDER PAYMENTS,WWG CORE PROGRAMME,INGEUS UK LTD,2014744626,"207,512.5"
Department for Work and Pensions ,Housing Benefits,14/04/2010,HOUSING BENEFIT ADMIN,HOUSING BENEFIT,PLYMOUTH CITY COUNCIL,2014827496,"207,141.0"
Department for Work and Pensions ,Housing Benefits,14/04/2010,HOUSING BENEFIT ADMIN,HOUSING BENEFIT,ROTHERHAM BOROUGH COUNCIL,2014827513,"207,046.0"
Department for Work and Pensions ,Housing Benefits,14/04/2010,HOUSING BENEFIT ADMIN,HOUSING BENEFIT,STOCKPORT BOROUGH COUNCIL,2014827562,"206,416.0"
Department for Work and Pensions ,Jobcentre Plus,21/04/2010,ACCOMMODATION,JOBCENTRE PLUS,TELEREAL TRILLIUM,2014903659,"205,304.2"
Department for Work and Pensions ,Corporate,29/04/2010,COMPUTER SERVICES,CORPORATE IT,ATOS ORIGIN IT SERVICES UK LTD,2015040748,"205,167.0"
Department for Work and Pensions ,Housing Benefits,14/04/2010,HOUSING BENEFIT ADMIN,HOUSING BENEFIT,NORTHUMBERLAND COUNCIL,2014827484,"205,095.0"
Department for Work and Pensions ,Housing Benefits,14/04/2010,HOUSING BENEFIT ADMIN,HOUSING BENEFIT,TAMESIDE BOROUGH COUNCIL,2014827573,"204,336.0"
Department for Work and Pensions ,Housing Benefits,14/04/2010,HOUSING BENEFIT ADMIN,HOUSING BENEFIT,LONDON BOROUGH OF HAMMERSMITH & FULHAM,2014827426,"203,286.0"
Department for Work and Pensions ,Employment Programmes,12/04/2010,EP GENERIC PROVIDER PAYMENTS,WWG CORE PROGRAMME,INGEUS UK LTD,2014744626,"203,128.3"
Department for Work and Pensions ,"Pension, Disability Carers Services",21/04/2010,IS/IT,PDCS CORE,COMPUTACENTER UK LTD,2014874954,"203,078.8"
Department for Work and Pensions ,Housing Benefits,14/04/2010,HOUSING BENEFIT ADMIN,HOUSING BENEFIT,CHESHIRE EAST BOROUGH COUNCIL,2014827307,"202,726.0"
Department for Work and Pensions ,Employment Programmes,28/04/2010,GRANTS IN AID TO EXECUTIVE NDPBs,WWG CORE PROGRAMME,BUSINESS & ENTERPRISE NORTH EAST,2014974555,"202,696.0"
Department for Work and Pensions ,"Pension, Disability Carers Services",22/04/2010,CONTRACTED OUT OFFICE SERVICES,PDCS CORE,CAPITA BUSINESS SERVICES LTD,2014933722,"202,541.7"
Department for Work and Pensions ,Corporate,13/04/2010,MANAGEMENT CONSULTANCY,MISC RFR 5,DELOITTE LLP,2014750984,"202,534.7"
Department for Work and Pensions ,Housing Benefits,14/04/2010,HOUSING BENEFIT ADMIN,HOUSING BENEFIT,LONDON BOROUGH OF HILLINGDON,2014827430,"202,106.0"
Department for Work and Pensions ,Employment Programmes,28/04/2010,YOUNG PERSONS GUARANTEE (YPG) AND FUTURE JOBS FUND (FJF),WWG CORE PROGRAMME,NOTTINGHAM CITY COUNCIL,2015017534,"201,400.0"
Department for Work and Pensions ,Housing Benefits,14/04/2010,HOUSING BENEFIT ADMIN,HOUSING BENEFIT,CHESHIRE WEST & CHESTER COUNCIL,2014827308,"201,169.0"
Department for Work and Pensions ,Corporate,14/04/2010,APPS DEV,GROUP FINANCE,HP ENTERPRISE SERVICES UK LTD,2014784199,"200,811.1"
Department for Work and Pensions ,Employment Programmes,16/04/2010,YOUNG PERSONS GUARANTEE (YPG) AND FUTURE JOBS FUND (FJF),WWG CORE PROGRAMME,ARTSWORK LTD,2014838080,"200,408.0"
Department for Work and Pensions ,Corporate,29/04/2010,MANAGEMENT CONSULTANCY,CORPORATE IT,DCSF RM SHARED SERVICES,1004186,"199,750.0"
Department for Work and Pensions ,Housing Benefits,14/04/2010,HOUSING BENEFIT ADMIN,HOUSING BENEFIT,RHONDA CYNON TAFF COUNTY BOROUGH COUNCIL,2014827506,"199,622.0"
Department for Work and Pensions ,Housing Benefits,14/04/2010,HOUSING BENEFIT ADMIN,HOUSING BENEFIT,PORTSMOUTH CITY COUNCIL,2014827498,"199,580.0"
Department for Work and Pensions ,Corporate,16/04/2010,GRANTS IN AID TO EXECUTIVE NDPBs,PENSIONS CLIENT DIRECTORATE,THE PENSIONS REGULATOR,1004171,"199,000.0"
Department for Work and Pensions ,Housing Benefits,14/04/2010,HOUSING BENEFIT ADMIN,HOUSING BENEFIT,MEDWAY TOWNS COUNCIL,2014827451,"198,271.0"
Department for Work and Pensions ,Employment Programmes,28/04/2010,WORKSTEP,WWG CORE PROGRAMME,BEDFORDSHIRE COUNTY COUNCIL,2014974429,"198,018.6"
Department for Work and Pensions ,Jobcentre Plus,21/04/2010,NON PRIME CHARGES,JOBCENTRE PLUS,COMPANIES HOUSE,548293,"197,867.9"
Department for Work and Pensions ,Housing Benefits,14/04/2010,HOUSING BENEFIT ADMIN,HOUSING BENEFIT,SOUTHAMPTON CITY COUNCIL,2014827552,"196,264.0"
Department for Work and Pensions ,Employment Programmes,12/04/2010,EP GENERIC PROVIDER PAYMENTS,WWG CORE PROGRAMME,JHP GROUP LTD,2014744953,"195,803.8"
Department for Work and Pensions ,Corporate,01/04/2010,COMPUTER SERVICES,CORPORATE IT,ATOS ORIGIN IT SERVICES UK LTD,2014641001,"193,721.3"
Department for Work and Pensions ,Corporate,21/04/2010,ACCOMMODATION,GROUP FINANCE,TELEREAL TRILLIUM,2014903659,"192,358.4"
Department for Work and Pensions ,Corporate,01/04/2010,MANAGEMENT CONSULTANCY,CORPORATE IT,PRICEWATERHOUSE COOPERS LLP,2014647970,"192,104.5"
Department for Work and Pensions ,Employment Programmes,12/04/2010,EP GENERIC PROVIDER PAYMENTS,WWG CORE PROGRAMME,A4E LTD,2014741958,"191,985.0"
Department for Work and Pensions ,Housing Benefits,14/04/2010,HOUSING BENEFIT ADMIN,HOUSING BENEFIT,EAST RIDING OF YORKSHIRE BOROUGH COUNCIL,2014827356,"191,851.0"
Department for Work and Pensions ,Corporate,12/04/2010,IS/IT,CORPORATE IT,HP ENTERPRISE SERVICES UK LTD,2014744567,"191,344.8"
Department for Work and Pensions ,Employment Programmes,12/04/2010,YOUNG PERSONS GUARANTEE (YPG) AND FUTURE JOBS FUND (FJF),WWG CORE PROGRAMME,LEICESTER CITY COUNCIL,2014745386,"189,800.0"
Department for Work and Pensions ,Corporate,30/04/2010,COMPUTER SERVICES,CHANGE MANAGEMENT DIRECTORATE,ATOS ORIGIN IT SERVICES UK LTD,2015064115,"189,341.2"
Department for Work and Pensions ,Employment Programmes,29/04/2010,YOUNG PERSONS GUARANTEE (YPG) AND FUTURE JOBS FUND (FJF),WWG CORE PROGRAMME,LONDON BOROUGH OF HACKNEY HOST BOROUGH UNIT,2015049419,"189,000.0"
Department for Work and Pensions ,Housing Benefits,14/04/2010,HOUSING BENEFIT ADMIN,HOUSING BENEFIT,BARNSLEY BOROUGH COUNCIL,2014827260,"188,968.0"
Department for Work and Pensions ,Housing Benefits,14/04/2010,HOUSING BENEFIT ADMIN,HOUSING BENEFIT,MILTON KEYNES BOROUGH COUNCIL,2014827460,"188,743.0"
Department for Work and Pensions ,Housing Benefits,14/04/2010,HOUSING BENEFIT ADMIN,HOUSING BENEFIT,LONDON BOROUGH OF KENSINGTON & CHELSEA,2014827433,"188,446.0"
Department for Work and Pensions ,Housing Benefits,14/04/2010,HOUSING BENEFIT ADMIN,HOUSING BENEFIT,ROCHDALE BOROUGH COUNCIL,2014827509,"188,330.0"
Department for Work and Pensions ,Employment Programmes,29/04/2010,WORKSTEP,WWG CORE PROGRAMME,SCOPE,2015054258,"187,741.2"
Department for Work and Pensions ,Housing Benefits,14/04/2010,HOUSING BENEFIT ADMIN,HOUSING BENEFIT,DERBY CITY COUNCIL,2014827337,"186,935.0"
Department for Work and Pensions ,Housing Benefits,14/04/2010,HOUSING BENEFIT ADMIN,HOUSING BENEFIT,SWANSEA CITY COUNCIL,2014827571,"185,902.0"
Department for Work and Pensions ,Corporate,14/04/2010,PRINTING STATIONERY IT & CONSUMABLES,GROUP FINANCE,XEROX UK LIMITED 3W,2014826590,"185,207.7"
Department for Work and Pensions ,Corporate,14/04/2010,APPS DEV,CHANGE MANAGEMENT DIRECTORATE,ACCENTURE UK LTD,2014765659,"184,821.0"
Department for Work and Pensions ,Corporate,13/04/2010,OTHER GRANTS IN AID,WWG TOP LEVEL,MOTABILITY,2014755915,"184,000.0"
Department for Work and Pensions ,Housing Benefits,14/04/2010,HOUSING BENEFIT ADMIN,HOUSING BENEFIT,LONDON BOROUGH OF HARROW,2014827428,"183,286.0"
Department for Work and Pensions ,Housing Benefits,14/04/2010,HOUSING BENEFIT ADMIN,HOUSING BENEFIT,OLDHAM BOROUGH COUNCIL,2014827489,"183,161.0"
Department for Work and Pensions ,Jobcentre Plus,12/04/2010,ACCOMMODATION,JOBCENTRE PLUS,TELEREAL TRILLIUM,2014745374,"183,089.0"
Department for Work and Pensions ,Housing Benefits,14/04/2010,HOUSING BENEFIT ADMIN,HOUSING BENEFIT,LONDON BOROUGH OF BROMLEY,2014827421,"182,362.0"
Department for Work and Pensions ,Employment Programmes,19/04/2010,YOUNG PERSONS GUARANTEE (YPG) AND FUTURE JOBS FUND (FJF),WWG CORE PROGRAMME,DONCASTER METROPOLITAN BOROUGH COUNCIL,2014845090,"182,000.0"
Department for Work and Pensions ,Corporate,16/04/2010,APPS DEV,CORPORATE IT,HP ENTERPRISE SERVICES UK LTD,2014840272,"181,081.3"
Department for Work and Pensions ,Housing Benefits,14/04/2010,HOUSING BENEFIT ADMIN,HOUSING BENEFIT,LONDON BOROUGH OF BARKING & DAGENHAM,2014827417,"180,605.0"
Department for Work and Pensions ,Housing Benefits,14/04/2010,HOUSING BENEFIT ADMIN,HOUSING BENEFIT,KNOWSLEY BOROUGH COUNCIL,2014827409,"179,845.0"
Department for Work and Pensions ,Housing Benefits,14/04/2010,HOUSING BENEFIT ADMIN,HOUSING BENEFIT,GATESHEAD BOROUGH COUNCIL,2014827375,"178,509.0"
Department for Work and Pensions ,Corporate,21/04/2010,MISCELLANEOUS EXPENDITURE,WWG TOP LEVEL,CENTRE FOR SOCIAL INCLUSION,2014874719,"177,079.0"
Department for Work and Pensions ,Employment Programmes,09/04/2010,YOUNG PERSONS GUARANTEE (YPG) AND FUTURE JOBS FUND (FJF),WWG CORE PROGRAMME,NORFOLK COUNTY COUNCIL,2014738939,"176,100.0"
Department for Work and Pensions ,Jobcentre Plus,26/04/2010,ACCOMMODATION,JOBCENTRE PLUS,TELEREAL TRILLIUM,2014950766,"175,217.0"
Department for Work and Pensions ,Corporate,09/04/2010,STAFF COSTS,MISC RFR 5,RIGHT CORECARE,2014739242,"174,327.2"
Department for Work and Pensions ,Corporate,21/04/2010,COMPUTER SERVICES,CHANGE MANAGEMENT DIRECTORATE,ACCENTURE UK LTD,2014868292,"173,258.4"
Department for Work and Pensions ,Housing Benefits,14/04/2010,HOUSING BENEFIT ADMIN,HOUSING BENEFIT,SHROPSHIRE COUNCIL,2014827532,"172,840.0"
Department for Work and Pensions ,Housing Benefits,14/04/2010,HOUSING BENEFIT ADMIN,HOUSING BENEFIT,LONDON BOROUGH OF REDBRIDGE,2014827438,"171,241.0"
Department for Work and Pensions ,Housing Benefits,14/04/2010,HOUSING BENEFIT ADMIN,HOUSING BENEFIT,STOCKTON  BOROUGH COUNCIL,2014827563,"170,880.0"
Department for Work and Pensions ,Jobcentre Plus,15/04/2010,APPS DEV,TPM PROGRAMMES,HM Revenue & Customs,2014832490,"169,915.0"
Department for Work and Pensions ,Jobcentre Plus,12/04/2010,ACCOMMODATION,JOBCENTRE PLUS,TELEREAL TRILLIUM,2014745374,"169,656.0"
Department for Work and Pensions ,Jobcentre Plus,20/04/2010,APPS DEV,ISD,HP ENTERPRISE SERVICES UK LTD,2014855104,"169,627.1"
Department for Work and Pensions ,Housing Benefits,14/04/2010,HOUSING BENEFIT ADMIN,HOUSING BENEFIT,RENFREWSHIRE COUNCIL,2014827505,"168,749.0"
Department for Work and Pensions ,Housing Benefits,14/04/2010,HOUSING BENEFIT ADMIN,HOUSING BENEFIT,NORTHAMPTON BOROUGH COUNCIL,2014827483,"168,364.0"
Department for Work and Pensions ,Corporate,07/04/2010,MANAGEMENT CONSULTANCY,MISC RFR 5,CABINET OFFICE,2001974,"167,437.5"
Department for Work and Pensions ,Housing Benefits,14/04/2010,HOUSING BENEFIT ADMIN,HOUSING BENEFIT,BLACKPOOL BOROUGH COUNCIL,2014827270,"167,396.0"
Department for Work and Pensions ,Corporate,23/04/2010,HOSTING,CORPORATE IT,HP ENTERPRISE SERVICES UK LTD,2014943393,"166,730.9"
Department for Work and Pensions ,Housing Benefits,14/04/2010,HOUSING BENEFIT ADMIN,HOUSING BENEFIT,SOUTH GLOUCESTERSHIRE COUNCIL,2014827539,"165,637.0"
Department for Work and Pensions ,Housing Benefits,14/04/2010,HOUSING BENEFIT ADMIN,HOUSING BENEFIT,CALDERDALE BOROUGH COUNCIL,2014827294,"165,327.0"
Department for Work and Pensions ,Housing Benefits,14/04/2010,HOUSING BENEFIT ADMIN,HOUSING BENEFIT,MIDDLESBROUGH COUNCIL,2014827458,"165,270.0"
Department for Work and Pensions ,Corporate,15/04/2010,ACCOMMODATION,GROUP FINANCE,TELEREAL TRILLIUM,2014833482,"164,992.7"
Department for Work and Pensions ,Corporate,16/04/2010,APPS DEV,CHANGE MANAGEMENT DIRECTORATE,HP ENTERPRISE SERVICES UK LTD,2014840272,"164,816.3"
Department for Work and Pensions ,Employment Programmes,29/04/2010,NDDP,WWG CORE PROGRAMME,SENCIA LTD,2015054283,"164,514.0"
Department for Work and Pensions ,Jobcentre Plus,13/04/2010,APPS DEV,ISD,HP ENTERPRISE SERVICES UK LTD,2014752927,"164,459.0"
Department for Work and Pensions ,Employment Programmes,29/04/2010,NDDP,WWG CORE PROGRAMME,WORKING LINKS,2015055478,"164,419.2"
Department for Work and Pensions ,Housing Benefits,14/04/2010,HOUSING BENEFIT ADMIN,HOUSING BENEFIT,THANET DISTRICT COUNCIL,2014827581,"164,294.0"
Department for Work and Pensions ,Housing Benefits,14/04/2010,HOUSING BENEFIT ADMIN,HOUSING BENEFIT,PETERBOROUGH CITY COUNCIL,2014827495,"163,738.0"
Department for Work and Pensions ,Housing Benefits,14/04/2010,HOUSING BENEFIT ADMIN,HOUSING BENEFIT,DUNDEE CITY COUNCIL,2014827343,"163,220.0"
Department for Work and Pensions ,Corporate,09/04/2010,MANAGEMENT CONSULTANCY,CHANGE MANAGEMENT DIRECTORATE,DELOITTE LLP,2014736184,"163,066.4"
Department for Work and Pensions ,Employment Programmes,06/04/2010,YOUNG PERSONS GUARANTEE (YPG) AND FUTURE JOBS FUND (FJF),WWG CORE PROGRAMME,TNG LTD,2014656174,"162,184.0"
Department for Work and Pensions ,Employment Programmes,29/04/2010,YOUNG PERSONS GUARANTEE (YPG) AND FUTURE JOBS FUND (FJF),WWG CORE PROGRAMME,STOKE ON TRENT CITY COUNCIL,2015054455,"162,126.2"
Department for Work and Pensions ,Jobcentre Plus,14/04/2010,APPS DEV,ISD,HP ENTERPRISE SERVICES UK LTD,2014784199,"161,365.9"
Department for Work and Pensions ,Housing Benefits,14/04/2010,HOUSING BENEFIT ADMIN,HOUSING BENEFIT,NORTH TYNESIDE BOROUGH COUNCIL,2014827480,"160,371.0"
Department for Work and Pensions ,Jobcentre Plus,16/04/2010,APPS DEV,ISD,HP ENTERPRISE SERVICES UK LTD,2014840272,"160,333.2"
Department for Work and Pensions ,Housing Benefits,14/04/2010,HOUSING BENEFIT ADMIN,HOUSING BENEFIT,NORTH EAST LINCOLNSHIRE COUNCIL,2014827473,"159,711.0"
Department for Work and Pensions ,Housing Benefits,14/04/2010,HOUSING BENEFIT ADMIN,HOUSING BENEFIT,ST HELENS BOROUGH COUNCIL,2014827557,"159,652.0"
Department for Work and Pensions ,Corporate,20/04/2010,APPS DEV,CHANGE MANAGEMENT DIRECTORATE,HP ENTERPRISE SERVICES UK LTD,2014855104,"159,409.9"
Department for Work and Pensions ,Jobcentre Plus,08/04/2010,JOBCENTRE PLUS PATHWAYS TO WORK,JOBCENTRE PLUS,DORSET PRIMARY CARE TRUST,2014729207,"158,911.7"
Department for Work and Pensions ,Employment Programmes,07/04/2010,NDDP,WWG CORE PROGRAMME,ACTION FOR EMPLOYMENT,2014663645,"158,114.9"
Department for Work and Pensions ,Housing Benefits,14/04/2010,HOUSING BENEFIT ADMIN,HOUSING BENEFIT,HIGHLAND COUNCIL,2014827396,"157,800.0"
Department for Work and Pensions ,Jobcentre Plus,19/04/2010,PRIME BILLABLE EXTRAS,JOBCENTRE PLUS,TELEREAL TRILLIUM,2014847398,"157,141.8"
Department for Work and Pensions ,Employment Programmes,08/04/2010,YOUNG PERSONS GUARANTEE (YPG) AND FUTURE JOBS FUND (FJF),WWG CORE PROGRAMME,GLASGOW CITY COUNCIL,2014730565,"156,000.0"
Department for Work and Pensions ,Employment Programmes,12/04/2010,YOUNG PERSONS GUARANTEE (YPG) AND FUTURE JOBS FUND (FJF),WWG CORE PROGRAMME,REDCAR & CLEVELAND BOROUGH COUNCIL,2014746252,"156,000.0"
Department for Work and Pensions ,Employment Programmes,09/04/2010,YOUNG PERSONS GUARANTEE (YPG) AND FUTURE JOBS FUND (FJF),WWG CORE PROGRAMME,JARVIS EMPLOYMENT & TRAINING PROJECTS CIC,2014738311,"155,981.3"
Department for Work and Pensions ,Jobcentre Plus,12/04/2010,ACCOMMODATION,JOBCENTRE PLUS,TELEREAL TRILLIUM,2014745374,"155,974.4"
Department for Work and Pensions ,Housing Benefits,14/04/2010,HOUSING BENEFIT ADMIN,HOUSING BENEFIT,LUTON BOROUGH COUNCIL,2014827445,"155,469.0"
Department for Work and Pensions ,Corporate,27/04/2010,DESKTOP,CORPORATE IT,HP ENTERPRISE SERVICES UK LTD,2014958808,"155,237.6"
Department for Work and Pensions ,Corporate,22/04/2010,IS/IT,CORPORATE IT,HP ENTERPRISE SERVICES UK LTD,2014935691,"154,802.3"
Department for Work and Pensions ,Corporate,15/04/2010,APPS DEV,GROUP FINANCE,HP ENTERPRISE SERVICES UK LTD,2014832500,"154,648.8"
Department for Work and Pensions ,Housing Benefits,14/04/2010,HOUSING BENEFIT ADMIN,HOUSING BENEFIT,BOURNEMOUTH BOROUGH COUNCIL,2014827278,"154,527.0"
Department for Work and Pensions ,Corporate,12/04/2010,TEMPORARY (TEMP) STAFF COSTS,CORPORATE IT,CAPITA RESOURCING LIMITED,2014742367,"154,150.2"
Department for Work and Pensions ,Corporate,06/04/2010,IT EQUIPMENT CAPITAL,WWG TOP LEVEL,CAPGEMINI UK PLC,2014653538,"153,441.3"
Department for Work and Pensions ,Employment Programmes,06/04/2010,YOUNG PERSONS GUARANTEE (YPG) AND FUTURE JOBS FUND (FJF),WWG CORE PROGRAMME,THE INTRAINING GROUP,2014656158,"153,267.0"
Department for Work and Pensions ,Corporate,20/04/2010,IS/IT,CORPORATE IT,HP ENTERPRISE SERVICES UK LTD,2014855104,"153,010.0"
Department for Work and Pensions ,Employment Programmes,12/04/2010,EP GENERIC PROVIDER PAYMENTS,WWG CORE PROGRAMME,WORKING LINKS,2014747065,"151,562.5"
Department for Work and Pensions ,Housing Benefits,14/04/2010,HOUSING BENEFIT ADMIN,HOUSING BENEFIT,NORTH SOMERSET COUNCIL,2014827479,"151,415.0"
Department for Work and Pensions ,Housing Benefits,14/04/2010,HOUSING BENEFIT ADMIN,HOUSING BENEFIT,SOUTHEND ON SEA BOROUGH COUNCIL,2014827553,"151,050.0"
Department for Work and Pensions ,Corporate,23/04/2010,INTERNATIONAL PROGRAMMES,WWG TOP LEVEL,BRITISH COUNCIL,2014941549,"150,614.5"
Department for Work and Pensions ,"Pension, Disability Carers Services",13/04/2010,TOTAL SUPPLIES & SERVICES,PDCS CORE,ROYAL MAIL GROUP PLC,2014757346,"150,501.0"
Department for Work and Pensions ,"Pension, Disability Carers Services",13/04/2010,APPS DEV,PDCS CORE,HP ENTERPRISE SERVICES UK LTD,2014752927,"150,441.8"
Department for Work and Pensions ,Employment Programmes,12/04/2010,EP GENERIC PROVIDER PAYMENTS,WWG CORE PROGRAMME,JHP GROUP LTD,2014744953,"150,311.5"
Department for Work and Pensions ,Jobcentre Plus,12/04/2010,ACCOMMODATION,HUMAN RESOURCES,TELEREAL TRILLIUM,2014745374,"149,353.2"
Department for Work and Pensions ,Corporate,14/04/2010,EMPLOYMENT ZONES,GROUP FINANCE,CAPITAL CREDIT UNION LTD,2014771965,"149,330.0"
Department for Work and Pensions ,Employment Programmes,06/04/2010,YOUNG PERSONS GUARANTEE (YPG) AND FUTURE JOBS FUND (FJF),WWG CORE PROGRAMME,THE INTRAINING GROUP,2014656158,"149,111.0"
Department for Work and Pensions ,Employment Programmes,16/04/2010,ND 18-24 GATEWAY,WWG CORE PROGRAMME,MANAGEMENT INTRODUCTIONS LTD,2014841310,"148,675.0"
Department for Work and Pensions ,"Pension, Disability Carers Services",15/04/2010,ACCOMMODATION,PDCS CORE,TELEREAL TRILLIUM,2014833482,"148,550.7"
Department for Work and Pensions ,Housing Benefits,14/04/2010,HOUSING BENEFIT ADMIN,HOUSING BENEFIT,BASILDON DISTRICT COUNCIL,2014827262,"148,283.0"
Department for Work and Pensions ,Employment Programmes,22/04/2010,YOUNG PERSONS GUARANTEE (YPG) AND FUTURE JOBS FUND (FJF),WWG CORE PROGRAMME,TRAINING FOR LIFE LTD,2014938580,"146,900.0"
Department for Work and Pensions ,Housing Benefits,14/04/2010,HOUSING BENEFIT ADMIN,HOUSING BENEFIT,TRAFFORD BOROUGH COUNCIL,2014827589,"146,887.0"
Department for Work and Pensions ,Corporate,20/04/2010,APPS DEV,CORPORATE IT,HP ENTERPRISE SERVICES UK LTD,2014855104,"146,353.5"
Department for Work and Pensions ,Housing Benefits,14/04/2010,HOUSING BENEFIT ADMIN,HOUSING BENEFIT,TORBAY  COUNCIL,2014827586,"146,185.0"
Department for Work and Pensions ,Corporate,30/04/2010,MANAGEMENT CONSULTANCY,CORPORATE IT,TRIBAL HELM CORPORATION LTD,2015123494,"145,874.3"
Department for Work and Pensions ,Housing Benefits,14/04/2010,HOUSING BENEFIT ADMIN,HOUSING BENEFIT,SWINDON BOROUGH COUNCIL,2014827572,"145,515.0"
Department for Work and Pensions ,Employment Programmes,06/04/2010,YOUNG PERSONS GUARANTEE (YPG) AND FUTURE JOBS FUND (FJF),WWG CORE PROGRAMME,THE INTRAINING GROUP,2014656158,"145,200.0"
Department for Work and Pensions ,Housing Benefits,14/04/2010,HOUSING BENEFIT ADMIN,HOUSING BENEFIT,SOUTH TYNESIDE METROPOLITAN BOROUGH COUNCIL,2014827551,"144,443.0"
Department for Work and Pensions ,Corporate,21/04/2010,HOSTING,CORPORATE IT,HP ENTERPRISE SERVICES UK LTD,2014887013,"144,294.8"
Department for Work and Pensions ,Housing Benefits,14/04/2010,HOUSING BENEFIT ADMIN,HOUSING BENEFIT,BOROUGH OF TELFORD  & WREKIN COUNCIL,2014827275,"143,989.0"
Department for Work and Pensions ,Housing Benefits,14/04/2010,HOUSING BENEFIT ADMIN,HOUSING BENEFIT,LONDON BOROUGH OF BEXLEY,2014827419,"143,580.0"
Department for Work and Pensions ,Employment Programmes,13/04/2010,YOUNG PERSONS GUARANTEE (YPG) AND FUTURE JOBS FUND (FJF),WWG CORE PROGRAMME,FUTURE JOBS SOUTH LONDON BUSINESS,2014752377,"143,000.0"
Department for Work and Pensions ,Corporate,14/04/2010,CAPITAL GRANTS,GROUP FINANCE,CITY SAVE CREDIT UNION LTD,2014772070,"142,102.0"
Department for Work and Pensions ,Housing Benefits,14/04/2010,HOUSING BENEFIT ADMIN,HOUSING BENEFIT,LONDON BOROUGH OF HAVERING,2014827429,"141,829.0"
Department for Work and Pensions ,Housing Benefits,14/04/2010,HOUSING BENEFIT ADMIN,HOUSING BENEFIT,BURY METROPOLITAN BOROUGH COUNCIL,2014827292,"141,220.0"
Department for Work and Pensions ,Corporate,14/04/2010,EMPLOYMENT ZONES,GROUP FINANCE,ENTERPRISE CREDIT UNION,2014779822,"140,926.0"
Department for Work and Pensions ,Jobcentre Plus,19/04/2010,ACCOMMODATION,JOBCENTRE PLUS,TELEREAL TRILLIUM,2014847399,"140,283.6"
Department for Work and Pensions ,Corporate,21/04/2010,CAPITAL GRANTS,GROUP FINANCE,NORTH YORKSHIRE CREDIT UNION LTD,2014911941,"140,187.0"
Department for Work and Pensions ,Corporate,20/04/2010,PUBLICITY,MISC RFR 5,COI CENTRAL OFFICE OF INFO,2014852230,"140,000.0"
Department for Work and Pensions ,Corporate,14/04/2010,EMPLOYMENT ZONES,GROUP FINANCE,MANCHESTER CREDIT UNION,2014806213,"138,997.0"
Department for Work and Pensions ,Housing Benefits,14/04/2010,HOUSING BENEFIT ADMIN,HOUSING BENEFIT,CAERPHILLY COUNTY BOROUGH COUNCIL,2014827293,"138,881.0"
Department for Work and Pensions ,Corporate,30/04/2010,,SHARED SERVICES ,TELEREAL TRILLIUM,2015099300,"138,612.9"
Department for Work and Pensions ,Housing Benefits,14/04/2010,HOUSING BENEFIT ADMIN,HOUSING BENEFIT,ABERDEEN CITY COUNCIL,2014827248,"138,401.0"
Department for Work and Pensions ,Housing Benefits,14/04/2010,HOUSING BENEFIT ADMIN,HOUSING BENEFIT,LONDON BOROUGH OF SUTTON,2014827441,"137,857.0"
Department for Work and Pensions ,Housing Benefits,14/04/2010,HOUSING BENEFIT ADMIN,HOUSING BENEFIT,NORTH AYRSHIRE COUNCIL,2014827469,"137,720.0"
Department for Work and Pensions ,Corporate,27/04/2010,TEMPORARY (TEMP) STAFF COSTS,GROUP FINANCE,COMMISSION FOR RURAL COMMUNITIES,2014955792,"135,427.0"
Department for Work and Pensions ,"Pension, Disability Carers Services",12/04/2010,CONTRACTED OUT OFFICE SERVICES,PDCS CORE,XEROX UK LIMITED,2014747072,"134,214.6"
Department for Work and Pensions ,"Pension, Disability Carers Services",29/04/2010,CONTRACTED OUT OFFICE SERVICES,PDCS CHANGE ,BALFOUR BEATTY WORKPLACE LTD,2015040995,"133,886.5"
Department for Work and Pensions ,Corporate,14/04/2010,CAPITAL GRANTS,GROUP FINANCE,SALFORD MONEY LINE,2014821411,"133,852.0"
Department for Work and Pensions ,Jobcentre Plus,15/04/2010,COMPUTER SERVICES,ISD,HP ENTERPRISE SERVICES UK LTD,2014832501,"133,593.1"
Department for Work and Pensions ,Housing Benefits,14/04/2010,HOUSING BENEFIT ADMIN,HOUSING BENEFIT,REDCAR & CLEVELAND  BOROUGH COUNCIL,2014827503,"133,309.0"
Department for Work and Pensions ,Corporate,09/04/2010,IS/IT,CORPORATE IT,COMPUTACENTER UK LTD,2014736027,"132,122.4"
Department for Work and Pensions ,Employment Programmes,06/04/2010,YOUNG PERSONS GUARANTEE (YPG) AND FUTURE JOBS FUND (FJF),WWG CORE PROGRAMME,TNG LTD,2014656174,"131,843.0"
Department for Work and Pensions ,Corporate,21/04/2010,IS/IT,CORPORATE IT,COMPUTACENTER UK LTD,2014874954,"131,631.9"
Department for Work and Pensions ,Employment Programmes,06/04/2010,YOUNG PERSONS GUARANTEE (YPG) AND FUTURE JOBS FUND (FJF),WWG CORE PROGRAMME,CSV,2014653590,"131,300.0"
Department for Work and Pensions ,Housing Benefits,14/04/2010,HOUSING BENEFIT ADMIN,HOUSING BENEFIT,NORWICH CITY COUNCIL,2014827485,"131,294.0"
Department for Work and Pensions ,Employment Programmes,01/04/2010,YOUNG PERSONS GUARANTEE (YPG) AND FUTURE JOBS FUND (FJF),WWG CORE PROGRAMME,SHEFFIELD CITY COUNCIL,2014649308,"131,250.0"
Department for Work and Pensions ,Employment Programmes,19/04/2010,JSP ESF DEL P COSTS,WWG CORE PROGRAMME,THE INTRAINING GROUP,2014848821,"130,921.1"
Department for Work and Pensions ,Corporate,30/04/2010,COMPUTER SERVICES,SHARED SERVICES ,FUJITSU SERVICES LTD,2015079123,"130,616.0"
Department for Work and Pensions ,Corporate,12/04/2010,COMPUTER SERVICES,GROUP FINANCE,ACCENTURE UK LTD,2014741965,"130,601.9"
Department for Work and Pensions ,Housing Benefits,14/04/2010,HOUSING BENEFIT ADMIN,HOUSING BENEFIT,LONDON BOROUGH OF MERTON,2014827436,"130,534.0"
Department for Work and Pensions ,Employment Programmes,20/04/2010,YOUNG PERSONS GUARANTEE (YPG) AND FUTURE JOBS FUND (FJF),WWG CORE PROGRAMME,CITY & COUNTY OF SWANSEA,2014852171,"130,350.0"
Department for Work and Pensions ,Housing Benefits,14/04/2010,HOUSING BENEFIT ADMIN,HOUSING BENEFIT,TENDRING DISTRICT COUNCIL,2014827578,"130,075.0"
Department for Work and Pensions ,Employment Programmes,21/04/2010,YOUNG PERSONS GUARANTEE (YPG) AND FUTURE JOBS FUND (FJF),WWG CORE PROGRAMME,NORTH LANARKSHIRE COUNCIL,2014911937,"130,050.0"
Department for Work and Pensions ,Employment Programmes,21/04/2010,YOUNG PERSONS GUARANTEE (YPG) AND FUTURE JOBS FUND (FJF),WWG CORE PROGRAMME,GLASGOW CITY COUNCIL,2014885352,"129,900.0"
Department for Work and Pensions ,Housing Benefits,14/04/2010,HOUSING BENEFIT ADMIN,HOUSING BENEFIT,WEST LOTHIAN COUNCIL,2014827609,"129,196.0"
Department for Work and Pensions ,Corporate,20/04/2010,PENSIONS PROGRAMME COSTS,PENSIONS CLIENT DIRECTORATE,BBC,2014851443,"129,077.1"
Department for Work and Pensions ,Housing Benefits,14/04/2010,HOUSING BENEFIT ADMIN,HOUSING BENEFIT,CENTRAL BEDFORDSHIRE DISTRICT COUNCIL,2014827301,"128,079.0"
Department for Work and Pensions ,Corporate,23/04/2010,CAPITAL GRANTS,GROUP FINANCE,DERWENT & SOLWAY HOUSING ASSOCIATION,2014941968,"128,060.0"
Department for Work and Pensions ,Corporate,12/04/2010,COMPUTER SERVICES,CORPORATE IT,AMTEC CONSULTING GROUP,2014742013,"128,034.1"
Department for Work and Pensions ,Corporate,26/04/2010,COMPUTER SERVICES,CHANGE MANAGEMENT DIRECTORATE,ATOS ORIGIN IT SERVICES UK LTD,2014947373,"127,887.3"
Department for Work and Pensions ,Employment Programmes,06/04/2010,EP GENERIC PROVIDER PAYMENTS,WWG CORE PROGRAMME,NORD ANGLIA EDUCATION PARTNERSHIPS LTD,2014655719,"127,551.5"
Department for Work and Pensions ,Employment Programmes,12/04/2010,YOUNG PERSONS GUARANTEE (YPG) AND FUTURE JOBS FUND (FJF),WWG CORE PROGRAMME,SUSTRANS LTD,2014746749,"127,400.0"
Department for Work and Pensions ,Jobcentre Plus,30/04/2010,,JOBCENTRE PLUS,TELEREAL TRILLIUM,2015099300,"127,157.0"
Department for Work and Pensions ,Housing Benefits,14/04/2010,HOUSING BENEFIT ADMIN,HOUSING BENEFIT,BLACKBURN BOROUGH COUNCIL,2014827269,"127,143.0"
Department for Work and Pensions ,Corporate,09/04/2010,STAFF COSTS,MISC RFR 5,RIGHT CORECARE,2014739243,"125,583.3"
Department for Work and Pensions ,Employment Programmes,16/04/2010,OTHER CURRENT,WWG CORE PROGRAMME,ESTYN,548035,"125,476.8"
Department for Work and Pensions ,Housing Benefits,14/04/2010,HOUSING BENEFIT ADMIN,HOUSING BENEFIT,CARMARTHENSHIRE COUNTY COUNCIL,2014827299,"124,993.0"
Department for Work and Pensions ,Housing Benefits,14/04/2010,HOUSING BENEFIT ADMIN,HOUSING BENEFIT,SOLIHULL METROPOLITAN BOROUGH COUNCIL,2014827534,"124,893.0"
Department for Work and Pensions ,"Pension, Disability Carers Services",13/04/2010,APPS DEV,PDCS CHANGE ,HP ENTERPRISE SERVICES UK LTD,2014752927,"124,592.5"
Department for Work and Pensions ,Housing Benefits,14/04/2010,HOUSING BENEFIT ADMIN,HOUSING BENEFIT,NORTH LINCOLNSHIRE COUNCIL,2014827477,"124,405.0"
Department for Work and Pensions ,Employment Programmes,19/04/2010,JSP ESF DEL P COSTS,WWG CORE PROGRAMME,SEETEC BUSINESS TECHNOLOGY CENTRE LTD,2014848615,"124,134.5"
Department for Work and Pensions ,Corporate,20/04/2010,APPS DEV,GROUP FINANCE,HP ENTERPRISE SERVICES UK LTD,2014855104,"123,665.9"
Department for Work and Pensions ,Employment Programmes,30/04/2010,YOUNG PERSONS GUARANTEE (YPG) AND FUTURE JOBS FUND (FJF),WWG CORE PROGRAMME,HARLOW DISTRICT COUNCIL,2015082532,"123,500.0"
Department for Work and Pensions ,Housing Benefits,14/04/2010,HOUSING BENEFIT ADMIN,HOUSING BENEFIT,DUMFRIES & GALLOWAY COUNCIL,2014827342,"123,430.0"
Department for Work and Pensions ,Corporate,27/04/2010,COMPUTER SERVICES,MISC RFR 5,HP ENTERPRISE SERVICES UK LTD,2014958808,"123,373.4"
Department for Work and Pensions ,Housing Benefits,14/04/2010,HOUSING BENEFIT ADMIN,HOUSING BENEFIT,ISLE OF WIGHT COUNTY COUNCIL,2014827404,"123,038.0"
Department for Work and Pensions ,Corporate,13/04/2010,COMPUTER SERVICES,MISC RFR 5,HP ENTERPRISE SERVICES UK LTD,2014752927,"122,898.6"
Department for Work and Pensions ,Corporate,09/04/2010,PAYMENTS TO CSAS,MISC RFR 5,ATOS ORIGIN IT SERVICES UK LTD,2014735702,"122,767.9"
Department for Work and Pensions ,Jobcentre Plus,19/04/2010,ACCOMMODATION,JOBCENTRE PLUS,TELEREAL TRILLIUM,2014847399,"122,412.0"
Department for Work and Pensions ,"Pension, Disability Carers Services",14/04/2010,PROFESSIONAL FEES,PDCS CORE,EXPERIAN LTD,547641,"120,677.4"
Department for Work and Pensions ,Housing Benefits,14/04/2010,HOUSING BENEFIT ADMIN,HOUSING BENEFIT,NEATH PORT TALBOT COUNTY BOROUGH COUNCIL,2014827463,"120,509.0"
Department for Work and Pensions ,Housing Benefits,14/04/2010,HOUSING BENEFIT ADMIN,HOUSING BENEFIT,SLOUGH BOROUGH COUNCIL,2014827533,"120,272.0"
Department for Work and Pensions ,Corporate,19/04/2010,COMPUTER SERVICES,CHANGE MANAGEMENT DIRECTORATE,BT SYNTEGRA,2014844602,"120,022.5"
Department for Work and Pensions ,Housing Benefits,14/04/2010,HOUSING BENEFIT ADMIN,HOUSING BENEFIT,READING BOROUGH COUNCIL,2014827502,"119,744.0"
Department for Work and Pensions ,Employment Programmes,12/04/2010,YOUNG PERSONS GUARANTEE (YPG) AND FUTURE JOBS FUND (FJF),WWG CORE PROGRAMME,NORFOLK COUNTY COUNCIL,2014745870,"118,300.0"
Department for Work and Pensions ,Employment Programmes,19/04/2010,YOUNG PERSONS GUARANTEE (YPG) AND FUTURE JOBS FUND (FJF),WWG CORE PROGRAMME,SOUTH LANARKSHIRE COUNCIL,2014848660,"117,600.0"
Department for Work and Pensions ,Corporate,12/04/2010,TEMPORARY (TEMP) STAFF COSTS,MISC RFR 5,PARTNERS ANDREWS ALDRIDGE,2014746033,"117,500.0"
Department for Work and Pensions ,Housing Benefits,14/04/2010,HOUSING BENEFIT ADMIN,HOUSING BENEFIT,BEDFORD BOROUGH COUNCIL,2014827266,"117,297.0"
Department for Work and Pensions ,Housing Benefits,14/04/2010,HOUSING BENEFIT ADMIN,HOUSING BENEFIT,FALKIRK DISTRICT COUNCIL,2014827367,"117,213.0"
Department for Work and Pensions ,Housing Benefits,14/04/2010,HOUSING BENEFIT ADMIN,HOUSING BENEFIT,NEWPORT CITY COUNCIL,2014827468,"117,056.0"
Department for Work and Pensions ,Employment Programmes,08/04/2010,YOUNG PERSONS GUARANTEE (YPG) AND FUTURE JOBS FUND (FJF),WWG CORE PROGRAMME,THE FOOTBALL LEAGUE COMMUNITY LTD,2014732972,"117,000.0"
Department for Work and Pensions ,Employment Programmes,21/04/2010,YOUNG PERSONS GUARANTEE (YPG) AND FUTURE JOBS FUND (FJF),WWG CORE PROGRAMME,BARNSLEY METROPOLITAN BOROUGH COUNCIL,2014869908,"116,850.0"
Department for Work and Pensions ,Employment Programmes,12/04/2010,YOUNG PERSONS GUARANTEE (YPG) AND FUTURE JOBS FUND (FJF),WWG CORE PROGRAMME,HARTLEPOOL BOROUGH COUNCIL,2014744541,"115,950.0"
Department for Work and Pensions ,Housing Benefits,14/04/2010,HOUSING BENEFIT ADMIN,HOUSING BENEFIT,HALTON BOROUGH COUNCIL,2014827384,"115,761.0"
Department for Work and Pensions ,Jobcentre Plus,13/04/2010,TOTAL SUPPLIES & SERVICES,TPM PROGRAMMES,ROYAL MAIL GROUP PLC,2014757346,"114,867.0"
Department for Work and Pensions ,Housing Benefits,14/04/2010,HOUSING BENEFIT ADMIN,HOUSING BENEFIT,ABERDEENSHIRE COUNCIL,2014827249,"114,236.0"
Department for Work and Pensions ,Housing Benefits,14/04/2010,HOUSING BENEFIT ADMIN,HOUSING BENEFIT,HASTINGS BOROUGH COUNCIL,2014827391,"113,573.0"
Department for Work and Pensions ,Housing Benefits,14/04/2010,HOUSING BENEFIT ADMIN,HOUSING BENEFIT,WARRINGTON BOROUGH COUNCIL,2014827596,"113,346.0"
Department for Work and Pensions ,Corporate,23/04/2010,STAFF COSTS,MISC RFR 5,ITRAIN EDUCATION LTD,2014943440,"113,197.2"
Department for Work and Pensions ,Housing Benefits,14/04/2010,HOUSING BENEFIT ADMIN,HOUSING BENEFIT,THURROCK BOROUGH COUNCIL,2014827584,"112,753.0"
Department for Work and Pensions ,Jobcentre Plus,20/04/2010,APPS DEV,TPM PROGRAMMES,HP ENTERPRISE SERVICES UK LTD,2014855104,"112,502.4"
Department for Work and Pensions ,Employment Programmes,06/04/2010,YOUNG PERSONS GUARANTEE (YPG) AND FUTURE JOBS FUND (FJF),WWG CORE PROGRAMME,SARINA RUSSO JOB ACCESS GB PTY LTD,2014656043,"112,444.0"
Department for Work and Pensions ,Corporate,29/04/2010,TEMPORARY (TEMP) STAFF COSTS,WWG TOP LEVEL,CAPITA RESOURCING LIMITED,2015041971,"112,139.2"
Department for Work and Pensions ,"Pension, Disability Carers Services",19/04/2010,NETWORK,#N/A,BT SYNTEGRA,2014844602,"112,055.3"
Department for Work and Pensions ,Housing Benefits,14/04/2010,HOUSING BENEFIT ADMIN,HOUSING BENEFIT,GLOUCESTER CITY COUNCIL,2014827377,"111,995.0"
Department for Work and Pensions ,Corporate,12/04/2010,TEMPORARY (TEMP) STAFF COSTS,GROUP FINANCE,CAPITA RESOURCING LIMITED,2014742367,"111,493.0"
Department for Work and Pensions ,Housing Benefits,14/04/2010,HOUSING BENEFIT ADMIN,HOUSING BENEFIT,EAST AYRSHIRE COUNCIL FINANCE DEPARTMENT,2014827345,"111,448.0"
Department for Work and Pensions ,Housing Benefits,14/04/2010,HOUSING BENEFIT ADMIN,HOUSING BENEFIT,HARTLEPOOL BOROUGH COUNCIL,2014827390,"111,096.0"
Department for Work and Pensions ,Corporate,13/04/2010,APPS DEV,SHARED SERVICES ,HP ENTERPRISE SERVICES UK LTD,2014752928,"110,945.8"
Department for Work and Pensions ,Housing Benefits,14/04/2010,HOUSING BENEFIT ADMIN,HOUSING BENEFIT,HEREFORDSHIRE COUNCIL,2014827393,"110,319.0"
Department for Work and Pensions ,Housing Benefits,14/04/2010,HOUSING BENEFIT ADMIN,HOUSING BENEFIT,EAST LINDSEY DISTRICT COUNCIL,2014827352,"110,221.0"
Department for Work and Pensions ,Corporate,01/04/2010,PROFESSIONAL FEES,MISC RFR 5,BMRB INTERNATIONAL LTD,2014641203,"110,000.0"
Department for Work and Pensions ,Employment Programmes,19/04/2010,JSP ESF DEL P COSTS,WWG CORE PROGRAMME,SEETEC BUSINESS TECHNOLOGY CENTRE LTD,2014848615,"109,865.3"
Department for Work and Pensions ,Employment Programmes,06/04/2010,YOUNG PERSONS GUARANTEE (YPG) AND FUTURE JOBS FUND (FJF),WWG CORE PROGRAMME,SARINA RUSSO JOB ACCESS GB PTY LTD,2014656043,"109,778.0"
Department for Work and Pensions ,Corporate,06/04/2010,TEMPORARY (TEMP) STAFF COSTS,CORPORATE IT,CAPITA RESOURCING LIMITED,2014653539,"109,472.4"
Department for Work and Pensions ,Employment Programmes,19/04/2010,JSP ESF DEL P COSTS,WWG CORE PROGRAMME,WORKING LINKS,2014848984,"109,340.0"
Department for Work and Pensions ,Housing Benefits,14/04/2010,HOUSING BENEFIT ADMIN,HOUSING BENEFIT,CITY OF YORK COUNCIL,2014827317,"109,314.0"
Department for Work and Pensions ,Employment Programmes,09/04/2010,YOUNG PERSONS GUARANTEE (YPG) AND FUTURE JOBS FUND (FJF),WWG CORE PROGRAMME,HCT GROUP FUTURE JOBS FUND,2014738037,"109,200.0"
Department for Work and Pensions ,Housing Benefits,14/04/2010,HOUSING BENEFIT ADMIN,HOUSING BENEFIT,BRAINTREE DISTRICT COUNCIL,2014827281,"109,167.0"
Department for Work and Pensions ,"Pension, Disability Carers Services",12/04/2010,ACCOMMODATION,PDCS CORE,TELEREAL TRILLIUM,2014745374,"109,143.3"
Department for Work and Pensions ,Housing Benefits,14/04/2010,HOUSING BENEFIT ADMIN,HOUSING BENEFIT,BRIDGEND COUNTY BOROUGH COUNCIL,2014827284,"109,114.0"
Department for Work and Pensions ,Corporate,26/04/2010,IS/IT,CHANGE MANAGEMENT DIRECTORATE,COMPUTACENTER UK LTD,2014947744,"109,113.5"
Department for Work and Pensions ,Jobcentre Plus,14/04/2010,COMPUTER SERVICES,ISD,ACCENTURE UK LTD,2014765659,"109,035.0"
Department for Work and Pensions ,Employment Programmes,19/04/2010,JSP ESF DEL P COSTS,WWG CORE PROGRAMME,ESG HOLDINGS LTD,2014846359,"108,383.7"
Department for Work and Pensions ,Housing Benefits,14/04/2010,HOUSING BENEFIT ADMIN,HOUSING BENEFIT,WEST DUNBARTONSHIRE COUNCIL,2014827606,"108,268.0"
Department for Work and Pensions ,Corporate,20/04/2010,MARKETING,MISC RFR 5,COI CENTRAL OFFICE OF INFO,2014852230,"107,999.8"
Department for Work and Pensions ,Corporate,20/04/2010,APPS DEV,GROUP FINANCE,HP ENTERPRISE SERVICES UK LTD,2014855104,"107,400.7"
Department for Work and Pensions ,Housing Benefits,14/04/2010,HOUSING BENEFIT ADMIN,HOUSING BENEFIT,LONDON BOROUGH OF RICHMOND UPON THAMES,2014827439,"107,300.0"
Department for Work and Pensions ,Employment Programmes,06/04/2010,YOUNG PERSONS GUARANTEE (YPG) AND FUTURE JOBS FUND (FJF),WWG CORE PROGRAMME,TNG LTD,2014656174,"107,114.0"
Department for Work and Pensions ,Corporate,30/04/2010,PRIME CHARGES,GROUP FINANCE,TELEREAL TRILLIUM,2015099298,"106,780.0"
Department for Work and Pensions ,Employment Programmes,06/04/2010,YOUNG PERSONS GUARANTEE (YPG) AND FUTURE JOBS FUND (FJF),WWG CORE PROGRAMME,DORSET COUNTY COUNCIL,2014653701,"106,600.0"
Department for Work and Pensions ,Corporate,30/04/2010,,GROUP FINANCE,TELEREAL TRILLIUM,2015099300,"106,249.9"
Department for Work and Pensions ,Employment Programmes,21/04/2010,WORKSTEP,WWG CORE PROGRAMME,MERTHYR TYDFIL INSTITUTE FOR THE BLIND,2014931091,"106,245.2"
Department for Work and Pensions ,"Pension, Disability Carers Services",27/04/2010,COMPUTER SERVICES,PDCS CHANGE ,ACCENTURE,2014954614,"106,014.1"
Department for Work and Pensions ,Employment Programmes,09/04/2010,YOUNG PERSONS GUARANTEE (YPG) AND FUTURE JOBS FUND (FJF),WWG CORE PROGRAMME,LONDON BOROUGH OF LEWISHAM SOUTH BANK EMPLOYERS,2014738598,"105,758.4"
Department for Work and Pensions ,Employment Programmes,06/04/2010,YOUNG PERSONS GUARANTEE (YPG) AND FUTURE JOBS FUND (FJF),WWG CORE PROGRAMME,TBG LEARNING LTD,2014656148,"105,111.0"
Department for Work and Pensions ,"Pension, Disability Carers Services",27/04/2010,COMPUTER SERVICES,PDCS CHANGE ,ACCENTURE,2014954614,"104,691.0"
Department for Work and Pensions ,Housing Benefits,14/04/2010,HOUSING BENEFIT ADMIN,HOUSING BENEFIT,SCARBOROUGH BOROUGH COUNCIL,2014827523,"104,362.0"
Department for Work and Pensions ,Jobcentre Plus,16/04/2010,APPS DEV,ISD PROGRAMMES,HP ENTERPRISE SERVICES UK LTD,2014840272,"104,051.2"
Department for Work and Pensions ,Corporate,20/04/2010,NETWORK,CORPORATE IT,BT SYNTEGRA,2014851526,"103,938.8"
Department for Work and Pensions ,Housing Benefits,14/04/2010,HOUSING BENEFIT ADMIN,HOUSING BENEFIT,IPSWICH BOROUGH COUNCIL,2014827402,"103,741.0"
Department for Work and Pensions ,Corporate,30/04/2010,PRIME CHARGES,GROUP FINANCE,TELEREAL TRILLIUM,2015099298,"103,501.6"
Department for Work and Pensions ,"Pension, Disability Carers Services",28/04/2010,COMPUTER SERVICES,PDCS CHANGE ,ACCENTURE UK LTD,2014972719,"103,446.8"
Department for Work and Pensions ,Corporate,16/04/2010,MANAGEMENT CONSULTANCY,MISC RFR 5,DELOITTE & TOUCHE LLP,1004159,"103,387.9"
Department for Work and Pensions ,Jobcentre Plus,29/04/2010,ACCOMMODATION,JOBCENTRE PLUS,TELEREAL TRILLIUM,2015049328,"103,253.0"
Department for Work and Pensions ,Housing Benefits,14/04/2010,HOUSING BENEFIT ADMIN,HOUSING BENEFIT,PRESTON BOROUGH COUNCIL,2014827500,"103,075.0"
Department for Work and Pensions ,Housing Benefits,14/04/2010,HOUSING BENEFIT ADMIN,HOUSING BENEFIT,BATH & NORTH EAST SOMERSET COUNCIL,2014827265,"102,809.0"
Department for Work and Pensions ,Employment Programmes,06/04/2010,YOUNG PERSONS GUARANTEE (YPG) AND FUTURE JOBS FUND (FJF),WWG CORE PROGRAMME,TBG LEARNING LTD,2014656148,"102,667.0"
Department for Work and Pensions ,Corporate,23/04/2010,CAPITAL GRANTS,GROUP FINANCE,H&F CREDIT UNION LTD,2014943364,"102,461.0"
Department for Work and Pensions ,Housing Benefits,14/04/2010,HOUSING BENEFIT ADMIN,HOUSING BENEFIT,ARUN DISTRICT COUNCIL,2014827255,"102,168.0"
Department for Work and Pensions ,Housing Benefits,14/04/2010,HOUSING BENEFIT ADMIN,HOUSING BENEFIT,SWALE BOROUGH COUNCIL,2014827570,"101,716.0"
Department for Work and Pensions ,Housing Benefits,14/04/2010,HOUSING BENEFIT ADMIN,HOUSING BENEFIT,KINGS LYNN & WEST NORFOLK BOROUGH COUNCIL,2014827406,"101,560.0"
Department for Work and Pensions ,Corporate,30/04/2010,PRIME CHARGES,GROUP FINANCE,TELEREAL TRILLIUM,2015099298,"100,824.1"
Department for Work and Pensions ,Corporate,27/04/2010,NETWORK,CORPORATE IT,BT SYNTEGRA,2014955022,"100,462.5"
Department for Work and Pensions ,Employment Programmes,06/04/2010,YOUNG PERSONS GUARANTEE (YPG) AND FUTURE JOBS FUND (FJF),WWG CORE PROGRAMME,GROUNDWORK UK,2014655124,"100,311.0"
Department for Work and Pensions ,Housing Benefits,14/04/2010,HOUSING BENEFIT ADMIN,HOUSING BENEFIT,COLCHESTER BOROUGH COUNCIL,2014827319,"100,055.0"
Department for Work and Pensions ,Corporate,14/04/2010,TEMPORARY (TEMP) STAFF COSTS,GROUP FINANCE,FIRST WESSEX HOUSING GROUP,2014780638,"99,287.3"
Department for Work and Pensions ,Employment Programmes,16/04/2010,YOUNG PERSONS GUARANTEE (YPG) AND FUTURE JOBS FUND (FJF),WWG CORE PROGRAMME,COLCHESTER BOROUGH COUNCIL,2014838519,"98,645.9"
Department for Work and Pensions ,Corporate,23/04/2010,INTERNATIONAL PROGRAMMES,WWG TOP LEVEL,SPECIALIST SCHOOLS & ACADEMIES TRUST,2014945082,"98,502.0"
Department for Work and Pensions ,Employment Programmes,07/04/2010,NDDP,WWG CORE PROGRAMME,SEETEC,2014718894,"98,368.8"
Department for Work and Pensions ,Corporate,29/04/2010,TEMPORARY (TEMP) STAFF COSTS,CORPORATE IT,TAMESIDE MBC,1004192,"97,650.0"
Department for Work and Pensions ,"Pension, Disability Carers Services",15/04/2010,MEDICAL SERVICES,PDCS CORE,ATOS ORIGIN IT SERVICES UK LTD,2014830238,"97,323.2"
Department for Work and Pensions ,Corporate,29/04/2010,COMPUTER SERVICES,CORPORATE IT,XEROX UK LIMITED 3W,2015055494,"97,263.8"
Department for Work and Pensions ,Housing Benefits,14/04/2010,HOUSING BENEFIT ADMIN,HOUSING BENEFIT,WAVENEY DISTRICT COUNCIL,2014827599,"97,072.0"
Department for Work and Pensions ,Housing Benefits,14/04/2010,HOUSING BENEFIT ADMIN,HOUSING BENEFIT,INVERCLYDE DISTRICT COUNCIL,2014827401,"96,959.0"
Department for Work and Pensions ,Employment Programmes,19/04/2010,WORKSTEP,WWG CORE PROGRAMME,NORTHAMPTONSHIRE COUNTY COUNCIL,2014847914,"96,335.6"
Department for Work and Pensions ,Housing Benefits,14/04/2010,HOUSING BENEFIT ADMIN,HOUSING BENEFIT,ROYAL BOROUGH OF KINGSTON UPON THAMES,2014827514,"96,273.0"
Department for Work and Pensions ,Housing Benefits,14/04/2010,HOUSING BENEFIT ADMIN,HOUSING BENEFIT,SOUTH SOMERSET DISTRICT COUNCIL,2014827549,"95,932.0"
Department for Work and Pensions ,Corporate,14/04/2010,EMPLOYMENT ZONES,GROUP FINANCE,NORRIS GREEN COMMUNITY CREDIT UNION,2014808951,"95,642.0"
Department for Work and Pensions ,Corporate,14/04/2010,CAPITAL GRANTS,GROUP FINANCE,NORRIS GREEN COMMUNITY CREDIT UNION,2014808951,"95,335.0"
Department for Work and Pensions ,Housing Benefits,14/04/2010,HOUSING BENEFIT ADMIN,HOUSING BENEFIT,FLINTSHIRE COUNTY COUNCIL,2014827371,"94,926.0"
Department for Work and Pensions ,Employment Programmes,19/04/2010,JSP ESF DEL P COSTS,WWG CORE PROGRAMME,REED IN PARTNERSHIP,2014848265,"94,736.8"
Department for Work and Pensions ,Corporate,14/04/2010,CAPITAL GRANTS,GROUP FINANCE,SEFTON CREDIT UNION LTD,2014821530,"94,538.0"
Department for Work and Pensions ,Jobcentre Plus,27/04/2010,DESKTOP, FINANCE,HP ENTERPRISE SERVICES UK LTD,2014958808,"94,397.3"
Department for Work and Pensions ,Housing Benefits,14/04/2010,HOUSING BENEFIT ADMIN,HOUSING BENEFIT,GREAT YARMOUTH COUNCIL,2014827380,"94,191.0"
Department for Work and Pensions ,Employment Programmes,16/04/2010,ND 18-24 GATEWAY,WWG CORE PROGRAMME,CLAVERHOUSE GROUP,2014838501,"94,182.0"
Department for Work and Pensions ,Corporate,23/04/2010,COMPUTER SERVICES,CORPORATE IT,AMTEC CONSULTING GROUP,2014941417,"94,087.7"
Department for Work and Pensions ,Housing Benefits,14/04/2010,HOUSING BENEFIT ADMIN,HOUSING BENEFIT,BASINGSTOKE DISTRICT COUNCIL,2014827263,"93,841.0"
Department for Work and Pensions ,Jobcentre Plus,16/04/2010,APPS DEV,TPM PROGRAMMES,HP ENTERPRISE SERVICES UK LTD,2014840272,"93,736.5"
Department for Work and Pensions ,Employment Programmes,01/04/2010,YOUNG PERSONS GUARANTEE (YPG) AND FUTURE JOBS FUND (FJF),WWG CORE PROGRAMME,THE SOMERSET COUNTY COUNCIL,2014649759,"93,600.0"
Department for Work and Pensions ,Corporate,20/04/2010,MISCELLANEOUS EXPENDITURE,PENSIONS CLIENT DIRECTORATE,SUFFOLK COUNTY COUNCIL,1004174,"93,550.0"
Department for Work and Pensions ,"Pension, Disability Carers Services",21/04/2010,PUBLICITY,PDCS CORE,COI CENTRAL OFFICE OF INFORMATION,2014874947,"93,513.5"
Department for Work and Pensions ,Housing Benefits,14/04/2010,HOUSING BENEFIT ADMIN,HOUSING BENEFIT,BURNLEY BOROUGH COUNCIL,2014827291,"93,465.0"
Department for Work and Pensions ,Housing Benefits,14/04/2010,HOUSING BENEFIT ADMIN,HOUSING BENEFIT,HUNTINGDON DISTRICT COUNCIL,2014827399,"93,448.0"
Department for Work and Pensions ,Corporate,28/04/2010,COMPUTER SERVICES,CORPORATE IT,AMTEC CONSULTING GROUP,2014973081,"93,300.0"
Department for Work and Pensions ,Housing Benefits,13/04/2010,HOUSING BENEFIT ADMIN,HOUSING BENEFIT,FDS INTERNATIONAL LTD,2014752349,"92,910.8"
Department for Work and Pensions ,Housing Benefits,14/04/2010,HOUSING BENEFIT ADMIN,HOUSING BENEFIT,LANCASTER CITY COUNCIL,2014827410,"92,695.0"
Department for Work and Pensions ,Corporate,14/04/2010,EMPLOYMENT ZONES,GROUP FINANCE,SHEFFIELD CREDIT UNION,2014821561,"92,601.0"
Department for Work and Pensions ,Corporate,22/04/2010,COMPUTER SERVICES,GROUP FINANCE,SIEMENS IT SOLUTIONS & SERVICES LTD,2014938239,"92,482.5"
Department for Work and Pensions ,Corporate,12/04/2010,STAFF COSTS,MISC RFR 5,ASE CORPORATE EYECARE LTD,2014742042,"92,478.9"
Department for Work and Pensions ,Housing Benefits,14/04/2010,HOUSING BENEFIT ADMIN,HOUSING BENEFIT,PERTH & KINROSS COUNCIL,2014827494,"92,250.0"
Department for Work and Pensions ,Housing Benefits,14/04/2010,HOUSING BENEFIT ADMIN,HOUSING BENEFIT,OXFORD CITY COUNCIL,2014827491,"92,017.0"
Department for Work and Pensions ,Corporate,15/04/2010,MANAGEMENT CONSULTANCY,CORPORATE IT,PRICEWATERHOUSE COOPERS LLP,2014834308,"92,000.0"
Department for Work and Pensions ,Jobcentre Plus,12/04/2010,STAFF COSTS, ESAP PROGRAMMES,PREMIER PARTNERSHIP,2014746068,"91,862.4"
Department for Work and Pensions ,"Pension, Disability Carers Services",16/04/2010,APPS DEV,PDCS CHANGE ,HP ENTERPRISE SERVICES UK LTD,2014840272,"91,854.5"
Department for Work and Pensions ,Corporate,13/04/2010,TOTAL SUPPLIES & SERVICES,GROUP FINANCE,ROYAL MAIL GROUP PLC,2014757346,"91,006.6"
Department for Work and Pensions ,Employment Programmes,19/04/2010,YOUNG PERSONS GUARANTEE (YPG) AND FUTURE JOBS FUND (FJF),WWG CORE PROGRAMME,NOVAS SCARMAN GROUP,2014847919,"91,000.0"
Department for Work and Pensions ,Employment Programmes,28/04/2010,YOUNG PERSONS GUARANTEE (YPG) AND FUTURE JOBS FUND (FJF),WWG CORE PROGRAMME,SOLIHULL METROPOLITAN BOROUGH COUNCIL,2015030879,"91,000.0"
Department for Work and Pensions ,Jobcentre Plus,06/04/2010,JSP ESF DEL P COSTS,JOBCENTRE PLUS,TNG WORKZONE LTD,2014656175,"90,750.0"
Department for Work and Pensions ,Housing Benefits,14/04/2010,HOUSING BENEFIT ADMIN,HOUSING BENEFIT,DARLINGTON BOROUGH COUNCIL,2014827333,"90,659.0"
Department for Work and Pensions ,Housing Benefits,14/04/2010,HOUSING BENEFIT ADMIN,HOUSING BENEFIT,PENDLE BOROUGH COUNCIL,2014827493,"90,567.0"
Department for Work and Pensions ,Employment Programmes,12/04/2010,WORKSTEP,WWG CORE PROGRAMME,ENHAM,2014744282,"90,281.3"
Department for Work and Pensions ,Employment Programmes,21/04/2010,YOUNG PERSONS GUARANTEE (YPG) AND FUTURE JOBS FUND (FJF),WWG CORE PROGRAMME,HAMPSHIRE COUNTY COUNCIL,2014886888,"90,257.9"
Department for Work and Pensions ,Housing Benefits,14/04/2010,HOUSING BENEFIT ADMIN,HOUSING BENEFIT,EASTBOURNE BOROUGH COUNCIL,2014827358,"90,212.0"
Department for Work and Pensions ,Housing Benefits,14/04/2010,HOUSING BENEFIT ADMIN,HOUSING BENEFIT,NEW FOREST DISTRICT COUNCIL,2014827464,"89,980.0"
Department for Work and Pensions ,Housing Benefits,14/04/2010,HOUSING BENEFIT ADMIN,HOUSING BENEFIT,POOLE BOROUGH COUNCIL,2014827497,"89,656.0"
Department for Work and Pensions ,Employment Programmes,23/04/2010,WORKSTEP,WWG CORE PROGRAMME,THE PAPWORTH TRUST,2014945236,"89,627.8"
Department for Work and Pensions ,Employment Programmes,12/04/2010,EP GENERIC PROVIDER PAYMENTS,WWG CORE PROGRAMME,REED IN PARTNERSHIP,2014746254,"89,486.3"
Department for Work and Pensions ,Corporate,14/04/2010,CAPITAL GRANTS,GROUP FINANCE,STREET UK LTD,2014822003,"89,467.0"
Department for Work and Pensions ,Jobcentre Plus,13/04/2010,APPS DEV,ISD,HP ENTERPRISE SERVICES UK LTD,2014752927,"89,447.8"
Department for Work and Pensions ,Corporate,14/04/2010,NETWORK,CORPORATE IT,BT SYNTEGRA,2014767397,"89,300.0"
Department for Work and Pensions ,Corporate,26/04/2010,EMPLOYMENT ZONES,WWG TOP LEVEL,COI CENTRAL OFFICE OF INFORMATION,2014947737,"89,180.8"
Department for Work and Pensions ,Housing Benefits,14/04/2010,HOUSING BENEFIT ADMIN,HOUSING BENEFIT,NUNEATON BOROUGH COUNCIL,2014827487,"88,903.0"
Department for Work and Pensions ,Housing Benefits,14/04/2010,HOUSING BENEFIT ADMIN,HOUSING BENEFIT,SOUTH AYRSHIRE COUNCIL,2014827535,"88,629.0"
Department for Work and Pensions ,Corporate,14/04/2010,EMPLOYMENT ZONES,GROUP FINANCE,SALFORD MONEY LINE,2014821411,"88,284.0"
Department for Work and Pensions ,Employment Programmes,13/04/2010,WORKSTEP,WWG CORE PROGRAMME,LEICESTERSHIRE COUNTY COUNCIL,2014755093,"88,008.8"
Department for Work and Pensions ,Corporate,29/04/2010,MISCELLANEOUS EXPENDITURE,PENSIONS CLIENT DIRECTORATE,SOUTHAMPTON CITY COUNCIL,1004191,"87,100.0"
Department for Work and Pensions ,Housing Benefits,14/04/2010,HOUSING BENEFIT ADMIN,HOUSING BENEFIT,CANTERBURY CITY COUNCIL,2014827297,"87,010.0"
Department for Work and Pensions ,Corporate,20/04/2010,MANAGEMENT CONSULTANCY,CORPORATE IT,HUMAN SYSTEMS EUROPE LTD,2014855110,"87,000.0"
Department for Work and Pensions ,Corporate,19/04/2010,TEMPORARY (TEMP) STAFF COSTS,CORPORATE IT,CAPITA RESOURCING LIMITED,2014844791,"86,997.7"
Department for Work and Pensions ,Housing Benefits,14/04/2010,HOUSING BENEFIT ADMIN,HOUSING BENEFIT,ASHFIELD DISTRICT COUNCIL,2014827256,"86,990.0"
Department for Work and Pensions ,Corporate,08/04/2010,MARKETING,MISC RFR 5,XEROX UK LIMITED 3W,2014733187,"86,890.5"
Department for Work and Pensions ,Corporate,15/04/2010,COMPUTER SERVICES,CHANGE MANAGEMENT DIRECTORATE,COMPUTACENTER UK LTD,2014830785,"86,681.5"
Department for Work and Pensions ,Corporate,30/04/2010,COMPUTER SERVICES,CORPORATE IT,ATOS ORIGIN IT SERVICES UK LTD,2015064116,"86,431.7"
Department for Work and Pensions ,Housing Benefits,14/04/2010,HOUSING BENEFIT ADMIN,HOUSING BENEFIT,WYCOMBE DISTRICT COUNCIL,2014827625,"86,428.0"
Department for Work and Pensions ,Employment Programmes,06/04/2010,YOUNG PERSONS GUARANTEE (YPG) AND FUTURE JOBS FUND (FJF),WWG CORE PROGRAMME,A4E LTD,2014653303,"86,400.0"
Department for Work and Pensions ,Employment Programmes,14/04/2010,YOUNG PERSONS GUARANTEE (YPG) AND FUTURE JOBS FUND (FJF),WWG CORE PROGRAMME,CHESHIRE WEST & CHESTER COUNCIL,2014772051,"86,400.0"
Department for Work and Pensions ,Employment Programmes,06/04/2010,YOUNG PERSONS GUARANTEE (YPG) AND FUTURE JOBS FUND (FJF),WWG CORE PROGRAMME,SARINA RUSSO JOB ACCESS GB PTY LTD,2014656043,"86,111.0"
Department for Work and Pensions ,Corporate,14/04/2010,CAPITAL GRANTS,GROUP FINANCE,PLOUGH & SHARE CREDIT UNION,2014811415,"86,008.0"
Department for Work and Pensions ,Housing Benefits,14/04/2010,HOUSING BENEFIT ADMIN,HOUSING BENEFIT,CHERWELL DISTRICT COUNCIL,2014827306,"85,571.0"
Department for Work and Pensions ,Housing Benefits,14/04/2010,HOUSING BENEFIT ADMIN,HOUSING BENEFIT,CHELMSFORD BOROUGH COUNCIL,2014827304,"85,486.0"
Department for Work and Pensions ,Housing Benefits,14/04/2010,HOUSING BENEFIT ADMIN,HOUSING BENEFIT,SCOTTISH BORDERS COUNCIL,2014827524,"85,328.0"
Department for Work and Pensions ,Housing Benefits,14/04/2010,HOUSING BENEFIT ADMIN,HOUSING BENEFIT,MAIDSTONE BOROUGH COUNCIL,2014827446,"85,164.0"
Department for Work and Pensions ,Housing Benefits,14/04/2010,HOUSING BENEFIT ADMIN,HOUSING BENEFIT,CHESTERFIELD BOROUGH COUNCIL,2014827309,"85,112.0"
Department for Work and Pensions ,Jobcentre Plus,15/04/2010,COMPUTER SERVICES,ISD,ATOS ORIGIN IT SERVICES UK LTD,2014830238,"85,008.0"
Department for Work and Pensions ,Corporate,14/04/2010,CAPITAL GRANTS,GROUP FINANCE,TOWER HAMLETS COMMUNITY CREDIT UNION,2014824786,"85,000.0"
Department for Work and Pensions ,Corporate,01/04/2010,COMPUTER SERVICES,SHARED SERVICES ,ACCENTURE UK LTD,2014640866,"84,810.4"
Department for Work and Pensions ,Housing Benefits,14/04/2010,HOUSING BENEFIT ADMIN,HOUSING BENEFIT,MANSFIELD DISTRICT COUNCIL,2014827450,"84,753.0"
Department for Work and Pensions ,Employment Programmes,28/04/2010,YOUNG PERSONS GUARANTEE (YPG) AND FUTURE JOBS FUND (FJF),WWG CORE PROGRAMME,INSPIRE FUTURES LTD,2014992669,"84,546.8"
Department for Work and Pensions ,Employment Programmes,13/04/2010,YOUNG PERSONS GUARANTEE (YPG) AND FUTURE JOBS FUND (FJF),WWG CORE PROGRAMME,RCT HOMES,2014757276,"84,500.0"
Department for Work and Pensions ,Housing Benefits,14/04/2010,HOUSING BENEFIT ADMIN,HOUSING BENEFIT,DACORUM BOROUGH COUNCIL,2014827332,"84,358.0"
Department for Work and Pensions ,Housing Benefits,14/04/2010,HOUSING BENEFIT ADMIN,HOUSING BENEFIT,TORFAEN BOROUGH COUNCIL,2014827587,"84,272.0"
Department for Work and Pensions ,Jobcentre Plus,19/04/2010,ACCOMMODATION,TPMD,TELEREAL TRILLIUM,2014847399,"83,967.0"
Department for Work and Pensions ,Housing Benefits,14/04/2010,HOUSING BENEFIT ADMIN,HOUSING BENEFIT,WEST BERKSHIRE COUNCIL,2014827603,"83,927.0"
Department for Work and Pensions ,Housing Benefits,14/04/2010,HOUSING BENEFIT ADMIN,HOUSING BENEFIT,PEMBROKESHIRE COUNTY COUNCIL,2014827492,"83,843.0"
Department for Work and Pensions ,Housing Benefits,14/04/2010,HOUSING BENEFIT ADMIN,HOUSING BENEFIT,CRAWLEY BOROUGH COUNCIL,2014827330,"83,771.0"
Department for Work and Pensions ,Housing Benefits,14/04/2010,HOUSING BENEFIT ADMIN,HOUSING BENEFIT,SHEPWAY DISTRICT COUNCIL,2014827530,"83,516.0"
Department for Work and Pensions ,Corporate,22/04/2010,APPS DEV,CHANGE MANAGEMENT DIRECTORATE,HP ENTERPRISE SERVICES UK LTD,2014935691,"83,447.6"
Department for Work and Pensions ,Corporate,07/04/2010,COMPUTER SERVICES,CORPORATE IT,ATOS ORIGIN IT SERVICES UK LTD,2014664044,"83,061.1"
Department for Work and Pensions ,Housing Benefits,14/04/2010,HOUSING BENEFIT ADMIN,HOUSING BENEFIT,AYLESBURY VALE DISTRICT COUNCIL,2014827258,"82,876.0"
Department for Work and Pensions ,Corporate,14/04/2010,CAPITAL GRANTS,GROUP FINANCE,SHEFFIELD CREDIT UNION,2014821561,"82,862.0"
Department for Work and Pensions ,Corporate,22/04/2010,IS/IT,MISC RFR 5,COMPUTACENTER UK LTD,2014933821,"82,743.5"
Department for Work and Pensions ,Housing Benefits,14/04/2010,HOUSING BENEFIT ADMIN,HOUSING BENEFIT,DOVER DISTRICT COUNCIL,2014827340,"82,732.0"
Department for Work and Pensions ,Housing Benefits,14/04/2010,HOUSING BENEFIT ADMIN,HOUSING BENEFIT,GEDLING BOROUGH COUNCIL,2014827376,"82,667.0"
Department for Work and Pensions ,Housing Benefits,14/04/2010,HOUSING BENEFIT ADMIN,HOUSING BENEFIT,GUILDFORD BOROUGH COUNCIL,2014827381,"82,366.0"
Department for Work and Pensions ,Corporate,09/04/2010,MANAGEMENT CONSULTANCY,CORPORATE IT,VEGA GROUP PLC,2014739732,"82,033.1"
Department for Work and Pensions ,Housing Benefits,14/04/2010,HOUSING BENEFIT ADMIN,HOUSING BENEFIT,WREXHAM COUNTY BOROUGH COUNCIL,2014827623,"81,833.0"
Department for Work and Pensions ,Housing Benefits,14/04/2010,HOUSING BENEFIT ADMIN,HOUSING BENEFIT,CONWY COUNTY BOROUGH COUNCIL,2014827321,"81,561.0"
Department for Work and Pensions ,Housing Benefits,14/04/2010,HOUSING BENEFIT ADMIN,HOUSING BENEFIT,WYRE FOREST DISTRICT COUNCIL,2014827627,"81,314.0"
Department for Work and Pensions ,Housing Benefits,14/04/2010,HOUSING BENEFIT ADMIN,HOUSING BENEFIT,TEIGNBRIDGE DISTRICT COUNCIL,2014827577,"81,249.0"
Department for Work and Pensions ,Housing Benefits,14/04/2010,HOUSING BENEFIT ADMIN,HOUSING BENEFIT,BRECKLAND DISTRICT COUNCIL,2014827282,"81,244.0"
Department for Work and Pensions ,Jobcentre Plus,22/04/2010,PRINTING STATIONERY IT & CONSUMABLES,TPMD,XEROX UK LIMITED 3W,2014938781,"81,084.1"
Department for Work and Pensions ,Housing Benefits,14/04/2010,HOUSING BENEFIT ADMIN,HOUSING BENEFIT,CHARNWOOD BOROUGH COUNCIL,2014827303,"80,708.0"
Department for Work and Pensions ,Employment Programmes,28/04/2010,YOUNG PERSONS GUARANTEE (YPG) AND FUTURE JOBS FUND (FJF),WWG CORE PROGRAMME,CONSTRUCTION WORKS HULL LTD,2014979621,"80,693.0"
Department for Work and Pensions ,Corporate,14/04/2010,APPS DEV,GROUP FINANCE,HP ENTERPRISE SERVICES UK LTD,2014784199,"80,588.6"
Department for Work and Pensions ,Housing Benefits,14/04/2010,HOUSING BENEFIT ADMIN,HOUSING BENEFIT,HAVANT BOROUGH COUNCIL,2014827392,"80,018.0"
Department for Work and Pensions ,Housing Benefits,14/04/2010,HOUSING BENEFIT ADMIN,HOUSING BENEFIT,NEWCASTLE UNDER LYME BOROUGH COUNCIL,2014827467,"79,579.0"
Department for Work and Pensions ,Housing Benefits,14/04/2010,HOUSING BENEFIT ADMIN,HOUSING BENEFIT,VALE OF GLAMORGAN COUNCIL,2014827592,"79,455.0"
Department for Work and Pensions ,Corporate,21/04/2010,MISCELLANEOUS EXPENDITURE,WWG TOP LEVEL,CENTRE FOR ECONOMIC & SOCIAL INCLUSION,2014874718,"79,451.0"
Department for Work and Pensions ,Employment Programmes,13/04/2010,YOUNG PERSONS GUARANTEE (YPG) AND FUTURE JOBS FUND (FJF),WWG CORE PROGRAMME,WAKEFIELD METROPLITAN DISTRICT COUNCIL,2014759115,"79,303.9"
Department for Work and Pensions ,Corporate,26/04/2010,ACCOMMODATION,GROUP FINANCE,TELEREAL TRILLIUM,2014950766,"79,198.6"
Department for Work and Pensions ,Housing Benefits,14/04/2010,HOUSING BENEFIT ADMIN,HOUSING BENEFIT,NORTH HERTFORDSHIRE DISTRICT COUNCIL,2014827474,"79,174.0"
Department for Work and Pensions ,Corporate,16/04/2010,INTERNATIONAL PROGRAMMES,WWG TOP LEVEL,UNIVERSITY OF MANCHESTER,548203,"79,114.4"
Department for Work and Pensions ,Corporate,08/04/2010,EARLY RELEASE,GROUP FINANCE,BALFOUR BEATTY WORKPLACE LTD,2014728556,"78,989.8"
Department for Work and Pensions ,Housing Benefits,14/04/2010,HOUSING BENEFIT ADMIN,HOUSING BENEFIT,HARROGATE BOROUGH COUNCIL,2014827388,"78,900.0"
Department for Work and Pensions ,Corporate,13/04/2010,APPS DEV,MISC RFR 5,HP ENTERPRISE SERVICES UK LTD,2014752927,"78,633.9"
Department for Work and Pensions ,Corporate,16/04/2010,PUBLICITY,MISC RFR 5,NLA NEWS PAPER LICENSING AGENCY,2014841523,"78,374.0"
Department for Work and Pensions ,Housing Benefits,14/04/2010,HOUSING BENEFIT ADMIN,HOUSING BENEFIT,AMBER VALLEY BOROUGH COUNCIL,2014827252,"78,207.0"
Department for Work and Pensions ,Corporate,14/04/2010,NETWORK,CHANGE MANAGEMENT DIRECTORATE,BT SYNTEGRA,2014767397,"78,201.8"
Department for Work and Pensions ,Housing Benefits,14/04/2010,HOUSING BENEFIT ADMIN,HOUSING BENEFIT,GWYNEDD COUNCIL,2014827382,"78,115.0"
Department for Work and Pensions ,Housing Benefits,14/04/2010,HOUSING BENEFIT ADMIN,HOUSING BENEFIT,HYNDBURN BOROUGH COUNCIL,2014827400,"78,005.0"
Department for Work and Pensions ,Corporate,21/04/2010,PUBLICITY,MISC RFR 5,START CREATIVE LTD,2014925038,"77,970.0"
Department for Work and Pensions ,Corporate,29/04/2010,COMPUTER SERVICES,GROUP FINANCE,SIEMENS IT SOLUTIONS & SERVICES LTD,2015054311,"77,880.0"
Department for Work and Pensions ,Corporate,30/04/2010,PRIME CHARGES,GROUP FINANCE,TELEREAL TRILLIUM,2015099298,"77,478.1"
Department for Work and Pensions ,Housing Benefits,14/04/2010,HOUSING BENEFIT ADMIN,HOUSING BENEFIT,CHELTENHAM BOROUGH COUNCIL,2014827305,"77,454.0"
Department for Work and Pensions ,Corporate,30/04/2010,TEMPORARY (TEMP) STAFF COSTS,GROUP FINANCE,CAPITA RESOURCING LIMITED,2015070092,"77,050.5"
Department for Work and Pensions ,Employment Programmes,26/04/2010,YOUNG PERSONS GUARANTEE (YPG) AND FUTURE JOBS FUND (FJF),WWG CORE PROGRAMME,NORTHAMPTONSHIRE ENTERPRISE LTD,2014951256,"77,000.0"
Department for Work and Pensions ,Housing Benefits,14/04/2010,HOUSING BENEFIT ADMIN,HOUSING BENEFIT,FENLAND DISTRICT COUNCIL,2014827369,"76,681.0"
Department for Work and Pensions ,Employment Programmes,21/04/2010,WORKSTEP,WWG CORE PROGRAMME,NOTTINGHAMSHIRE CC,2014911946,"76,644.3"
Department for Work and Pensions ,Housing Benefits,14/04/2010,HOUSING BENEFIT ADMIN,HOUSING BENEFIT,EAST STAFFORDSHIRE DISTRICT COUNCIL,2014827357,"76,561.0"
Department for Work and Pensions ,Housing Benefits,14/04/2010,HOUSING BENEFIT ADMIN,HOUSING BENEFIT,WYRE BOROUGH COUNCIL,2014827626,"76,506.0"
Department for Work and Pensions ,Housing Benefits,14/04/2010,HOUSING BENEFIT ADMIN,HOUSING BENEFIT,HARLOW DISTRICT COUNCIL,2014827387,"76,367.0"
Department for Work and Pensions ,Jobcentre Plus,19/04/2010,STAFF COSTS,JOBCENTRE PLUS,THE LEADERSHIP TRUST TRAINING LTD,2014848822,"76,155.8"
Department for Work and Pensions ,Housing Benefits,14/04/2010,HOUSING BENEFIT ADMIN,HOUSING BENEFIT,BASSETLAW DISTRICT COUNCIL,2014827264,"76,153.0"
Department for Work and Pensions ,Corporate,14/04/2010,APPS DEV,MISC RFR 5,HP ENTERPRISE SERVICES UK LTD,2014784199,"76,013.7"
Department for Work and Pensions ,Housing Benefits,14/04/2010,HOUSING BENEFIT ADMIN,HOUSING BENEFIT,EREWASH BOROUGH COUNCIL,2014827365,"75,994.0"
Department for Work and Pensions ,Corporate,01/04/2010,CAPITAL GRANTS,GROUP FINANCE,NORFOLK CREDIT UNION LTD,2014647546,"75,751.0"
Department for Work and Pensions ,Employment Programmes,16/04/2010,YOUNG PERSONS GUARANTEE (YPG) AND FUTURE JOBS FUND (FJF),WWG CORE PROGRAMME,LEICESTER CITY COUNCIL,2014840987,"75,750.0"
Department for Work and Pensions ,Housing Benefits,14/04/2010,HOUSING BENEFIT ADMIN,HOUSING BENEFIT,LINCOLN CITY COUNCIL,2014827415,"75,622.0"
Department for Work and Pensions ,Corporate,21/04/2010,TEMPORARY (TEMP) STAFF COSTS,GROUP FINANCE,TOYNBEE HALL,2014927849,"75,287.0"
Department for Work and Pensions ,Corporate,19/04/2010,COMPUTER SERVICES,MISC RFR 5,EVOLVE BUSINESS CONSULTANCY,441902,"75,127.5"
Department for Work and Pensions ,Housing Benefits,14/04/2010,HOUSING BENEFIT ADMIN,HOUSING BENEFIT,WORTHING BOROUGH COUNCIL,2014827622,"74,846.0"
Department for Work and Pensions ,Housing Benefits,14/04/2010,HOUSING BENEFIT ADMIN,HOUSING BENEFIT,EXETER CITY COUNCIL,2014827366,"74,806.0"
Department for Work and Pensions ,Employment Programmes,28/04/2010,WORKSTEP,WWG CORE PROGRAMME,CAPABILITY SCOTLAND,2014979274,"74,725.3"
Department for Work and Pensions ,Corporate,22/04/2010,IS/IT,MISC RFR 5,SKILLSOFT UK LTD,2014938274,"74,577.2"
Department for Work and Pensions ,Corporate,14/04/2010,EMPLOYMENT ZONES,GROUP FINANCE,CLOCKWISE LEICESTER CREDIT UNION,2014772217,"74,551.0"
Department for Work and Pensions ,Housing Benefits,14/04/2010,HOUSING BENEFIT ADMIN,HOUSING BENEFIT,ANGUS COUNCIL,2014827253,"74,533.0"
Department for Work and Pensions ,Housing Benefits,14/04/2010,HOUSING BENEFIT ADMIN,HOUSING BENEFIT,SOUTH KESTEVEN DISTRICT COUNCIL,2014827542,"73,880.0"
Department for Work and Pensions ,Jobcentre Plus,30/04/2010,APPS DEV,ISD,HP ENTERPRISE SERVICES UK LTD,2015082660,"73,840.6"
Department for Work and Pensions ,Employment Programmes,14/04/2010,YOUNG PERSONS GUARANTEE (YPG) AND FUTURE JOBS FUND (FJF),WWG CORE PROGRAMME,GROUNDWORK WEST MIDLANDS,2014782598,"73,800.0"
Department for Work and Pensions ,Corporate,14/04/2010,EMPLOYMENT ZONES,GROUP FINANCE,RIVERSIDE HOUSING,2014814120,"73,571.0"
Department for Work and Pensions ,Housing Benefits,14/04/2010,HOUSING BENEFIT ADMIN,HOUSING BENEFIT,POWYS COUNTY COUNCIL,2014827499,"73,529.0"
Department for Work and Pensions ,Housing Benefits,14/04/2010,HOUSING BENEFIT ADMIN,HOUSING BENEFIT,SEDGEMOOR DISTRICT COUNCIL,2014827525,"73,043.0"
Department for Work and Pensions ,Housing Benefits,14/04/2010,HOUSING BENEFIT ADMIN,HOUSING BENEFIT,WARWICK DISTRICT COUNCIL,2014827597,"72,993.0"
Department for Work and Pensions ,Housing Benefits,14/04/2010,HOUSING BENEFIT ADMIN,HOUSING BENEFIT,TAUNTON DEANE BOROUGH COUNCIL,2014827576,"72,812.0"
Department for Work and Pensions ,Housing Benefits,14/04/2010,HOUSING BENEFIT ADMIN,HOUSING BENEFIT,WEST LANCASHIRE DISTRICT COUNCIL,2014827607,"72,811.0"
Department for Work and Pensions ,Employment Programmes,08/04/2010,YOUNG PERSONS GUARANTEE (YPG) AND FUTURE JOBS FUND (FJF),WWG CORE PROGRAMME,GREEN WORKS,2014730582,"72,800.0"
Department for Work and Pensions ,Corporate,29/04/2010,POSTAGE,GROUP FINANCE,TNT UK LTD,2015055056,"72,793.5"
Department for Work and Pensions ,Corporate,30/04/2010,COMPUTER SERVICES,CORPORATE IT,ATOS ORIGIN IT SERVICES UK LTD,2015064116,"72,413.6"
Department for Work and Pensions ,Corporate,01/04/2010,COMMUNICATIONS & PUBLICITY,MISC RFR 5,COI CENTRAL OFFICE OF INFO,2014641856,"72,240.0"
Department for Work and Pensions ,Housing Benefits,14/04/2010,HOUSING BENEFIT ADMIN,HOUSING BENEFIT,CAMBRIDGE CITY COUNCIL,2014827295,"71,908.0"
Department for Work and Pensions ,Housing Benefits,14/04/2010,HOUSING BENEFIT ADMIN,HOUSING BENEFIT,GRAVESHAM BOROUGH COUNCIL,2014827379,"71,733.0"
Department for Work and Pensions ,Housing Benefits,14/04/2010,HOUSING BENEFIT ADMIN,HOUSING BENEFIT,BROXTOWE BOROUGH COUNCIL,2014827290,"71,621.0"
Department for Work and Pensions ,Housing Benefits,14/04/2010,HOUSING BENEFIT ADMIN,HOUSING BENEFIT,CANNOCK CHASE DISTRICT COUNCIL,2014827296,"71,539.0"
Department for Work and Pensions ,Corporate,20/04/2010,APPS DEV,CHANGE MANAGEMENT DIRECTORATE,HP ENTERPRISE SERVICES UK LTD,2014855104,"71,205.5"
Department for Work and Pensions ,Employment Programmes,22/04/2010,WORKSTEP,WWG CORE PROGRAMME,PURE INNOVATIONS,2014937608,"71,149.5"
Department for Work and Pensions ,Corporate,30/04/2010,PRIME CHARGES,GROUP FINANCE,TELEREAL TRILLIUM,2015099298,"71,125.7"
Department for Work and Pensions ,Housing Benefits,14/04/2010,HOUSING BENEFIT ADMIN,HOUSING BENEFIT,HERTSMERE BOROUGH COUNCIL,2014827394,"71,022.0"
Department for Work and Pensions ,Housing Benefits,14/04/2010,HOUSING BENEFIT ADMIN,HOUSING BENEFIT,DENBIGHSHIRE COUNTY COUNCIL,2014827336,"70,973.0"
Department for Work and Pensions ,Employment Programmes,19/04/2010,YOUNG PERSONS GUARANTEE (YPG) AND FUTURE JOBS FUND (FJF),WWG CORE PROGRAMME,MIDDLESBROUGH COUNCIL,2014847759,"70,950.0"
Department for Work and Pensions ,Employment Programmes,28/04/2010,GRANTS IN AID TO EXECUTIVE NDPBs,WWG CORE PROGRAMME,GLASGOW CITY OF COMMERCE,2014990316,"70,939.0"
Department for Work and Pensions ,Corporate,27/04/2010,EMPLOYMENT ZONES,GROUP FINANCE,DERWENT & SOLWAY HOUSING ASSOCIATION,2014956559,"70,628.0"
Department for Work and Pensions ,Corporate,21/04/2010,EMPLOYMENT ZONES,GROUP FINANCE,ENTERPRISE CREDIT UNION,2014882620,"70,463.0"
Department for Work and Pensions ,Corporate,21/04/2010,COMPUTER SERVICES,CORPORATE IT,CABLE & WIRELESS PLC,2014874631,"69,870.4"
Department for Work and Pensions ,Housing Benefits,14/04/2010,HOUSING BENEFIT ADMIN,HOUSING BENEFIT,WELWYN HATFIELD DISTRICT COUNCIL,2014827602,"69,302.0"
Department for Work and Pensions ,Corporate,20/04/2010,MISC CAPITAL,GROUP FINANCE,HP ENTERPRISE SERVICES UK LTD,2014855104,"69,270.9"
Department for Work and Pensions ,Employment Programmes,20/04/2010,YOUNG PERSONS GUARANTEE (YPG) AND FUTURE JOBS FUND (FJF),WWG CORE PROGRAMME,THE FOOTBALL LEAGUE COMMUNITY LTD,2014861309,"69,000.0"
Department for Work and Pensions ,Employment Programmes,12/04/2010,YOUNG PERSONS GUARANTEE (YPG) AND FUTURE JOBS FUND (FJF),WWG CORE PROGRAMME,BOLSOVER DISTRICT COUNCIL,2014742147,"68,900.0"
Department for Work and Pensions ,Housing Benefits,14/04/2010,HOUSING BENEFIT ADMIN,HOUSING BENEFIT,REIGATE & BANSTEAD BOROUGH COUNCIL,2014827504,"68,821.0"
Department for Work and Pensions ,Corporate,19/04/2010,TOTAL SUPPLIES & SERVICES,GROUP FINANCE,HM REVENUE & CUSTOMS,2014846641,"68,676.0"
Department for Work and Pensions ,Employment Programmes,07/04/2010,NDDP,WWG CORE PROGRAMME,SENCIA LTD,2014718896,"68,526.3"
Department for Work and Pensions ,Housing Benefits,14/04/2010,HOUSING BENEFIT ADMIN,HOUSING BENEFIT,BLAENAU GWENT COUNTY BOROUGH COUNCIL,2014827271,"68,398.0"
Department for Work and Pensions ,Corporate,26/04/2010,CAPITAL GRANTS,GROUP FINANCE,NORRIS GREEN COMMUNITY CREDIT UNION,2014951254,"68,363.0"
Department for Work and Pensions ,Jobcentre Plus,12/04/2010,ACCOMMODATION, ESAP PROGRAMMES,TELEREAL TRILLIUM,2014745374,"68,314.8"
Department for Work and Pensions ,Housing Benefits,14/04/2010,HOUSING BENEFIT ADMIN,HOUSING BENEFIT,ARGYLL & BUTE COUNCIL,2014827254,"68,314.0"
Department for Work and Pensions ,Housing Benefits,14/04/2010,HOUSING BENEFIT ADMIN,HOUSING BENEFIT,NORTH DEVON DISTRICT COUNCIL,2014827470,"68,168.0"
Department for Work and Pensions ,Corporate,21/04/2010,COMPUTER SERVICES,CHANGE MANAGEMENT DIRECTORATE,BT SYNTEGRA,2014870017,"67,592.5"
Department for Work and Pensions ,Housing Benefits,14/04/2010,HOUSING BENEFIT ADMIN,HOUSING BENEFIT,WINDSOR & MAIDENHEAD BOROUGH COUNCIL,2014827616,"67,397.0"
Department for Work and Pensions ,Housing Benefits,14/04/2010,HOUSING BENEFIT ADMIN,HOUSING BENEFIT,EAST DEVON DISTRICT COUNCIL,2014827347,"67,273.0"
Department for Work and Pensions ,Corporate,01/04/2010,COMPUTER SERVICES,CORPORATE IT,ATOS ORIGIN IT SERVICES UK LTD,2014641000,"67,200.0"
Department for Work and Pensions ,Employment Programmes,26/04/2010,YOUNG PERSONS GUARANTEE (YPG) AND FUTURE JOBS FUND (FJF),WWG CORE PROGRAMME,BRISTOL CITY COUNCIL,2014947472,"67,200.0"
Department for Work and Pensions ,Housing Benefits,14/04/2010,HOUSING BENEFIT ADMIN,HOUSING BENEFIT,NORTH NORFOLK DISTRICT COUNCIL,2014827478,"67,074.0"
Department for Work and Pensions ,Housing Benefits,14/04/2010,HOUSING BENEFIT ADMIN,HOUSING BENEFIT,BROXBOURNE BOROUGH COUNCIL,2014827289,"67,028.0"
Department for Work and Pensions ,Corporate,21/04/2010,CAPITAL GRANTS,GROUP FINANCE,SALFORD MONEY LINE,2014924483,"66,926.0"
Department for Work and Pensions ,Housing Benefits,14/04/2010,HOUSING BENEFIT ADMIN,HOUSING BENEFIT,STROUD DISTRICT COUNCIL,2014827566,"66,743.0"
Department for Work and Pensions ,Housing Benefits,14/04/2010,HOUSING BENEFIT ADMIN,HOUSING BENEFIT,WORCESTER CITY COUNCIL,2014827621,"66,530.0"
Department for Work and Pensions ,Housing Benefits,14/04/2010,HOUSING BENEFIT ADMIN,HOUSING BENEFIT,ASHFORD BOROUGH COUNCIL,2014827257,"66,491.0"
Department for Work and Pensions ,Jobcentre Plus,12/04/2010,ACCOMMODATION,JOBCENTRE PLUS,TELEREAL TRILLIUM,2014745374,"66,466.5"
Department for Work and Pensions ,Jobcentre Plus,07/04/2010,JCP GENERAL & PROGRAMME RESEARCH, STRATEGY AND PLANNING,FDS INTERNATIONAL LTD,2014678548,"66,460.5"
Department for Work and Pensions ,Housing Benefits,14/04/2010,HOUSING BENEFIT ADMIN,HOUSING BENEFIT,MENDIP DISTRICT COUNCIL,2014827453,"66,396.0"
Department for Work and Pensions ,Housing Benefits,14/04/2010,HOUSING BENEFIT ADMIN,HOUSING BENEFIT,CITY OF CARLISLE DISTRICT COUNCIL,2014827314,"66,220.0"
Department for Work and Pensions ,Jobcentre Plus,26/04/2010,JCP GENERAL & PROGRAMME RESEARCH, STRATEGY AND PLANNING,TNS BMRB,2014947459,"66,169.0"
Department for Work and Pensions ,Corporate,21/04/2010,IS/IT,CORPORATE IT,COMPUTACENTER UK LTD,2014874954,"66,046.8"
Department for Work and Pensions ,Housing Benefits,14/04/2010,HOUSING BENEFIT ADMIN,HOUSING BENEFIT,EPPING FOREST DISTRICT COUNCIL,2014827363,"65,360.0"
Department for Work and Pensions ,Corporate,21/04/2010,TEMPORARY (TEMP) STAFF COSTS,GROUP FINANCE,GENTOO GROUP,2014885289,"65,266.1"
Department for Work and Pensions ,Housing Benefits,14/04/2010,HOUSING BENEFIT ADMIN,HOUSING BENEFIT,NEWARK DISTRICT COUNCIL,2014827465,"65,237.0"
Department for Work and Pensions ,"Pension, Disability Carers Services",13/04/2010,TOTAL SUPPLIES & SERVICES,PDCS CORE,ROYAL MAIL GROUP PLC,2014757346,"65,094.5"
Department for Work and Pensions ,Employment Programmes,12/04/2010,YOUNG PERSONS GUARANTEE (YPG) AND FUTURE JOBS FUND (FJF),WWG CORE PROGRAMME,SWANSEA COUNCIL FOR VOLUNTARY SERVICE,2014747260,"65,090.0"
Department for Work and Pensions ,Housing Benefits,14/04/2010,HOUSING BENEFIT ADMIN,HOUSING BENEFIT,STEVENAGE BOROUGH COUNCIL,2014827560,"65,002.0"
Department for Work and Pensions ,Employment Programmes,12/04/2010,YOUNG PERSONS GUARANTEE (YPG) AND FUTURE JOBS FUND (FJF),WWG CORE PROGRAMME,OXFORDSHIRE COUNTY COUNCIL,2014745924,"65,000.0"
Department for Work and Pensions ,Corporate,19/04/2010,TEMPORARY (TEMP) STAFF COSTS,GROUP FINANCE,CAPITA RESOURCING LIMITED,2014844791,"64,990.3"
Department for Work and Pensions ,Employment Programmes,15/04/2010,YOUNG PERSONS GUARANTEE (YPG) AND FUTURE JOBS FUND (FJF),WWG CORE PROGRAMME,THE ROYAL SOCIETY OF WILDLIFE TRUSTS,2014835256,"64,950.0"
Department for Work and Pensions ,Housing Benefits,14/04/2010,HOUSING BENEFIT ADMIN,HOUSING BENEFIT,ALLERDALE DISTRICT COUNCIL,2014827251,"64,906.0"
Department for Work and Pensions ,Housing Benefits,14/04/2010,HOUSING BENEFIT ADMIN,HOUSING BENEFIT,CHICHESTER DISTRICT COUNCIL,2014827310,"64,727.0"
Department for Work and Pensions ,Housing Benefits,14/04/2010,HOUSING BENEFIT ADMIN,HOUSING BENEFIT,WEALDEN DISTRICT COUNCIL,2014827601,"64,682.0"
Department for Work and Pensions ,Housing Benefits,14/04/2010,HOUSING BENEFIT ADMIN,HOUSING BENEFIT,EAST HERTFORDSHIRE DISTRICT COUNCIL,2014827351,"64,322.0"
Department for Work and Pensions ,Corporate,27/04/2010,CAPITAL GRANTS,GROUP FINANCE,THE FIVE LAMPS ORGANISATION,2014965327,"64,125.0"
Department for Work and Pensions ,Employment Programmes,07/04/2010,YOUNG PERSONS GUARANTEE (YPG) AND FUTURE JOBS FUND (FJF),WWG CORE PROGRAMME,CARDIFF COUNTY COUNCIL,2014669824,"64,050.0"
Department for Work and Pensions ,Employment Programmes,12/04/2010,ACCESS TO WORK,WWG CORE PROGRAMME,DIVERSE COMMUNICATIONS LTD,2014742696,"63,714.0"
Department for Work and Pensions ,Corporate,14/04/2010,EMPLOYMENT ZONES,GROUP FINANCE,STREET UK LTD,2014822003,"63,702.0"
Department for Work and Pensions ,Employment Programmes,12/04/2010,YOUNG PERSONS GUARANTEE (YPG) AND FUTURE JOBS FUND (FJF),WWG CORE PROGRAMME,MILTON KEYNES COUNCIL,2014745721,"63,700.0"
Department for Work and Pensions ,Housing Benefits,14/04/2010,HOUSING BENEFIT ADMIN,HOUSING BENEFIT,BOROUGH OF REDDITCH,2014827274,"63,669.0"
Department for Work and Pensions ,Corporate,30/04/2010,ACCOMMODATION,SHARED SERVICES ,TELEREAL TRILLIUM,2015099301,"63,653.2"
Department for Work and Pensions ,Employment Programmes,08/04/2010,YOUNG PERSONS GUARANTEE (YPG) AND FUTURE JOBS FUND (FJF),WWG CORE PROGRAMME,SCOTTISH WILDLIFE TRUST,2014732725,"63,602.0"
Department for Work and Pensions ,Corporate,29/04/2010,CAPITAL GRANTS,GROUP FINANCE,CASTLE & CRYSTAL CREDIT UNION,2015041990,"63,535.0"
Department for Work and Pensions ,Jobcentre Plus,01/04/2010,OTHER GOODS AND SERVICES,JOBCENTRE PLUS,VALUATION OFFICE AGENCY,2014649943,"63,420.0"
Department for Work and Pensions ,Housing Benefits,14/04/2010,HOUSING BENEFIT ADMIN,HOUSING BENEFIT,SOUTH NORFOLK DISTRICT COUNCIL,2014827545,"63,103.0"
Department for Work and Pensions ,Housing Benefits,14/04/2010,HOUSING BENEFIT ADMIN,HOUSING BENEFIT,ROTHER DISTRICT COUNCIL,2014827512,"62,881.0"
Department for Work and Pensions ,Employment Programmes,08/04/2010,YOUNG PERSONS GUARANTEE (YPG) AND FUTURE JOBS FUND (FJF),WWG CORE PROGRAMME,WOLVERHAMPTON CITY COUNCIL,2014733170,"62,700.0"
Department for Work and Pensions ,Corporate,26/04/2010,APPS DEV,WWG TOP LEVEL,HP ENTERPRISE SERVICES UK LTD,2014949982,"62,601.0"
Department for Work and Pensions ,Corporate,19/04/2010,COMPUTER SERVICES,CORPORATE IT,XEROX UK LIMITED 3W,2014848989,"62,480.2"
Department for Work and Pensions ,Employment Programmes,30/04/2010,YOUNG PERSONS GUARANTEE (YPG) AND FUTURE JOBS FUND (FJF),WWG CORE PROGRAMME,THE VALE OF GLAMORGAN COUNCIL,2015126892,"62,400.0"
Department for Work and Pensions ,"Pension, Disability Carers Services",21/04/2010,MEDICAL SERVICES,PDCS CORE,ATOS ORIGIN MEDICAL SERVICES,2014868711,"61,782.4"
Department for Work and Pensions ,Housing Benefits,14/04/2010,HOUSING BENEFIT ADMIN,HOUSING BENEFIT,RUGBY BOROUGH COUNCIL,2014827515,"61,670.0"
Department for Work and Pensions ,Housing Benefits,14/04/2010,HOUSING BENEFIT ADMIN,HOUSING BENEFIT,ST EDMUNDSBURY BOROUGH COUNCIL,2014827556,"61,554.0"
Department for Work and Pensions ,Employment Programmes,12/04/2010,YOUNG PERSONS GUARANTEE (YPG) AND FUTURE JOBS FUND (FJF),WWG CORE PROGRAMME,INVERCLYDE COUNCIL,2014744630,"61,500.0"
Department for Work and Pensions ,Housing Benefits,14/04/2010,HOUSING BENEFIT ADMIN,HOUSING BENEFIT,TONBRIDGE & MALLING DISTRICT COUNCIL,2014827585,"61,460.0"
Department for Work and Pensions ,Housing Benefits,14/04/2010,HOUSING BENEFIT ADMIN,HOUSING BENEFIT,EAST LOTHIAN DISTRICT COUNCIL,2014827353,"61,452.0"
Department for Work and Pensions ,Employment Programmes,12/04/2010,YOUNG PERSONS GUARANTEE (YPG) AND FUTURE JOBS FUND (FJF),WWG CORE PROGRAMME,WILTSHIRE COUNCIL,2014747052,"61,411.6"
Department for Work and Pensions ,Housing Benefits,14/04/2010,HOUSING BENEFIT ADMIN,HOUSING BENEFIT,SUFFOLK COASTAL DISTRICT COUNCIL,2014827567,"61,138.0"
Department for Work and Pensions ,Corporate,14/04/2010,EMPLOYMENT ZONES,GROUP FINANCE,TOWER HAMLETS COMMUNITY CREDIT UNION,2014824786,"61,125.0"
Department for Work and Pensions ,Employment Programmes,23/04/2010,YOUNG PERSONS GUARANTEE (YPG) AND FUTURE JOBS FUND (FJF),WWG CORE PROGRAMME,AVON & SOMERSET PROBATION SERVICE,2014941451,"61,100.0"
Department for Work and Pensions ,Housing Benefits,14/04/2010,HOUSING BENEFIT ADMIN,HOUSING BENEFIT,BARROW BOROUGH COUNCIL,2014827261,"61,035.0"
Department for Work and Pensions ,Corporate,14/04/2010,CAPITAL GRANTS,GROUP FINANCE,SMART MONEY CREDIT UNION LTD,2014829750,"60,920.0"
Department for Work and Pensions ,Jobcentre Plus,14/04/2010,PRIME BILLABLE EXTRAS,JOBCENTRE PLUS,TELEREAL TRILLIUM,2014800734,"60,814.5"
Department for Work and Pensions ,Housing Benefits,14/04/2010,HOUSING BENEFIT ADMIN,HOUSING BENEFIT,CASTLE POINT DISTRICT COUNCIL,2014827300,"60,724.0"
Department for Work and Pensions ,"Pension, Disability Carers Services",06/04/2010,MEDICAL SERVICES,PDCS CORE,ATOS ORIGIN IT SERVICES UK LTD,2014653374,"60,686.7"
Department for Work and Pensions ,Corporate,06/04/2010,IS/IT,CHANGE MANAGEMENT DIRECTORATE,COMPUTACENTER UK LTD,2014653579,"60,399.2"
Department for Work and Pensions ,Jobcentre Plus,23/04/2010,ACCOMMODATION,JOBCENTRE PLUS,TELEREAL TRILLIUM,2014943989,"60,342.0"
Department for Work and Pensions ,Employment Programmes,28/04/2010,WORKSTEP,WWG CORE PROGRAMME,LANCASHIRE COUNTY COUNCIL,2015009015,"60,242.3"
Department for Work and Pensions ,Housing Benefits,14/04/2010,HOUSING BENEFIT ADMIN,HOUSING BENEFIT,CHORLEY BOROUGH COUNCIL,2014827312,"60,170.0"
Department for Work and Pensions ,Employment Programmes,15/04/2010,YOUNG PERSONS GUARANTEE (YPG) AND FUTURE JOBS FUND (FJF),WWG CORE PROGRAMME,DEVON COUNTY COUNCIL,2014831091,"60,150.0"
Department for Work and Pensions ,Corporate,09/04/2010,COMMUNICATIONS & PUBLICITY,DIRECTGOV ,CENTRAL OFFICE OF INFORMATION,2014735976,"60,000.0"
Department for Work and Pensions ,"Pension, Disability Carers Services",27/04/2010,APPS DEV,PDCS CHANGE ,HP ENTERPRISE SERVICES UK LTD,2014958808,"59,955.3"
Department for Work and Pensions ,Corporate,20/04/2010,APPS DEV,GROUP FINANCE,HP ENTERPRISE SERVICES UK LTD,2014855104,"59,937.5"
Department for Work and Pensions ,Housing Benefits,14/04/2010,HOUSING BENEFIT ADMIN,HOUSING BENEFIT,LEWES DISTRICT COUNCIL,2014827413,"59,934.0"
Department for Work and Pensions ,Housing Benefits,14/04/2010,HOUSING BENEFIT ADMIN,HOUSING BENEFIT,WYCHAVON DISTRICT COUNCIL,2014827624,"59,905.0"
Department for Work and Pensions ,Housing Benefits,14/04/2010,HOUSING BENEFIT ADMIN,HOUSING BENEFIT,STRATFORD ON AVON DISTRICT COUNCIL,2014827565,"59,868.0"
Department for Work and Pensions ,Housing Benefits,14/04/2010,HOUSING BENEFIT ADMIN,HOUSING BENEFIT,GOSPORT BOROUGH COUNCIL,2014827378,"59,842.0"
Department for Work and Pensions ,Employment Programmes,09/04/2010,YOUNG PERSONS GUARANTEE (YPG) AND FUTURE JOBS FUND (FJF),WWG CORE PROGRAMME,LONDON BOROUGH OF LAMBETH LEMBETH FIRST,2014738597,"59,800.0"
Department for Work and Pensions ,Employment Programmes,29/04/2010,WORKSTEP,WWG CORE PROGRAMME,RHONDDA CYNON TAFF CBC,2015058443,"59,672.2"
Department for Work and Pensions ,Corporate,26/04/2010,TEMPORARY (TEMP) STAFF COSTS,CORPORATE IT,CAPITA RESOURCING LIMITED,2014947689,"59,469.5"
Department for Work and Pensions ,Employment Programmes,28/04/2010,ACCESS TO WORK,WWG CORE PROGRAMME,ACTION FOR BLIND PEOPLE,2014972723,"59,396.1"
Department for Work and Pensions ,Housing Benefits,14/04/2010,HOUSING BENEFIT ADMIN,HOUSING BENEFIT,ELMBRIDGE BOROUGH COUNCIL,2014827362,"59,007.0"
Department for Work and Pensions ,Jobcentre Plus,14/04/2010,MANAGEMENT CONSULTANCY,JOBCENTRE PLUS,CAPGEMINI UK PLC,2014771963,"59,000.0"
Department for Work and Pensions ,Corporate,19/04/2010,EMPLOYMENT ZONES,GROUP FINANCE,HASTINGS TRUST,441910,"58,856.0"
Department for Work and Pensions ,Corporate,22/04/2010,BANK COMMISSIONS,GROUP FINANCE,CITIBANK GLOBAL CORPORATE BANKING,2014933776,"58,750.0"
Department for Work and Pensions ,Housing Benefits,14/04/2010,HOUSING BENEFIT ADMIN,HOUSING BENEFIT,RUSHMOOR BOROUGH COUNCIL,2014827518,"58,664.0"
Department for Work and Pensions ,Corporate,19/04/2010,ACCOMMODATION,GROUP FINANCE,TELEREAL TRILLIUM,2014847399,"58,541.4"
Department for Work and Pensions ,Housing Benefits,14/04/2010,HOUSING BENEFIT ADMIN,HOUSING BENEFIT,TUNBRIDGE WELLS BOROUGH COUNCIL,2014827590,"58,506.0"
Department for Work and Pensions ,Employment Programmes,12/04/2010,YOUNG PERSONS GUARANTEE (YPG) AND FUTURE JOBS FUND (FJF),WWG CORE PROGRAMME,BLUE SKY DEVELOPMENT & REGENERATION,2014742145,"58,500.0"
Department for Work and Pensions ,Employment Programmes,08/04/2010,WORKSTEP,WWG CORE PROGRAMME,AZURE CHARITABLE ENTERPRISES,2014728497,"58,433.8"
Department for Work and Pensions ,Employment Programmes,28/04/2010,YOUNG PERSONS GUARANTEE (YPG) AND FUTURE JOBS FUND (FJF),WWG CORE PROGRAMME,GATEWAY KNOWLEDGE ALLIANCE NORTH WEST KENT COLLEGE,2014990223,"58,350.0"
Department for Work and Pensions ,Housing Benefits,14/04/2010,HOUSING BENEFIT ADMIN,HOUSING BENEFIT,EASTLEIGH BOROUGH COUNCIL,2014827359,"58,236.0"
Department for Work and Pensions ,"Pension, Disability Carers Services",13/04/2010,APPS DEV,PDCS CHANGE ,HP ENTERPRISE SERVICES UK LTD,2014752927,"58,220.4"
Department for Work and Pensions ,Housing Benefits,14/04/2010,HOUSING BENEFIT ADMIN,HOUSING BENEFIT,VALE OF WHITE HORSE DISTRICT COUNCIL,2014827593,"58,212.0"
Department for Work and Pensions ,Employment Programmes,16/04/2010,NDDP,WWG CORE PROGRAMME,THE WISE GROUP,2014842550,"58,035.6"
Department for Work and Pensions ,Employment Programmes,26/04/2010,YOUNG PERSONS GUARANTEE (YPG) AND FUTURE JOBS FUND (FJF),WWG CORE PROGRAMME,RHYL CITY STRATEGY COMMUNITY INTEREST COMPANY,2014951635,"57,900.0"
Department for Work and Pensions ,Housing Benefits,14/04/2010,HOUSING BENEFIT ADMIN,HOUSING BENEFIT,WATFORD BOROUGH COUNCIL,2014827598,"57,844.0"
Department for Work and Pensions ,Housing Benefits,14/04/2010,HOUSING BENEFIT ADMIN,HOUSING BENEFIT,BOROUGH OF WELLINGBOROUGH,2014827276,"57,635.0"
Department for Work and Pensions ,Employment Programmes,19/04/2010,JSP ESF DEL P COSTS,WWG CORE PROGRAMME,THE INTRAINING GROUP,2014848821,"57,210.5"
Department for Work and Pensions ,Housing Benefits,14/04/2010,HOUSING BENEFIT ADMIN,HOUSING BENEFIT,STAFFORD BOROUGH COUNCIL,2014827558,"57,207.0"
Department for Work and Pensions ,Jobcentre Plus,21/04/2010,ACCOMMODATION,JOBCENTRE PLUS,TELEREAL TRILLIUM,2014903659,"57,204.4"
Department for Work and Pensions ,Corporate,30/04/2010,TEMPORARY (TEMP) STAFF COSTS,CORPORATE IT,CAPITA RESOURCING LIMITED,2015070092,"57,140.8"
Department for Work and Pensions ,Housing Benefits,14/04/2010,HOUSING BENEFIT ADMIN,HOUSING BENEFIT,TEST VALLEY BOROUGH COUNCIL,2014827579,"57,077.0"
Department for Work and Pensions ,Housing Benefits,14/04/2010,HOUSING BENEFIT ADMIN,HOUSING BENEFIT,HIGH PEAK BOROUGH COUNCIL,2014827395,"57,059.0"
Department for Work and Pensions ,Housing Benefits,14/04/2010,HOUSING BENEFIT ADMIN,HOUSING BENEFIT,ST ALBANS DISTRICT COUNCIL,2014827555,"56,955.0"
Department for Work and Pensions ,Corporate,14/04/2010,STAFF COSTS,MISC RFR 5,RIGHT CORECARE,2014814115,"56,900.0"
Department for Work and Pensions ,Employment Programmes,06/04/2010,YOUNG PERSONS GUARANTEE (YPG) AND FUTURE JOBS FUND (FJF),WWG CORE PROGRAMME,WAKEFIELD METROPLITAN DISTRICT COUNCIL,2014656239,"56,859.4"
Department for Work and Pensions ,Housing Benefits,14/04/2010,HOUSING BENEFIT ADMIN,HOUSING BENEFIT,SOUTH CAMBRIDGESHIRE DISTRICT COUNCIL,2014827537,"56,846.0"
Department for Work and Pensions ,Employment Programmes,26/04/2010,YOUNG PERSONS GUARANTEE (YPG) AND FUTURE JOBS FUND (FJF),WWG CORE PROGRAMME,REDCAR & CLEVELAND BOROUGH COUNCIL,2014951625,"56,700.0"
Department for Work and Pensions ,Corporate,23/04/2010,COMPUTER SERVICES,SHARED SERVICES ,COMPUTACENTER UK LTD,2014941777,"56,675.0"
Department for Work and Pensions ,Corporate,13/04/2010,COMPUTER SERVICES,MISC RFR 5,HP ENTERPRISE SERVICES UK LTD,2014752927,"56,606.0"
Department for Work and Pensions ,Corporate,14/04/2010,CAPITAL GRANTS,GROUP FINANCE,RIVERSIDE HOUSING,2014814120,"56,485.0"
Department for Work and Pensions ,Housing Benefits,14/04/2010,HOUSING BENEFIT ADMIN,HOUSING BENEFIT,WEST LINDSEY DISTRICT COUNCIL,2014827608,"56,438.0"
Department for Work and Pensions ,Corporate,06/04/2010,STAFF COSTS,MISC RFR 5,OXFORD GROUP CONSULTING & TRAINING LTD,2014655742,"56,412.4"
Department for Work and Pensions ,Housing Benefits,14/04/2010,HOUSING BENEFIT ADMIN,HOUSING BENEFIT,MERTHYR TYDFIL BOROUGH COUNCIL,2014827454,"56,348.0"
Department for Work and Pensions ,"Pension, Disability Carers Services",16/04/2010,MANAGEMENT CONSULTANCY,PDCS CHANGE ,PRICEWATERHOUSE COOPERS LLP,2014841738,"56,294.0"
Department for Work and Pensions ,Housing Benefits,14/04/2010,HOUSING BENEFIT ADMIN,HOUSING BENEFIT,NORTH EAST DERBYSHIRE DISTRICT COUNCIL,2014827472,"56,274.0"
Department for Work and Pensions ,Corporate,28/04/2010,IS/IT,GROUP FINANCE,COMPUTACENTER UK LTD,2014979618,"56,257.6"
Department for Work and Pensions ,Housing Benefits,14/04/2010,HOUSING BENEFIT ADMIN,HOUSING BENEFIT,SEVENOAKS DISTRICT COUNCIL,2014827528,"56,137.0"
Department for Work and Pensions ,Corporate,16/04/2010,APPS DEV,CORPORATE IT,HP ENTERPRISE SERVICES UK LTD,2014840272,"56,058.9"
Department for Work and Pensions ,"Pension, Disability Carers Services",21/04/2010,COMPUTER SERVICES,PDCS CHANGE ,QBASE SOFTWARE DEVELOPMENT LTD,2014914481,"56,000.0"
Department for Work and Pensions ,Housing Benefits,14/04/2010,HOUSING BENEFIT ADMIN,HOUSING BENEFIT,WAVERLEY BOROUGH COUNCIL,2014827600,"55,782.0"
Department for Work and Pensions ,Housing Benefits,14/04/2010,HOUSING BENEFIT ADMIN,HOUSING BENEFIT,BRACKNELL FOREST BOROUGH COUNCIL,2014827279,"55,711.0"
Department for Work and Pensions ,Housing Benefits,14/04/2010,HOUSING BENEFIT ADMIN,HOUSING BENEFIT,SOUTH RIBBLE BOROUGH COUNCIL C,2014827548,"55,695.0"
Department for Work and Pensions ,Corporate,26/04/2010,TEMPORARY (TEMP) STAFF COSTS,GROUP FINANCE,FABRICK HOUSING GROUP LTD,2014949717,"55,660.9"
Department for Work and Pensions ,Housing Benefits,14/04/2010,HOUSING BENEFIT ADMIN,HOUSING BENEFIT,DARTFORD BOROUGH COUNCIL,2014827334,"55,441.0"
Department for Work and Pensions ,Employment Programmes,28/04/2010,PROGRESS TO WORK,WWG CORE PROGRAMME,WORKING LINKS,2015035741,"55,408.8"
Department for Work and Pensions ,Employment Programmes,08/04/2010,YOUNG PERSONS GUARANTEE (YPG) AND FUTURE JOBS FUND (FJF),WWG CORE PROGRAMME,INTERLINK VOLUNTARY ACTION,2014733293,"55,378.4"
Department for Work and Pensions ,Employment Programmes,21/04/2010,YOUNG PERSONS GUARANTEE (YPG) AND FUTURE JOBS FUND (FJF),WWG CORE PROGRAMME,KIRKLEES COUNCIL,2014898652,"55,350.0"
Department for Work and Pensions ,Corporate,26/04/2010,TEMPORARY (TEMP) STAFF COSTS,GROUP FINANCE,CAPITA RESOURCING LIMITED,2014947689,"55,323.4"
Department for Work and Pensions ,"Pension, Disability Carers Services",14/04/2010,PUBLICITY,PDCS CORE,IDS UK LTD,2014784773,"55,270.0"
Department for Work and Pensions ,Housing Benefits,14/04/2010,HOUSING BENEFIT ADMIN,HOUSING BENEFIT,KETTERING BOROUGH COUNCIL,2014827405,"55,145.0"
Department for Work and Pensions ,Jobcentre Plus,21/04/2010,APPS DEV,TPMD,HP ENTERPRISE SERVICES UK LTD,2014887013,"54,983.1"
Department for Work and Pensions ,Housing Benefits,14/04/2010,HOUSING BENEFIT ADMIN,HOUSING BENEFIT,WEST DORSET DISTRICT COUNCIL,2014827605,"54,740.0"
Department for Work and Pensions ,Housing Benefits,14/04/2010,HOUSING BENEFIT ADMIN,HOUSING BENEFIT,EAST HAMPSHIRE DISTRICT COUNCIL,2014827350,"54,713.0"
Department for Work and Pensions ,Housing Benefits,14/04/2010,HOUSING BENEFIT ADMIN,HOUSING BENEFIT,BOLSOVER DISTRICT COUNCIL,2014827272,"54,500.0"
Department for Work and Pensions ,Corporate,06/04/2010,PRINTING STATIONERY IT & CONSUMABLES,WWG TOP LEVEL,CDS LTD,2014653546,"54,437.9"
Department for Work and Pensions ,Corporate,21/04/2010,DESKTOP,CORPORATE IT,HP ENTERPRISE SERVICES UK LTD,2014887013,"54,206.2"
Department for Work and Pensions ,Housing Benefits,14/04/2010,HOUSING BENEFIT ADMIN,HOUSING BENEFIT,MID SUSSEX DISTRICT COUNCIL,2014827457,"54,102.0"
Department for Work and Pensions ,Corporate,07/04/2010,TOTAL SUPPLIES & SERVICES,WWG TOP LEVEL,GOVERNMENT EQUALITIES OFFICE,1004146,"53,992.2"
Department for Work and Pensions ,Housing Benefits,14/04/2010,HOUSING BENEFIT ADMIN,HOUSING BENEFIT,MIDLOTHIAN COUNCIL,2014827459,"53,758.0"
Department for Work and Pensions ,Housing Benefits,14/04/2010,HOUSING BENEFIT ADMIN,HOUSING BENEFIT,EAST DUNBARTONSHIRE COUNCIL,2014827349,"53,727.0"
Department for Work and Pensions ,Housing Benefits,14/04/2010,HOUSING BENEFIT ADMIN,HOUSING BENEFIT,BROADLAND DISTRICT COUNCIL,2014827287,"53,722.0"
Department for Work and Pensions ,Housing Benefits,14/04/2010,HOUSING BENEFIT ADMIN,HOUSING BENEFIT,WEYMOUTH & PORTLAND BOROUGH COUNCIL,2014827612,"53,659.0"
Department for Work and Pensions ,Employment Programmes,08/04/2010,YOUNG PERSONS GUARANTEE (YPG) AND FUTURE JOBS FUND (FJF),WWG CORE PROGRAMME,THIRD SECTOR HEBRIDES,2014732992,"53,300.0"
Department for Work and Pensions ,Employment Programmes,08/04/2010,YOUNG PERSONS GUARANTEE (YPG) AND FUTURE JOBS FUND (FJF),WWG CORE PROGRAMME,RENFREWSHIRE COUNCIL,2014732377,"53,222.4"
Department for Work and Pensions ,Corporate,15/04/2010,OFFICE MACHINERY HIRE & MAINTENANCE,GROUP FINANCE,AV NICHE RECORDING SYSTEMS LTD,2014830241,"53,181.4"
Department for Work and Pensions ,Jobcentre Plus,19/04/2010,ACCOMMODATION, FINANCE,TELEREAL TRILLIUM,2014847399,"53,158.5"
Department for Work and Pensions ,Housing Benefits,14/04/2010,HOUSING BENEFIT ADMIN,HOUSING BENEFIT,NORTH KESTEVEN DISTRICT COUNCIL,2014827475,"53,153.0"
Department for Work and Pensions ,Jobcentre Plus,19/04/2010,APPS DEV,ISD,HP ENTERPRISE SERVICES UK LTD,2014846648,"53,121.0"
Department for Work and Pensions ,Corporate,01/04/2010,INTERNATIONAL PROGRAMMES,WWG TOP LEVEL,SPECIALIST SCHOOLS & ACADEMIES TRUST,2014649398,"53,046.0"
Department for Work and Pensions ,Housing Benefits,14/04/2010,HOUSING BENEFIT ADMIN,HOUSING BENEFIT,HINCKLEY & BOSWORTH BOROUGH COUNCIL,2014827397,"52,966.0"
Department for Work and Pensions ,Corporate,09/04/2010,INTERNATIONAL PROGRAMMES,WWG TOP LEVEL,UNIVERSITY OF MANCHESTER,547275,"52,742.9"
Department for Work and Pensions ,Employment Programmes,08/04/2010,YOUNG PERSONS GUARANTEE (YPG) AND FUTURE JOBS FUND (FJF),WWG CORE PROGRAMME,PEOPLE 1ST,2014732179,"52,400.0"
Department for Work and Pensions ,Housing Benefits,14/04/2010,HOUSING BENEFIT ADMIN,HOUSING BENEFIT,SOUTH HOLLAND DISTRICT COUNCIL,2014827541,"52,349.0"
Department for Work and Pensions ,Housing Benefits,14/04/2010,HOUSING BENEFIT ADMIN,HOUSING BENEFIT,FOREST OF DEAN DISTRICT COUNCIL,2014827373,"52,018.0"
Department for Work and Pensions ,Corporate,14/04/2010,EMPLOYMENT ZONES,GROUP FINANCE,CITY SAVE CREDIT UNION LTD,2014772070,"52,000.0"
Department for Work and Pensions ,Corporate,30/04/2010,ACCOMMODATION,GROUP FINANCE,TELEREAL TRILLIUM,2015099301,"51,951.4"
Department for Work and Pensions ,Employment Programmes,09/04/2010,YOUNG PERSONS GUARANTEE (YPG) AND FUTURE JOBS FUND (FJF),WWG CORE PROGRAMME,LONDON EAST CONNEXIONS PARTNERSHIP LTD,2014738601,"51,939.7"
Department for Work and Pensions ,Corporate,14/04/2010,TEMPORARY (TEMP) STAFF COSTS,GROUP FINANCE,FABRICK HOUSING GROUP LTD,2014780607,"51,902.1"
Department for Work and Pensions ,Employment Programmes,06/04/2010,RAPID RESPONSE,WWG CORE PROGRAMME,RESOURCES,2014655904,"51,799.0"
Department for Work and Pensions ,Housing Benefits,14/04/2010,HOUSING BENEFIT ADMIN,HOUSING BENEFIT,SOUTH STAFFORDSHIRE DISTRICT COUNCIL,2014827550,"51,783.0"
Department for Work and Pensions ,Corporate,14/04/2010,CAPITAL GRANTS,GROUP FINANCE,WEST SUSSEX CREDIT UNION,2014826520,"51,737.0"
Department for Work and Pensions ,Housing Benefits,14/04/2010,HOUSING BENEFIT ADMIN,HOUSING BENEFIT,SPELTHORNE BOROUGH COUNCIL,2014827554,"51,607.0"
Department for Work and Pensions ,Housing Benefits,14/04/2010,HOUSING BENEFIT ADMIN,HOUSING BENEFIT,HORSHAM DISTRICT COUNCIL,2014827398,"51,603.0"
Department for Work and Pensions ,Housing Benefits,14/04/2010,HOUSING BENEFIT ADMIN,HOUSING BENEFIT,CORBY BOROUGH COUNCIL,2014827323,"51,537.0"
Department for Work and Pensions ,Housing Benefits,14/04/2010,HOUSING BENEFIT ADMIN,HOUSING BENEFIT,WEST OXFORDSHIRE DISTRICT COUNCIL,2014827610,"51,254.0"
Department for Work and Pensions ,"Pension, Disability Carers Services",12/04/2010,ACCOMMODATION,PDCS CORE,TELEREAL TRILLIUM,2014745374,"51,239.4"
Department for Work and Pensions ,Corporate,21/04/2010,CAPITAL GRANTS,GROUP FINANCE,SOUTH TYNESIDE CREDIT UNION LTD,2014924976,"51,160.0"
Department for Work and Pensions ,Housing Benefits,14/04/2010,HOUSING BENEFIT ADMIN,HOUSING BENEFIT,SOUTH OXFORDSHIRE DISTRICT COUNCIL,2014827547,"51,012.0"
Department for Work and Pensions ,Housing Benefits,14/04/2010,HOUSING BENEFIT ADMIN,HOUSING BENEFIT,NORTH WEST LEICESTER DISTRICT COUNCIL,2014827482,"50,744.0"
Department for Work and Pensions ,Corporate,22/04/2010,COMPUTER SERVICES,GROUP FINANCE,XOR LTD,2014938782,"50,728.1"
Department for Work and Pensions ,Corporate,20/04/2010,COMPUTER SERVICES,SHARED SERVICES ,FUJITSU SERVICES,2014854501,"50,645.8"
Department for Work and Pensions ,Jobcentre Plus,28/04/2010,TEMPORARY (TEMP) STAFF COSTS,JOBCENTRE PLUS,HM REVENUE & CUSTOMS,2014992015,"50,590.0"
Department for Work and Pensions ,Corporate,14/04/2010,APPS DEV,CORPORATE IT,HP ENTERPRISE SERVICES UK LTD,2014784199,"50,498.7"
Department for Work and Pensions ,Jobcentre Plus,23/04/2010,TOTAL AGENCY & CONSULTANCY COSTS,HUMAN RESOURCES,FIELD FISHER WATERHOUSE LLP,2014943185,"50,450.0"
Department for Work and Pensions ,Corporate,26/04/2010,CAPITAL GRANTS,GROUP FINANCE,QUIDS IN BOLTON CREDIT UNION LTD,2014951496,"50,418.0"
Department for Work and Pensions ,Employment Programmes,19/04/2010,WORKSTEP,WWG CORE PROGRAMME,GLOUCESTERSHIRE INDUSTRIAL SERVICES,2014846543,"50,411.4"
Department for Work and Pensions ,Employment Programmes,30/04/2010,YOUNG PERSONS GUARANTEE (YPG) AND FUTURE JOBS FUND (FJF),WWG CORE PROGRAMME,PETERBOROUGH CITY COUNCIL,2015109983,"50,400.0"
Department for Work and Pensions ,Housing Benefits,14/04/2010,HOUSING BENEFIT ADMIN,HOUSING BENEFIT,THE MORAY COUNCIL,2014827582,"50,363.0"
Department for Work and Pensions ,Corporate,14/04/2010,EMPLOYMENT ZONES,GROUP FINANCE,PLOUGH & SHARE CREDIT UNION,2014811415,"50,000.0"
Department for Work and Pensions ,Corporate,16/04/2010,INTERNATIONAL PROGRAMMES,WWG TOP LEVEL,THE FULBRIGHT COMMISSION,2014842524,"50,000.0"
Department for Work and Pensions ,Corporate,30/04/2010,CAPITAL GRANTS,GROUP FINANCE,NORTHAMPTON CREDIT UNION,2015107559,"50,000.0"
Department for Work and Pensions ,Corporate,14/04/2010,CAPITAL GRANTS,GROUP FINANCE,CHESHIRE NEIGHBOURS CREDIT UNION LIMITED,2014772050,"49,893.0"
Department for Work and Pensions ,Corporate,01/04/2010,INTERNATIONAL PROGRAMMES,WWG TOP LEVEL,SPECIALIST SCHOOLS & ACADEMIES TRUST,2014649398,"49,749.8"
Department for Work and Pensions ,Corporate,22/04/2010,MISCELLANEOUS EXPENDITURE,MISC RFR 5,ORION PARTNERS LLP,2014937358,"49,702.5"
Department for Work and Pensions ,Housing Benefits,14/04/2010,HOUSING BENEFIT ADMIN,HOUSING BENEFIT,COPELAND BOROUGH COUNCIL,2014827322,"49,697.0"
Department for Work and Pensions ,"Pension, Disability Carers Services",13/04/2010,PRINTING STATIONERY IT & CONSUMABLES,PDCS CORE,XEROX UK LIMITED 3W,2014759164,"49,679.3"
Department for Work and Pensions ,Corporate,30/04/2010,,GROUP FINANCE,TELEREAL TRILLIUM,2015099300,"49,663.2"
Department for Work and Pensions ,Employment Programmes,26/04/2010,YOUNG PERSONS GUARANTEE (YPG) AND FUTURE JOBS FUND (FJF),WWG CORE PROGRAMME,SCOTTISH COUNCIL FOR VOLUNTARY ORGANISATIONS,2014951955,"49,650.0"
Department for Work and Pensions ,Corporate,26/04/2010,COMPUTER SERVICES,GROUP FINANCE,FUJITSU SERVICES,2014949741,"49,629.2"
Department for Work and Pensions ,Housing Benefits,14/04/2010,HOUSING BENEFIT ADMIN,HOUSING BENEFIT,LICHFIELD DISTRICT COUNCIL,2014827414,"49,288.0"
Department for Work and Pensions ,Jobcentre Plus,29/04/2010,ACCOMMODATION,JOBCENTRE PLUS,TELEREAL TRILLIUM,2015049328,"49,129.0"
Department for Work and Pensions ,Corporate,29/04/2010,CONFERENCES AND MEETINGS,MISC RFR 5,NYS CORPORATE LTD,2015051268,"49,122.8"
Department for Work and Pensions ,Employment Programmes,07/04/2010,NDDP,WWG CORE PROGRAMME,REED,2014711577,"49,089.2"
Department for Work and Pensions ,Housing Benefits,14/04/2010,HOUSING BENEFIT ADMIN,HOUSING BENEFIT,WOKING BOROUGH COUNCIL,2014827618,"48,958.0"
Department for Work and Pensions ,Housing Benefits,14/04/2010,HOUSING BENEFIT ADMIN,HOUSING BENEFIT,STIRLING COUNCIL,2014827561,"48,894.0"
Department for Work and Pensions ,Corporate,16/04/2010,PUBLICITY,MISC RFR 5,COI CENTRAL OFFICE OF INFORMATION,2014838518,"48,812.0"
Department for Work and Pensions ,Housing Benefits,14/04/2010,HOUSING BENEFIT ADMIN,HOUSING BENEFIT,TAMWORTH BOROUGH COUNCIL,2014827574,"48,798.0"
Department for Work and Pensions ,Corporate,13/04/2010,PROFESSIONAL FEES,PENSIONS CLIENT DIRECTORATE,TNS BMRB,2014749574,"48,730.0"
Department for Work and Pensions ,Corporate,22/04/2010,BANK COMMISSIONS,GROUP FINANCE,VOCALINK,2014938672,"48,626.0"
Department for Work and Pensions ,Corporate,29/04/2010,COMPUTER SERVICES,CHANGE MANAGEMENT DIRECTORATE,HP ENTERPRISE SERVICES UK LTD,2015046041,"48,444.9"
Department for Work and Pensions ,Housing Benefits,14/04/2010,HOUSING BENEFIT ADMIN,HOUSING BENEFIT,ROSSENDALE BOROUGH COUNCIL,2014827511,"48,357.0"
Department for Work and Pensions ,Corporate,14/04/2010,POSTAGE,SHARED SERVICES ,DX NETWORK SERVICES LTD,2014777772,"48,300.6"
Department for Work and Pensions ,Corporate,19/04/2010,MANAGEMENT CONSULTANCY,CORPORATE IT,OFFICE OF GOVERNMENT COMMERCE,2014847934,"48,260.0"
Department for Work and Pensions ,"Pension, Disability Carers Services",15/04/2010,COMPUTER SERVICES,PDCS CHANGE ,HP ENTERPRISE SERVICES UK LTD,2014832500,"48,202.9"
Department for Work and Pensions ,Employment Programmes,15/04/2010,YOUNG PERSONS GUARANTEE (YPG) AND FUTURE JOBS FUND (FJF),WWG CORE PROGRAMME,SUFFOLK COUNTY COUNCIL,2014835058,"48,120.8"
Department for Work and Pensions ,Corporate,13/04/2010,APPS DEV,SHARED SERVICES ,HP ENTERPRISE SERVICES UK LTD,2014752927,"48,104.2"
Department for Work and Pensions ,Housing Benefits,14/04/2010,HOUSING BENEFIT ADMIN,HOUSING BENEFIT,WINCHESTER CITY COUNCIL,2014827615,"47,974.0"
Department for Work and Pensions ,Employment Programmes,06/04/2010,YOUNG PERSONS GUARANTEE (YPG) AND FUTURE JOBS FUND (FJF),WWG CORE PROGRAMME,PROSPECT SERVICES LTD,2014655835,"47,800.0"
Department for Work and Pensions ,Corporate,12/04/2010,BANK COMMISSIONS,CORPORATE IT,VOCALINK,2014746979,"47,646.3"
Department for Work and Pensions ,Employment Programmes,26/04/2010,YOUNG PERSONS GUARANTEE (YPG) AND FUTURE JOBS FUND (FJF),WWG CORE PROGRAMME,CENTRAL BEDFORDSHIRE COUNCIL,2014947703,"47,560.0"
Department for Work and Pensions ,Corporate,26/04/2010,EMPLOYMENT ZONES,GROUP FINANCE,TOWER HAMLETS COMMUNITY CREDIT UNION,2014952238,"47,555.0"
Department for Work and Pensions ,Corporate,26/04/2010,COMPUTER SERVICES,SHARED SERVICES ,FUJITSU SERVICES,2014949741,"47,507.2"
Department for Work and Pensions ,Corporate,14/04/2010,CAPITAL GRANTS,GROUP FINANCE,EREWASH CREDIT UNION LIMITED,2014779840,"47,489.0"
Department for Work and Pensions ,Housing Benefits,14/04/2010,HOUSING BENEFIT ADMIN,HOUSING BENEFIT,SOUTH HAMS DISTRICT COUNCIL,2014827540,"47,487.0"
Department for Work and Pensions ,Jobcentre Plus,21/04/2010,ACCOMMODATION,JOBCENTRE PLUS,TELEREAL TRILLIUM,2014903659,"47,482.0"
Department for Work and Pensions ,Employment Programmes,28/04/2010,WORKSTEP,WWG CORE PROGRAMME,SCOTTISH ASSOCIATION FOR MENTAL HEALTH,2015030405,"47,157.9"
Department for Work and Pensions ,Employment Programmes,14/04/2010,YOUNG PERSONS GUARANTEE (YPG) AND FUTURE JOBS FUND (FJF),WWG CORE PROGRAMME,THANET DISTRICT COUNCIL,2014824654,"47,100.0"
Department for Work and Pensions ,Corporate,19/04/2010,COMPUTER SERVICES,CORPORATE IT,CAPGEMINI UK PLC,2014844789,"46,946.0"
Department for Work and Pensions ,Employment Programmes,12/04/2010,YOUNG PERSONS GUARANTEE (YPG) AND FUTURE JOBS FUND (FJF),WWG CORE PROGRAMME,EREWASH BOROUGH COUNCIL,2014748474,"46,800.0"
Department for Work and Pensions ,Employment Programmes,15/04/2010,YOUNG PERSONS GUARANTEE (YPG) AND FUTURE JOBS FUND (FJF),WWG CORE PROGRAMME,TRAX ENERGY SOLUTIONS,2014835296,"46,800.0"
Department for Work and Pensions ,Employment Programmes,22/04/2010,WORKSTEP,WWG CORE PROGRAMME,PETERBOROUGH CITY COUNCIL,2014937554,"46,680.9"
Department for Work and Pensions ,Housing Benefits,14/04/2010,HOUSING BENEFIT ADMIN,HOUSING BENEFIT,MONMOUTHSHIRE COUNTY  COUNCIL,2014827462,"46,643.0"
Department for Work and Pensions ,Employment Programmes,26/04/2010,YOUNG PERSONS GUARANTEE (YPG) AND FUTURE JOBS FUND (FJF),WWG CORE PROGRAMME,NEATH PORT TALBOT COUNTY BOROUGH COUNCIL,2014951232,"46,350.0"
Department for Work and Pensions ,Housing Benefits,14/04/2010,HOUSING BENEFIT ADMIN,HOUSING BENEFIT,BOSTON BOROUGH COUNCIL,2014827277,"46,315.0"
Department for Work and Pensions ,Housing Benefits,14/04/2010,HOUSING BENEFIT ADMIN,HOUSING BENEFIT,CEREDIGION COUNTY COUNCIL,2014827302,"46,252.0"
Department for Work and Pensions ,Employment Programmes,22/04/2010,YOUNG PERSONS GUARANTEE (YPG) AND FUTURE JOBS FUND (FJF),WWG CORE PROGRAMME,LANCASHIRE COUNTY COUNCIL,2014936671,"46,200.0"
Department for Work and Pensions ,Corporate,14/04/2010,EMPLOYMENT ZONES,GROUP FINANCE,LLANDUDNO & DISTRICT CREDIT UNION LTD,2014800946,"46,034.0"
Department for Work and Pensions ,Housing Benefits,14/04/2010,HOUSING BENEFIT ADMIN,HOUSING BENEFIT,WOKINGHAM DISTRICT COUNCIL,2014827619,"45,970.0"
Department for Work and Pensions ,Employment Programmes,12/04/2010,YOUNG PERSONS GUARANTEE (YPG) AND FUTURE JOBS FUND (FJF),WWG CORE PROGRAMME,WEST DUNBARTONSHIRE COUNCIL,2014747030,"45,649.3"
Department for Work and Pensions ,Employment Programmes,21/04/2010,YOUNG PERSONS GUARANTEE (YPG) AND FUTURE JOBS FUND (FJF),WWG CORE PROGRAMME,BRADFORD METROPOLITAN DISTRICT COUNCIL,2014869988,"45,600.0"
Department for Work and Pensions ,Employment Programmes,22/04/2010,ACCESS TO WORK,WWG CORE PROGRAMME,KEY 4 LEARNING LTD T/A A2A,2014936418,"45,583.3"
Department for Work and Pensions ,Corporate,12/04/2010,TEMPORARY (TEMP) STAFF COSTS,CORPORATE IT,CAPITA RESOURCING LIMITED,2014742367,"45,567.3"
Department for Work and Pensions ,Employment Programmes,12/04/2010,YOUNG PERSONS GUARANTEE (YPG) AND FUTURE JOBS FUND (FJF),WWG CORE PROGRAMME,RCT HOMES,2014746247,"45,500.0"
Department for Work and Pensions ,Jobcentre Plus,27/04/2010,MISCELLANEOUS EXPENDITURE,JOBCENTRE PLUS,CAPITA BUSINESS SERVICES LTD,2014955678,"45,481.4"
Department for Work and Pensions ,Corporate,14/04/2010,COMPUTER SERVICES,CORPORATE IT,DELL FINANCIAL SERVICES,2014776466,"45,413.3"
Department for Work and Pensions ,Corporate,27/04/2010,IS/IT,PENSIONS CLIENT DIRECTORATE,COMPUTACENTER UK LTD,2014955795,"45,377.7"
Department for Work and Pensions ,Housing Benefits,14/04/2010,HOUSING BENEFIT ADMIN,HOUSING BENEFIT,THREE RIVERS DISTRICT COUNCIL,2014827583,"45,362.0"
Department for Work and Pensions ,Employment Programmes,14/04/2010,WORKSTEP,WWG CORE PROGRAMME,MENCAP NORTH,2014806302,"45,335.6"
Department for Work and Pensions ,Housing Benefits,14/04/2010,HOUSING BENEFIT ADMIN,HOUSING BENEFIT,ISLE OF ANGLESEY COUNTY COUNCIL,2014827403,"45,313.0"
Department for Work and Pensions ,Employment Programmes,19/04/2010,YOUNG PERSONS GUARANTEE (YPG) AND FUTURE JOBS FUND (FJF),WWG CORE PROGRAMME,LEEDS CITY COUNCIL,2014847409,"45,150.0"
Department for Work and Pensions ,"Pension, Disability Carers Services",23/04/2010,COMPUTER SERVICES,PDCS CHANGE ,BT SYNTEGRA,2014941554,"45,117.5"
Department for Work and Pensions ,Employment Programmes,06/04/2010,YOUNG PERSONS GUARANTEE (YPG) AND FUTURE JOBS FUND (FJF),WWG CORE PROGRAMME,ACTION FOR CHILDREN,2014653323,"45,074.1"
Department for Work and Pensions ,Corporate,23/04/2010,NON PRIME CHARGES,GROUP FINANCE,PROVINCIAL & REGIONAL OFFICE MARKET,2014944588,"45,000.0"
Department for Work and Pensions ,Corporate,27/04/2010,TEMPORARY (TEMP) STAFF COSTS,GROUP FINANCE,WALES CO OPERATIVE CENTRE LTD,2014966017,"44,896.2"
Department for Work and Pensions ,Housing Benefits,14/04/2010,HOUSING BENEFIT ADMIN,HOUSING BENEFIT,BABERGH DISTRICT COUNCIL,2014827259,"44,891.0"
Department for Work and Pensions ,Housing Benefits,16/04/2010,HOUSING BENEFIT ADMIN,HOUSING BENEFIT,MORI SOCIAL RESEARCH INSTITUTE,2014841386,"44,865.0"
Department for Work and Pensions ,Employment Programmes,07/04/2010,YOUNG PERSONS GUARANTEE (YPG) AND FUTURE JOBS FUND (FJF),WWG CORE PROGRAMME,SKILLSMART RETAIL LTD,2014719117,"44,800.0"
Department for Work and Pensions ,Corporate,30/04/2010,CONTRACTED OUT OFFICE SERVICES,GROUP FINANCE,ABCUL,2015063661,"44,775.0"
Department for Work and Pensions ,Corporate,21/04/2010,MISCELLANEOUS EXPENDITURE,WWG TOP LEVEL,UNIVERSITY OF BATH CENTRE FOR ANALYSIS IN SOCIAL POLICY CASP,2014927935,"44,740.0"
Department for Work and Pensions ,Housing Benefits,14/04/2010,HOUSING BENEFIT ADMIN,HOUSING BENEFIT,COTSWOLD DISTRICT COUNCIL,2014827326,"44,639.0"
Department for Work and Pensions ,Housing Benefits,14/04/2010,HOUSING BENEFIT ADMIN,HOUSING BENEFIT,STAFFORDSHIRE MOORLANDS DISTRICT COUNCIL,2014827559,"44,637.0"
Department for Work and Pensions ,Housing Benefits,14/04/2010,HOUSING BENEFIT ADMIN,HOUSING BENEFIT,EAST NORTHANTS DISTRICT COUNCIL,2014827354,"44,618.0"
Department for Work and Pensions ,Corporate,19/04/2010,COMPUTER SERVICES,CHANGE MANAGEMENT DIRECTORATE,BT SYNTEGRA,2014844602,"44,439.7"
Department for Work and Pensions ,Corporate,14/04/2010,EMPLOYMENT ZONES,GROUP FINANCE,SEFTON CREDIT UNION LTD,2014821530,"44,419.0"
Department for Work and Pensions ,Housing Benefits,14/04/2010,HOUSING BENEFIT ADMIN,HOUSING BENEFIT,FAREHAM BOROUGH COUNCIL,2014827368,"44,401.0"
Department for Work and Pensions ,Housing Benefits,14/04/2010,HOUSING BENEFIT ADMIN,HOUSING BENEFIT,SOUTH LAKELAND DISTRICT COUNCIL,2014827543,"44,315.0"
Department for Work and Pensions ,Jobcentre Plus,30/04/2010,APPS DEV,TPM PROGRAMMES,HP ENTERPRISE SERVICES UK LTD,2015082660,"44,301.3"
Department for Work and Pensions ,Housing Benefits,14/04/2010,HOUSING BENEFIT ADMIN,HOUSING BENEFIT,TEWKESBURY BOROUGH COUNCIL,2014827580,"44,289.0"
Department for Work and Pensions ,Corporate,14/04/2010,EMPLOYMENT ZONES,GROUP FINANCE,RIVERSIDE CREDIT UNION,2014814119,"44,142.0"
Department for Work and Pensions ,Corporate,21/04/2010,EMPLOYMENT ZONES,GROUP FINANCE,SALFORD MONEY LINE,2014924483,"44,142.0"
Department for Work and Pensions ,Jobcentre Plus,15/04/2010,ACCOMMODATION,JOBCENTRE PLUS,TELEREAL TRILLIUM,2014833482,"43,928.8"
Department for Work and Pensions ,Corporate,13/04/2010,PROFESSIONAL FEES,PENSIONS CLIENT DIRECTORATE,NATCEN,2014756267,"43,862.0"
Department for Work and Pensions ,Housing Benefits,14/04/2010,HOUSING BENEFIT ADMIN,HOUSING BENEFIT,TORRIDGE DISTRICT COUNCIL,2014827588,"43,549.0"
Department for Work and Pensions ,Corporate,13/04/2010,APPS DEV,MISC RFR 5,HP ENTERPRISE SERVICES UK LTD,2014752927,"43,449.8"
Department for Work and Pensions ,Employment Programmes,27/04/2010,WORKSTEP,WWG CORE PROGRAMME,DUNDEE CITY COUNCIL,2014957724,"43,431.1"
Department for Work and Pensions ,Employment Programmes,26/04/2010,YOUNG PERSONS GUARANTEE (YPG) AND FUTURE JOBS FUND (FJF),WWG CORE PROGRAMME,ENABLE,2014949668,"43,350.0"
Department for Work and Pensions ,Corporate,19/04/2010,INTERNATIONAL PROGRAMMES,WWG TOP LEVEL,THE BRITISH COUNCIL,2014848811,"43,330.0"
Department for Work and Pensions ,Corporate,06/04/2010,TEMPORARY (TEMP) STAFF COSTS,GROUP FINANCE,CAPITA RESOURCING LIMITED,2014653539,"42,963.0"
Department for Work and Pensions ,Housing Benefits,14/04/2010,HOUSING BENEFIT ADMIN,HOUSING BENEFIT,EAST CAMBRIDGESHIRE DISTRICT COUNCIL,2014827346,"42,841.0"
Department for Work and Pensions ,Housing Benefits,14/04/2010,HOUSING BENEFIT ADMIN,HOUSING BENEFIT,CLACKMANNANSHIRE COUNCIL,2014827318,"42,818.0"
Department for Work and Pensions ,Corporate,29/04/2010,TOTAL SUPPLIES & SERVICES,GROUP FINANCE,UK MAIL,2015055105,"42,790.2"
Department for Work and Pensions ,Housing Benefits,14/04/2010,HOUSING BENEFIT ADMIN,HOUSING BENEFIT,MID DEVON DISTRICT COUNCIL,2014827455,"42,780.0"
Department for Work and Pensions ,"Pension, Disability Carers Services",19/04/2010,PRINTING STATIONERY IT & CONSUMABLES,PDCS CORE,XEROX UK LIMITED,2014848988,"42,779.1"
Department for Work and Pensions ,Employment Programmes,16/04/2010,YOUNG PERSONS GUARANTEE (YPG) AND FUTURE JOBS FUND (FJF),WWG CORE PROGRAMME,CALDERDALE METROPOLITAN BOROUGH COUNCIL,2014838427,"42,750.0"
Department for Work and Pensions ,Corporate,23/04/2010,TEMPORARY (TEMP) STAFF COSTS,GROUP FINANCE,NORTH YORKSHIRE CREDIT UNION LTD,2014944424,"42,630.0"
Department for Work and Pensions ,Jobcentre Plus,26/04/2010,STAFF COSTS,JOBCENTRE PLUS,ELIESHA TRAINING LTD,2014949663,"42,628.3"
Department for Work and Pensions ,Corporate,14/04/2010,FURNITURE AND FITTINGS (NON TRILLIUM),DIRECTGOV ,OVERBURY PLC,2014809175,"42,624.3"
Department for Work and Pensions ,Jobcentre Plus,22/04/2010,MANAGEMENT CONSULTANCY,TPM PROGRAMMES,ATKINS LTD,2014933316,"42,598.0"
Department for Work and Pensions ,Corporate,30/04/2010,PRIME CHARGES,GROUP FINANCE,TELEREAL TRILLIUM,2015099298,"42,419.6"
Department for Work and Pensions ,Employment Programmes,01/04/2010,DAF,WWG CORE PROGRAMME,RCA TRUST,2014648376,"42,325.0"
Department for Work and Pensions ,Housing Benefits,14/04/2010,HOUSING BENEFIT ADMIN,HOUSING BENEFIT,SOUTH DERBYSHIRE DISTRICT COUNCIL,2014827538,"42,247.0"
Department for Work and Pensions ,Employment Programmes,16/04/2010,WORKSTEP,WWG CORE PROGRAMME,THE PLUSS ORGANISATION LTD,2014842537,"42,170.3"
Department for Work and Pensions ,"Pension, Disability Carers Services",23/04/2010,CONFERENCES AND MEETINGS,PDCS CORE,ATOMIC MULITIMEDIA,2014941446,"42,135.0"
Department for Work and Pensions ,Housing Benefits,14/04/2010,HOUSING BENEFIT ADMIN,HOUSING BENEFIT,RUNNYMEDE BOROUGH COUNCIL,2014827516,"42,100.0"
Department for Work and Pensions ,Jobcentre Plus,30/04/2010,ACCOMMODATION,JOBCENTRE PLUS,TELEREAL TRILLIUM,2015099301,"41,910.9"
Department for Work and Pensions ,Employment Programmes,15/04/2010,YOUNG PERSONS GUARANTEE (YPG) AND FUTURE JOBS FUND (FJF),WWG CORE PROGRAMME,DUNDEE CITY COUNCIL,2014832020,"41,731.4"
Department for Work and Pensions ,Corporate,13/04/2010,APPS DEV,GROUP FINANCE,HP ENTERPRISE SERVICES UK LTD,2014752927,"41,667.1"
Department for Work and Pensions ,Corporate,14/04/2010,APPS DEV,CORPORATE IT,HP ENTERPRISE SERVICES UK LTD,2014784199,"41,653.4"
Department for Work and Pensions ,Employment Programmes,09/04/2010,DAF,WWG CORE PROGRAMME,LEICESTER PATHFINDER,2014738573,"41,500.0"
Department for Work and Pensions ,Employment Programmes,16/04/2010,DAF,WWG CORE PROGRAMME,LIVERPOOL PATHFINDER,2014841009,"41,500.0"
Department for Work and Pensions ,Employment Programmes,16/04/2010,DAF,WWG CORE PROGRAMME,NOTTINGHAM PATHFINDER,2014841538,"41,500.0"
Department for Work and Pensions ,Corporate,13/04/2010,APPS DEV,MISC RFR 5,HP ENTERPRISE SERVICES UK LTD,2014752927,"41,464.7"
Department for Work and Pensions ,Corporate,30/04/2010,PRIME CHARGES,GROUP FINANCE,TELEREAL TRILLIUM,2015099298,"41,293.4"
Department for Work and Pensions ,Jobcentre Plus,12/04/2010,ACCOMMODATION,JOBCENTRE PLUS,TELEREAL TRILLIUM,2014745374,"41,191.2"
Department for Work and Pensions ,Housing Benefits,14/04/2010,HOUSING BENEFIT ADMIN,HOUSING BENEFIT,RUSHCLIFFE BOROUGH COUNCIL,2014827517,"41,183.0"
Department for Work and Pensions ,Corporate,14/04/2010,CAPITAL GRANTS,GROUP FINANCE,BLACKPOOL FYLDE & WYRE CREDIT UNION,2014767342,"41,172.0"
Department for Work and Pensions ,"Pension, Disability Carers Services",19/04/2010,CONTRACTED OUT OFFICE SERVICES,PDCS CORE,CAPITA BUSINESS SERVICES LTD,2014844790,"41,121.0"
Department for Work and Pensions ,"Pension, Disability Carers Services",27/04/2010,PUBLICITY,PDCS CORE,COI COMMUNICATIONS,2014955786,"41,118.7"
Department for Work and Pensions ,Corporate,26/04/2010,EMPLOYMENT ZONES,PENSIONS CLIENT DIRECTORATE,DELOITTE MCS LTD,2014947984,"41,016.5"
Department for Work and Pensions ,Jobcentre Plus,19/04/2010,NETWORK,ISD,BT SYNTEGRA,2014844602,"40,832.4"
Department for Work and Pensions ,Corporate,16/04/2010,STAFF COSTS,MISC RFR 5,FLETCHER CONSULTANCY,2014840013,"40,750.0"
Department for Work and Pensions ,Housing Benefits,14/04/2010,HOUSING BENEFIT ADMIN,HOUSING BENEFIT,EAST DORSET DISTRICT COUNCIL,2014827348,"40,747.0"
Department for Work and Pensions ,Corporate,30/04/2010,ACCOMMODATION,GROUP FINANCE,TELEREAL TRILLIUM,2015099301,"40,601.2"
Department for Work and Pensions ,Corporate,27/04/2010,INTERNATIONAL PROGRAMMES,WWG TOP LEVEL,BRITISH COUNCIL,2014955010,"40,591.0"
Department for Work and Pensions ,Corporate,14/04/2010,EMPLOYMENT ZONES,GROUP FINANCE,BRISTOL CITY CREDIT UNION,2014767377,"40,576.0"
Department for Work and Pensions ,Housing Benefits,14/04/2010,HOUSING BENEFIT ADMIN,HOUSING BENEFIT,CHILTERN DISTRICT COUNCIL,2014827311,"40,556.0"
Department for Work and Pensions ,Housing Benefits,14/04/2010,HOUSING BENEFIT ADMIN,HOUSING BENEFIT,SELBY DISTRICT COUNCIL,2014827527,"40,450.0"
Department for Work and Pensions ,Corporate,14/04/2010,EMPLOYMENT ZONES,GROUP FINANCE,WALTHAM FOREST COMMUNITY CREDIT UNION,2014826496,"40,415.0"
Department for Work and Pensions ,Employment Programmes,06/04/2010,YOUNG PERSONS GUARANTEE (YPG) AND FUTURE JOBS FUND (FJF),WWG CORE PROGRAMME,CREATIVE & CULTURAL SKILLS,2014653586,"40,300.0"
Department for Work and Pensions ,Employment Programmes,12/04/2010,YOUNG PERSONS GUARANTEE (YPG) AND FUTURE JOBS FUND (FJF),WWG CORE PROGRAMME,THE HEALTHY HUB CIC,2014746882,"40,300.0"
Department for Work and Pensions ,Employment Programmes,01/04/2010,WORKSTEP,WWG CORE PROGRAMME,HAVEN PRODUCTS LTD,2014644628,"40,119.9"
Department for Work and Pensions ,Corporate,01/04/2010,INTERNATIONAL PROGRAMMES,WWG TOP LEVEL,BRITISH COUNCIL,2014641231,"40,000.0"
Department for Work and Pensions ,Employment Programmes,09/04/2010,YOUNG PERSONS GUARANTEE (YPG) AND FUTURE JOBS FUND (FJF),WWG CORE PROGRAMME,ENGLISH COMMUNITY CARE ASSOCIATION,2014737833,"39,942.3"
Department for Work and Pensions ,Corporate,30/04/2010,ACCOMMODATION,GROUP FINANCE,TELEREAL TRILLIUM,2015099301,"39,911.4"
Department for Work and Pensions ,Corporate,13/04/2010,MISCELLANEOUS EXPENDITURE,WWG TOP LEVEL,NATIONAL CENTRE FOR SOCIAL RESEARCH,2014756268,"39,878.0"
Department for Work and Pensions ,Employment Programmes,19/04/2010,JSP ESF DEL P COSTS,WWG CORE PROGRAMME,SEETEC BUSINESS TECHNOLOGY CENTRE LTD,2014848615,"39,744.5"
Department for Work and Pensions ,Housing Benefits,14/04/2010,HOUSING BENEFIT ADMIN,HOUSING BENEFIT,HAMBLETON DISTRICT COUNCIL,2014827385,"39,530.0"
Department for Work and Pensions ,Jobcentre Plus,15/04/2010,STAFF COSTS,JOBCENTRE PLUS,ELIESHA TRAINING LTD,2014832143,"39,505.0"
Department for Work and Pensions ,Housing Benefits,14/04/2010,HOUSING BENEFIT ADMIN,HOUSING BENEFIT,MID SUFFOLK DISTRICT COUNCIL,2014827456,"39,487.0"
Department for Work and Pensions ,Housing Benefits,14/04/2010,HOUSING BENEFIT ADMIN,HOUSING BENEFIT,MALVERN HILLS DISTRICT COUNCIL,2014827448,"39,486.0"
Department for Work and Pensions ,Jobcentre Plus,20/04/2010,APPS DEV,ISD,HP ENTERPRISE SERVICES UK LTD,2014855104,"39,437.9"
Department for Work and Pensions ,Corporate,30/04/2010,PRIME CHARGES,GROUP FINANCE,TELEREAL TRILLIUM,2015099298,"39,372.0"
Department for Work and Pensions ,Corporate,19/04/2010,COMPUTER SERVICES,CORPORATE IT,HP ENTERPRISE SERVICES UK LTD,2014846648,"39,334.6"
Department for Work and Pensions ,Corporate,14/04/2010,CAPITAL GRANTS,GROUP FINANCE,NEATH PORT TALBOT CREDIT UNION,2014808825,"39,291.0"
Department for Work and Pensions ,Jobcentre Plus,09/04/2010,MEDICAL SERVICES CONTRACT,JOBCENTRE PLUS,ATOS ORIGIN MEDICAL SERVICES,2014735703,"39,200.0"
Department for Work and Pensions ,Employment Programmes,23/04/2010,YOUNG PERSONS GUARANTEE (YPG) AND FUTURE JOBS FUND (FJF),WWG CORE PROGRAMME,COALFIELDS REGENERATION TRUST,2014941771,"39,174.2"
Department for Work and Pensions ,Housing Benefits,14/04/2010,HOUSING BENEFIT ADMIN,HOUSING BENEFIT,FYLDE BOROUGH COUNCIL,2014827374,"39,163.0"
Department for Work and Pensions ,Employment Programmes,22/04/2010,WORK PREPARATION,WWG CORE PROGRAMME,THE OAKLEA TRUST,2014938525,"39,158.6"
Department for Work and Pensions ,Corporate,06/04/2010,COMPUTER SERVICES,CORPORATE IT,ATOS ORIGIN IT SERVICES UK LTD,2014653374,"39,039.0"
Department for Work and Pensions ,Employment Programmes,13/04/2010,ACCESS TO WORK,WWG CORE PROGRAMME,KINGS COLLEGE HOSPITAL NHS,2014754502,"39,025.3"
Department for Work and Pensions ,Employment Programmes,08/04/2010,YOUNG PERSONS GUARANTEE (YPG) AND FUTURE JOBS FUND (FJF),WWG CORE PROGRAMME,INVERCLYDE COUNCIL,2014730742,"39,000.0"
Department for Work and Pensions ,Employment Programmes,09/04/2010,YOUNG PERSONS GUARANTEE (YPG) AND FUTURE JOBS FUND (FJF),WWG CORE PROGRAMME,NOVAS SCARMAN GROUP LTD,2014738949,"39,000.0"
Department for Work and Pensions ,Employment Programmes,14/04/2010,YOUNG PERSONS GUARANTEE (YPG) AND FUTURE JOBS FUND (FJF),WWG CORE PROGRAMME,MIDDLESBROUGH COUNCIL,2014806337,"39,000.0"
Department for Work and Pensions ,Corporate,21/04/2010,MARKETING,MISC RFR 5,BRAHM LTD,2014869991,"38,867.0"
Department for Work and Pensions ,Housing Benefits,14/04/2010,HOUSING BENEFIT ADMIN,HOUSING BENEFIT,BROMSGROVE DISTRICT COUNCIL,2014827288,"38,478.0"
Department for Work and Pensions ,Employment Programmes,20/04/2010,WORKSTEP,WWG CORE PROGRAMME,AGORIAD CYF,2014862900,"38,254.9"
Department for Work and Pensions ,Employment Programmes,08/04/2010,YOUNG PERSONS GUARANTEE (YPG) AND FUTURE JOBS FUND (FJF),WWG CORE PROGRAMME,TRAX ENERGY SOLUTIONS,2014733019,"38,250.0"
Department for Work and Pensions ,Employment Programmes,15/04/2010,WORK PREPARATION,WWG CORE PROGRAMME,MENCAP IN WALES,2014833837,"38,216.5"
Department for Work and Pensions ,Employment Programmes,15/04/2010,WORKSTEP,WWG CORE PROGRAMME,BOURNEMOUTH BOROUGH COUNCIL,2014830370,"38,077.7"
Department for Work and Pensions ,Employment Programmes,14/04/2010,WORKSTEP,WWG CORE PROGRAMME,GLASGOW BLINDCRAFT,547660,"38,027.6"
Department for Work and Pensions ,Housing Benefits,14/04/2010,HOUSING BENEFIT ADMIN,HOUSING BENEFIT,BLABY DISTRICT COUNCIL,2014827268,"37,876.0"
Department for Work and Pensions ,Employment Programmes,28/04/2010,WORK PREPARATION,WWG CORE PROGRAMME,ASPIRE,2014973165,"37,797.6"
Department for Work and Pensions ,Employment Programmes,30/04/2010,ND 50+,WWG CORE PROGRAMME,PERTEMPS,2015109979,"37,727.0"
Department for Work and Pensions ,Corporate,21/04/2010,TEMPORARY (TEMP) STAFF COSTS,DIRECTGOV ,SERCO LTD,2014924597,"37,717.5"
Department for Work and Pensions ,Employment Programmes,08/04/2010,YOUNG PERSONS GUARANTEE (YPG) AND FUTURE JOBS FUND (FJF),WWG CORE PROGRAMME,THE HIGHLAND COUNCIL,2014732975,"37,700.0"
Department for Work and Pensions ,Corporate,06/04/2010,MARKETING,MISC RFR 5,COI CENTRAL OFFICE OF INFO,2014653576,"37,544.7"
Department for Work and Pensions ,Housing Benefits,14/04/2010,HOUSING BENEFIT ADMIN,HOUSING BENEFIT,ROCHFORD DISTRICT COUNCIL,2014827510,"37,532.0"
Department for Work and Pensions ,Housing Benefits,14/04/2010,HOUSING BENEFIT ADMIN,HOUSING BENEFIT,ADUR DISTRICT COUNCIL,2014827250,"37,480.0"
Department for Work and Pensions ,Housing Benefits,14/04/2010,HOUSING BENEFIT ADMIN,HOUSING BENEFIT,DAVENTRY DISTRICT COUNCIL,2014827335,"37,415.0"
Department for Work and Pensions ,Corporate,30/04/2010,ACCOMMODATION,GROUP FINANCE,TELEREAL TRILLIUM,2015099301,"37,277.1"
Department for Work and Pensions ,Corporate,21/04/2010,COMPUTER SERVICES,CORPORATE IT,COMPUTACENTER UK LTD,2014874954,"37,080.0"
Department for Work and Pensions ,Corporate,06/04/2010,TEMPORARY (TEMP) STAFF COSTS,GROUP FINANCE,CAPITA RESOURCING LIMITED,2014653539,"37,071.2"
Department for Work and Pensions ,Housing Benefits,14/04/2010,HOUSING BENEFIT ADMIN,HOUSING BENEFIT,NORTH WARWICKSHIRE DISTRICT COUNCIL,2014827481,"36,918.0"
Department for Work and Pensions ,Employment Programmes,16/04/2010,YOUNG PERSONS GUARANTEE (YPG) AND FUTURE JOBS FUND (FJF),WWG CORE PROGRAMME,BEDFORD BOROUGH COUNCIL,2014838174,"36,891.6"
Department for Work and Pensions ,Corporate,30/04/2010,PRIME CHARGES,GROUP FINANCE,TELEREAL TRILLIUM,2015099298,"36,884.8"
Department for Work and Pensions ,Employment Programmes,15/04/2010,WORKSTEP,WWG CORE PROGRAMME,DORSET COUNTY COUNCIL,2014831114,"36,478.0"
Department for Work and Pensions ,Employment Programmes,06/04/2010,YOUNG PERSONS GUARANTEE (YPG) AND FUTURE JOBS FUND (FJF),WWG CORE PROGRAMME,ASPIRE FOUNDATION,2014653369,"36,400.0"
Department for Work and Pensions ,"Pension, Disability Carers Services",23/04/2010,COMPUTER SERVICES,PDCS CORE,HM Revenue & Customs,2014943389,"36,312.0"
Department for Work and Pensions ,Housing Benefits,14/04/2010,HOUSING BENEFIT ADMIN,HOUSING BENEFIT,EAST RENFREWSHIRE COUNCIL,2014827355,"36,204.0"
Department for Work and Pensions ,Housing Benefits,14/04/2010,HOUSING BENEFIT ADMIN,HOUSING BENEFIT,TANDRIDGE DISTRICT COUNCIL,2014827575,"36,176.0"
Department for Work and Pensions ,Housing Benefits,14/04/2010,HOUSING BENEFIT ADMIN,HOUSING BENEFIT,FOREST HEATH DISTRICT COUNCIL,2014827372,"36,143.0"
Department for Work and Pensions ,Employment Programmes,19/04/2010,ACCESS TO WORK,WWG CORE PROGRAMME,ROYAL BRITISH LEGION INDUSTRIES,2014848304,"36,139.7"
Department for Work and Pensions ,Employment Programmes,28/04/2010,YOUNG PERSONS GUARANTEE (YPG) AND FUTURE JOBS FUND (FJF),WWG CORE PROGRAMME,SHROPSHIRE COUNCIL COUNTY TRAINING,2015030524,"36,138.1"
Department for Work and Pensions ,Employment Programmes,15/04/2010,ACCESS TO WORK,WWG CORE PROGRAMME,ROYAL BRITISH LEGION INDUSTRIES,2014834547,"36,054.9"
Department for Work and Pensions ,Corporate,21/04/2010,TEMPORARY (TEMP) STAFF COSTS,DIRECTGOV ,CADENCE PARTNERSHIP LLP,2014874632,"35,970.3"
Department for Work and Pensions ,Corporate,22/04/2010,COMPUTER SERVICES,CORPORATE IT,DELL FINANCIAL SERVICES,2014934129,"35,960.1"
Department for Work and Pensions ,Housing Benefits,14/04/2010,HOUSING BENEFIT ADMIN,HOUSING BENEFIT,SURREY HEATH BOROUGH COUNCIL,2014827569,"35,889.0"
Department for Work and Pensions ,Employment Programmes,21/04/2010,YOUNG PERSONS GUARANTEE (YPG) AND FUTURE JOBS FUND (FJF),WWG CORE PROGRAMME,ROYAL BOROUGH OF WINDSOR & MAIDENHEAD,2014917225,"35,850.0"
Department for Work and Pensions ,Corporate,27/04/2010,TEMPORARY (TEMP) STAFF COSTS,GROUP FINANCE,FIRST WESSEX HOUSING GROUP,2014958143,"35,832.0"
Department for Work and Pensions ,Corporate,23/04/2010,CAPITAL GRANTS,GROUP FINANCE,EAST SUSSEX CREDIT UNION,2014943122,"35,827.0"
Department for Work and Pensions ,Jobcentre Plus,12/04/2010,CONFERENCES AND MEETINGS,JOBCENTRE PLUS,NYS CORPORATE LTD,2014745896,"35,813.5"
Department for Work and Pensions ,Jobcentre Plus,19/04/2010,ACCOMMODATION,JOBCENTRE PLUS,TELEREAL TRILLIUM,2014847398,"35,786.9"
Department for Work and Pensions ,Housing Benefits,14/04/2010,HOUSING BENEFIT ADMIN,HOUSING BENEFIT,MOLE VALLEY DISTRICT COUNCIL,2014827461,"35,602.0"
Department for Work and Pensions ,Corporate,14/04/2010,TEMPORARY (TEMP) STAFF COSTS,GROUP FINANCE,ACCENT COMMUNITY PARTNERSHIPS LTD,2014765658,"35,550.5"
Department for Work and Pensions ,Corporate,12/04/2010,PRINTING STATIONERY IT & CONSUMABLES,WWG TOP LEVEL,CDS LTD,2014742372,"35,519.7"
Department for Work and Pensions ,Employment Programmes,29/04/2010,YOUNG PERSONS GUARANTEE (YPG) AND FUTURE JOBS FUND (FJF),WWG CORE PROGRAMME,LONDON BOROUGH OF ISLINGTON,2015049420,"35,400.0"
Department for Work and Pensions ,Corporate,29/04/2010,EMPLOYMENT ZONES,GROUP FINANCE,HARTLEPOOL CREDIT UNION LTD,2015045996,"35,393.0"
Department for Work and Pensions ,Employment Programmes,29/04/2010,ACCESS TO WORK,WWG CORE PROGRAMME,ACTION FOR BLIND PEOPLE,2015040591,"35,361.7"
Department for Work and Pensions ,Corporate,21/04/2010,TEMPORARY (TEMP) STAFF COSTS,GROUP FINANCE,CHARTERED INSTITUTE OF HOUSING,2014874737,"35,349.7"
Department for Work and Pensions ,"Pension, Disability Carers Services",30/04/2010,COMPUTER SERVICES,PDCS CHANGE ,ACCENTURE,2015063690,"35,280.2"
Department for Work and Pensions ,Corporate,21/04/2010,COMMUNICATIONS & PUBLICITY,DIRECTGOV ,ASPECT FILM & VIDEO,548255,"35,168.0"
Department for Work and Pensions ,Employment Programmes,08/04/2010,YOUNG PERSONS GUARANTEE (YPG) AND FUTURE JOBS FUND (FJF),WWG CORE PROGRAMME,ANGUS COUNCIL,2014728463,"35,100.0"
Department for Work and Pensions ,Employment Programmes,26/04/2010,YOUNG PERSONS GUARANTEE (YPG) AND FUTURE JOBS FUND (FJF),WWG CORE PROGRAMME,STRIDE SHARP TRADING LEICESTER LTD,2014952061,"35,100.0"
Department for Work and Pensions ,Jobcentre Plus,01/04/2010,COMPUTER SERVICES, FINANCE,COMPUTACENTER UK LTD,2014641868,"35,067.5"
Department for Work and Pensions ,Corporate,08/04/2010,RECEIPTS CURRENT,WWG TOP LEVEL,MEDIA TRUST,2014731807,"34,983.9"
Department for Work and Pensions ,Corporate,12/04/2010,TEMPORARY (TEMP) STAFF COSTS,WWG TOP LEVEL,CAPITA RESOURCING LIMITED,2014742367,"34,849.3"
Department for Work and Pensions ,Corporate,19/04/2010,COMPUTER SERVICES,CORPORATE IT,BT SYNTEGRA,2014844602,"34,829.2"
Department for Work and Pensions ,Employment Programmes,19/04/2010,WORKSTEP,WWG CORE PROGRAMME,BRIGHTON & HOVE CITY COUNCIL,2014844593,"34,782.1"
Department for Work and Pensions ,Jobcentre Plus,28/04/2010,APPS DEV,JOBCENTRE PLUS,HP ENTERPRISE SERVICES UK LTD,2014992041,"34,777.0"
Department for Work and Pensions ,Jobcentre Plus,21/04/2010,ACCOMMODATION,JOBCENTRE PLUS,TELEREAL TRILLIUM,2014903659,"34,667.0"
Department for Work and Pensions ,Employment Programmes,23/04/2010,ND 50+,WWG CORE PROGRAMME,REMPLOY LTD,2014944745,"34,661.0"
Department for Work and Pensions ,Jobcentre Plus,09/04/2010,MEDICAL SERVICES CONTRACT, ESAP PROGRAMMES,ATOS ORIGIN MEDICAL SERVICES,2014735703,"34,660.1"
Department for Work and Pensions ,"Pension, Disability Carers Services",14/04/2010,COMPUTER SERVICES,PDCS CHANGE ,HM Revenue & Customs,2014784189,"34,536.5"
Department for Work and Pensions ,Jobcentre Plus,26/04/2010,NON PRIME CHARGES,JOBCENTRE PLUS,HM Revenue & Customs,2014949977,"34,501.6"
Department for Work and Pensions ,Corporate,13/04/2010,MISCELLANEOUS EXPENDITURE,WWG TOP LEVEL,UNIVERSITY OF WESTMINSTER PSI,2014758880,"34,499.6"
Department for Work and Pensions ,Jobcentre Plus,12/04/2010,ACCOMMODATION,JOBCENTRE PLUS,TELEREAL TRILLIUM,2014745374,"34,477.8"
Department for Work and Pensions ,Jobcentre Plus,16/04/2010,JOBCENTRE PLUS PATHWAYS TO WORK,JOBCENTRE PLUS,GATESHEAD PRIMARY CARE TRUST,2014840116,"34,386.0"
Department for Work and Pensions ,Employment Programmes,19/04/2010,WORKSTEP,WWG CORE PROGRAMME,ACTION FOR BLIND PEOPLE,2014844420,"34,335.2"
Department for Work and Pensions ,Corporate,26/04/2010,OTHER GOODS AND SERVICES,GROUP FINANCE,THE TOGETHER WOMEN PROJECT YORKSHIRE & HUMBERSIDE,2014952216,"34,300.0"
Department for Work and Pensions ,Corporate,14/04/2010,EMPLOYMENT ZONES,GROUP FINANCE,NOTTINGHAM CREDIT UNION LTD,2014808964,"34,137.0"
Department for Work and Pensions ,Corporate,12/04/2010,ACCOMMODATION,GROUP FINANCE,TELEREAL TRILLIUM,2014745374,"34,040.7"
Department for Work and Pensions ,Corporate,23/04/2010,MANAGEMENT CONSULTANCY,CORPORATE IT,DELOITTE MCS LTD,2014941963,"33,925.0"
Department for Work and Pensions ,Corporate,23/04/2010,TEMPORARY (TEMP) STAFF COSTS,DIRECTGOV ,ZEBRA PEOPLE LTD,2014945440,"33,863.9"
Department for Work and Pensions ,Housing Benefits,14/04/2010,HOUSING BENEFIT ADMIN,HOUSING BENEFIT,MALDON DISTRICT COUNCIL,2014827447,"33,831.0"
Department for Work and Pensions ,Employment Programmes,28/04/2010,YOUNG PERSONS GUARANTEE (YPG) AND FUTURE JOBS FUND (FJF),WWG CORE PROGRAMME,ASIAN WOMENS PROJECT LTD,2014973162,"33,800.0"
Department for Work and Pensions ,Corporate,27/04/2010,TEMPORARY (TEMP) STAFF COSTS,GROUP FINANCE,BIRMINGHAM CITY COUNCIL,2014954969,"33,701.4"
Department for Work and Pensions ,Corporate,19/04/2010,COMPUTER SERVICES,CORPORATE IT,BT SYNTEGRA,2014844602,"33,625.6"
Department for Work and Pensions ,Corporate,14/04/2010,IT EQUIPMENT CAPITAL,MISC RFR 5,COMPUTACENTER UK LTD,2014772288,"33,575.6"
Department for Work and Pensions ,Jobcentre Plus,29/04/2010,ACCOMMODATION,JOBCENTRE PLUS,TELEREAL TRILLIUM,2015049328,"33,494.5"
Department for Work and Pensions ,Employment Programmes,01/04/2010,WORKSTEP,WWG CORE PROGRAMME,NEWCASTLE CITY COUNCIL,2014647522,"33,451.1"
Department for Work and Pensions ,Jobcentre Plus,26/04/2010,NON PRIME CHARGES,JOBCENTRE PLUS,COPELAND BOROUGH COUNCIL,2014947749,"33,414.0"
Department for Work and Pensions ,Corporate,13/04/2010,TOTAL AGENCY & CONSULTANCY COSTS,WWG TOP LEVEL,ORC INTERNATIONAL LTD,2014756363,"33,246.6"
Department for Work and Pensions ,Corporate,20/04/2010,NON PRIME CHARGES,GROUP FINANCE,HM Revenue & Customs,2014855096,"33,154.9"
Department for Work and Pensions ,Corporate,21/04/2010,CAPITAL GRANTS,GROUP FINANCE,BIRMINGHAM CREDIT UNION DEVELOPMENT AGENCY LTD,2014869937,"33,115.0"
Department for Work and Pensions ,"Pension, Disability Carers Services",26/04/2010,NON PRIME CHARGES,PDCS CORE,EDF ENERGY,2014949651,"33,079.5"
Department for Work and Pensions ,Corporate,28/04/2010,COMPUTER SERVICES,CORPORATE IT,HP ENTERPRISE SERVICES UK LTD,2014992041,"33,013.3"
Department for Work and Pensions ,Housing Benefits,14/04/2010,HOUSING BENEFIT ADMIN,HOUSING BENEFIT,BRENTWOOD DISTRICT COUNCIL,2014827283,"32,976.0"
Department for Work and Pensions ,Corporate,30/04/2010,COMPUTER SERVICES,CHANGE MANAGEMENT DIRECTORATE,ATOS ORIGIN IT SERVICES UK LTD,2015064115,"32,970.0"
Department for Work and Pensions ,Corporate,26/04/2010,COMPUTER SERVICES,WWG TOP LEVEL,ORC INTERNATIONAL LTD,2014951284,"32,940.7"
Department for Work and Pensions ,Jobcentre Plus,13/04/2010,APPS DEV,ISD,HP ENTERPRISE SERVICES UK LTD,2014752927,"32,922.9"
Department for Work and Pensions ,Housing Benefits,14/04/2010,HOUSING BENEFIT ADMIN,HOUSING BENEFIT,NORTH DORSET DISTRICT COUNCIL,2014827471,"32,884.0"
Department for Work and Pensions ,Corporate,30/04/2010,COMPUTER SERVICES,CORPORATE IT,ATOS ORIGIN IT SERVICES UK LTD,2015064116,"32,878.9"
Department for Work and Pensions ,Corporate,30/04/2010,INTERNATIONAL PROGRAMMES,WWG TOP LEVEL,INTERNATIONAL GRADUATE INSIGHT GROUP,2015083271,"32,750.0"
Department for Work and Pensions ,Corporate,19/04/2010,COMPUTER SERVICES,CHANGE MANAGEMENT DIRECTORATE,BT SYNTEGRA,2014844602,"32,611.5"
Department for Work and Pensions ,Corporate,20/04/2010,APPS DEV,CORPORATE IT,HP ENTERPRISE SERVICES UK LTD,2014855104,"32,596.1"
Department for Work and Pensions ,Corporate,27/04/2010,TEMPORARY (TEMP) STAFF COSTS,GROUP FINANCE,BRISTOL CITY COUNCIL,2014955007,"32,546.7"
Department for Work and Pensions ,Employment Programmes,06/04/2010,YOUNG PERSONS GUARANTEE (YPG) AND FUTURE JOBS FUND (FJF),WWG CORE PROGRAMME,BTCV ENTERPRISES LTD,2014653441,"32,500.0"
Department for Work and Pensions ,Employment Programmes,09/04/2010,YOUNG PERSONS GUARANTEE (YPG) AND FUTURE JOBS FUND (FJF),WWG CORE PROGRAMME,LONDON BOROUGH OF HAVERING,2014738595,"32,500.0"
Department for Work and Pensions ,"Pension, Disability Carers Services",14/04/2010,APPS DEV,PDCS CHANGE ,HP ENTERPRISE SERVICES UK LTD,2014784199,"32,489.4"
Department for Work and Pensions ,Corporate,14/04/2010,CAPITAL GRANTS,GROUP FINANCE,WALTHAM FOREST COMMUNITY CREDIT UNION,2014826496,"32,358.0"
Department for Work and Pensions ,Jobcentre Plus,08/04/2010,TOTAL AGENCY & CONSULTANCY COSTS,JOBCENTRE PLUS,WEST LOTHIAN COUNCIL,2014733151,"32,280.0"
Department for Work and Pensions ,Employment Programmes,08/04/2010,WORKSTEP,WWG CORE PROGRAMME,MAXIMUS EMPLOYMENT & TRAINING LTD,2014731793,"32,221.1"
Department for Work and Pensions ,Corporate,23/04/2010,EMPLOYMENT ZONES,GROUP FINANCE,LEWISHAM PLUS & CREDIT UNION,2014944007,"32,125.0"
Department for Work and Pensions ,"Pension, Disability Carers Services",30/04/2010,PRINTING STATIONERY IT & CONSUMABLES,PDCS CORE,XEROX UK LIMITED,2015125301,"31,864.1"
Department for Work and Pensions ,Jobcentre Plus,14/04/2010,PROFESSIONAL FEES,JOBCENTRE PLUS,THE BIG WORD INTERPRETING SERVICES LTD,2014824657,"31,726.4"
Department for Work and Pensions ,Corporate,14/04/2010,CAPITAL GRANTS,GROUP FINANCE,SCOTCASH,2014821452,"31,709.0"
Department for Work and Pensions ,Corporate,21/04/2010,APPS DEV,CHANGE MANAGEMENT DIRECTORATE,HP ENTERPRISE SERVICES UK LTD,2014887013,"31,706.0"
Department for Work and Pensions ,Housing Benefits,14/04/2010,HOUSING BENEFIT ADMIN,HOUSING BENEFIT,EPSOM & EWELL BOROUGH COUNCIL,2014827364,"31,561.0"
Department for Work and Pensions ,Employment Programmes,08/04/2010,YOUNG PERSONS GUARANTEE (YPG) AND FUTURE JOBS FUND (FJF),WWG CORE PROGRAMME,BRIGHTON & HOVE CITY COUNCIL,2014728604,"31,500.0"
Department for Work and Pensions ,Housing Benefits,14/04/2010,HOUSING BENEFIT ADMIN,HOUSING BENEFIT,UTTLESFORD DISTRICT COUNCIL,2014827591,"31,492.0"
Department for Work and Pensions ,Employment Programmes,06/04/2010,ACCESS TO WORK,WWG CORE PROGRAMME,LCC CITY CNCL ST PAULS CATHOLIC SCHOOL,2014655507,"31,411.1"
Department for Work and Pensions ,Corporate,21/04/2010,TEMPORARY (TEMP) STAFF COSTS,DIRECTGOV ,CADENCE PARTNERSHIP LLP,2014874632,"31,406.6"
Department for Work and Pensions ,Jobcentre Plus,12/04/2010,ESTATES CHARGEABLE EXTRAS,TPM PROGRAMMES,TELEREAL TRILLIUM,2014745374,"31,389.4"
Department for Work and Pensions ,Employment Programmes,22/04/2010,WORKSTEP,WWG CORE PROGRAMME,CHESHIRE EAST BOROUGH COUNCIL,2014933761,"31,386.2"
Department for Work and Pensions ,Employment Programmes,13/04/2010,YOUNG PERSONS GUARANTEE (YPG) AND FUTURE JOBS FUND (FJF),WWG CORE PROGRAMME,LUTON BOROUGH COUNCIL,2014755170,"31,314.5"
Department for Work and Pensions ,Employment Programmes,12/04/2010,YOUNG PERSONS GUARANTEE (YPG) AND FUTURE JOBS FUND (FJF),WWG CORE PROGRAMME,ROYAL BOROUGH OF WINDSOR & MAIDENHEAD,2014746284,"31,200.0"
Department for Work and Pensions ,Jobcentre Plus,29/04/2010,COMPUTER SERVICES,TPMD,HP ENTERPRISE SERVICES UK LTD,2015046041,"31,169.5"
Department for Work and Pensions ,Employment Programmes,08/04/2010,ACCESS TO WORK,WWG CORE PROGRAMME,PERTEMPS DISABILITY CONSULTANCY,2014732180,"31,137.5"
Department for Work and Pensions ,Jobcentre Plus,13/04/2010,PRINTING STATIONERY IT & CONSUMABLES,TPMD,XEROX UK LIMITED 3W,2014759164,"31,122.4"
Department for Work and Pensions ,Employment Programmes,08/04/2010,YOUNG PERSONS GUARANTEE (YPG) AND FUTURE JOBS FUND (FJF),WWG CORE PROGRAMME,COMMUNITY ENTERPRISE DERBY CIC,2014728907,"31,050.0"
Department for Work and Pensions ,Employment Programmes,13/04/2010,WORKSTEP,WWG CORE PROGRAMME,NORTH LINCOLNSHIRE COUNCIL,2014756311,"30,959.0"
Department for Work and Pensions ,Corporate,28/04/2010,PUBLICITY,CHANGE MANAGEMENT DIRECTORATE,BUNNYFOOT LTD,2014974552,"30,693.5"
Department for Work and Pensions ,Corporate,28/04/2010,IS/IT,CORPORATE IT,COMPUTACENTER UK LTD,2014979618,"30,601.7"
Department for Work and Pensions ,Corporate,13/04/2010,COMPUTER SERVICES,CORPORATE IT,HP ENTERPRISE SERVICES UK LTD,2014752927,"30,458.5"
Department for Work and Pensions ,Corporate,23/04/2010,PROFESSIONAL FEES,GROUP FINANCE,MET OFFICE,2014944289,"30,430.0"
Department for Work and Pensions ,Employment Programmes,26/04/2010,YOUNG PERSONS GUARANTEE (YPG) AND FUTURE JOBS FUND (FJF),WWG CORE PROGRAMME,NORTH EAST LINCOLNSHIRE COUNCIL,2014951255,"30,364.7"
Department for Work and Pensions ,Housing Benefits,14/04/2010,HOUSING BENEFIT ADMIN,HOUSING BENEFIT,CHRISTCHURCH BOROUGH COUNCIL,2014827313,"30,359.0"
Department for Work and Pensions ,Housing Benefits,14/04/2010,HOUSING BENEFIT ADMIN,HOUSING BENEFIT,SOUTH NORTHANTS COUNCIL,2014827546,"30,357.0"
Department for Work and Pensions ,Housing Benefits,14/04/2010,HOUSING BENEFIT ADMIN,HOUSING BENEFIT,DERBYSHIRE DALES DISTRICT COUNCIL,2014827338,"30,340.0"
Department for Work and Pensions ,Housing Benefits,14/04/2010,HOUSING BENEFIT ADMIN,HOUSING BENEFIT,WEST DEVON BOROUGH COUNCIL,2014827604,"30,185.0"
Department for Work and Pensions ,Corporate,13/04/2010,MISCELLANEOUS EXPENDITURE,WWG TOP LEVEL,THE UNIVERSITY OF WARWICK,2014758806,"30,107.2"
Department for Work and Pensions ,Corporate,14/04/2010,PUBLICITY,WWG TOP LEVEL,COI CENTRAL OFFICE OF INFORMATION,2014772280,"30,000.0"
Department for Work and Pensions ,Corporate,21/04/2010,MISCELLANEOUS EXPENDITURE,WWG TOP LEVEL,THE UNIVERSITY OF WARWICK,2014927740,"30,000.0"
Department for Work and Pensions ,Corporate,06/04/2010,MISCELLANEOUS EXPENDITURE,MISC RFR 5,DURRANTS PRESS CUTTINGS LTD,2014654971,"29,957.4"
Department for Work and Pensions ,Corporate,20/04/2010,APPS DEV,CORPORATE IT,HP ENTERPRISE SERVICES UK LTD,2014855104,"29,929.9"
Department for Work and Pensions ,Corporate,20/04/2010,CONTRACTED OUT OFFICE SERVICES,SHARED SERVICES ,COMMERCIAL COLLECTION SERVICES LTD,2014852235,"29,927.3"
Department for Work and Pensions ,Employment Programmes,12/04/2010,YOUNG PERSONS GUARANTEE (YPG) AND FUTURE JOBS FUND (FJF),WWG CORE PROGRAMME,RHYL CITY STRATEGY COMMUNITY INTEREST COMPANY,2014746260,"29,900.0"
Department for Work and Pensions ,Employment Programmes,16/04/2010,PROGRESS TO WORK,WWG CORE PROGRAMME,WORKING LINKS,2014842738,"29,835.8"
Department for Work and Pensions ,Corporate,14/04/2010,CAPITAL GRANTS,GROUP FINANCE,NOTTINGHAM CREDIT UNION LTD,2014808964,"29,805.0"
Department for Work and Pensions ,Employment Programmes,23/04/2010,YOUNG PERSONS GUARANTEE (YPG) AND FUTURE JOBS FUND (FJF),WWG CORE PROGRAMME,HASTINGS BOROUGH COUNCIL,2014943374,"29,700.0"
Department for Work and Pensions ,Employment Programmes,28/04/2010,YOUNG PERSONS GUARANTEE (YPG) AND FUTURE JOBS FUND (FJF),WWG CORE PROGRAMME,EDS NW LTD,2014987352,"29,700.0"
Department for Work and Pensions ,Jobcentre Plus,29/04/2010,JCP GENERAL & PROGRAMME RESEARCH, STRATEGY AND PLANNING,GHK CONSULTING LTD,2015045678,"29,700.0"
Department for Work and Pensions ,Corporate,07/04/2010,TEMPORARY (TEMP) STAFF COSTS,CORPORATE IT,SOGETI UK LTD,2014719270,"29,634.5"
Department for Work and Pensions ,"Pension, Disability Carers Services",20/04/2010,APPS DEV,PDCS CORE,HP ENTERPRISE SERVICES UK LTD,2014855104,"29,558.4"
Department for Work and Pensions ,Employment Programmes,01/04/2010,YOUNG PERSONS GUARANTEE (YPG) AND FUTURE JOBS FUND (FJF),WWG CORE PROGRAMME,LANCASHIRE COUNTY COUNCIL,2014646445,"29,550.0"
Department for Work and Pensions ,Corporate,27/04/2010,TEMPORARY (TEMP) STAFF COSTS,GROUP FINANCE,FINANCIAL INCLUSION SERVICES YORKSHIRE LTD,2014958136,"29,492.2"
Department for Work and Pensions ,Jobcentre Plus,19/04/2010,ACCOMMODATION,JOBCENTRE PLUS,TELEREAL TRILLIUM,2014847399,"29,490.0"
Department for Work and Pensions ,Corporate,20/04/2010,APPS DEV,CORPORATE IT,HP ENTERPRISE SERVICES UK LTD,2014855104,"29,479.0"
Department for Work and Pensions ,Employment Programmes,14/04/2010,PROGRESS TO WORK,WWG CORE PROGRAMME,TURNING POINT SERVICES LTD,2014824823,"29,455.4"
Department for Work and Pensions ,Corporate,30/04/2010,ACCOMMODATION,GROUP FINANCE,TELEREAL TRILLIUM,2015099301,"29,448.9"
Department for Work and Pensions ,Employment Programmes,29/04/2010,WORK PREPARATION,WWG CORE PROGRAMME,SHAW TRUST LTD,2015054301,"29,447.7"
Department for Work and Pensions ,Corporate,01/04/2010,EMPLOYMENT ZONES,GROUP FINANCE,NORFOLK CREDIT UNION LTD,2014647546,"29,428.0"
Department for Work and Pensions ,Corporate,19/04/2010,PRINTING STATIONERY IT & CONSUMABLES,GROUP FINANCE,XEROX UK LIMITED 3W,2014848989,"29,345.8"
Department for Work and Pensions ,Employment Programmes,28/04/2010,WORKSTEP,WWG CORE PROGRAMME,HANSEL ALLIANCE,2014991894,"29,297.6"
Department for Work and Pensions ,Employment Programmes,28/04/2010,WORKSTEP,WWG CORE PROGRAMME,SHEFFIELD CITY COUNCIL,2015030509,"29,197.9"
Department for Work and Pensions ,Employment Programmes,27/04/2010,WORKSTEP,WWG CORE PROGRAMME,DORSET COUNTY COUNCIL,2014956615,"29,170.8"
Department for Work and Pensions ,Corporate,30/04/2010,,GROUP FINANCE,TELEREAL TRILLIUM,2015099300,"29,118.6"
Department for Work and Pensions ,"Pension, Disability Carers Services",06/04/2010,PRINTING STATIONERY IT & CONSUMABLES,PDCS CORE,XEROX UK LIMITED,2014656264,"29,081.0"
Department for Work and Pensions ,Housing Benefits,14/04/2010,HOUSING BENEFIT ADMIN,HOUSING BENEFIT,HARBOROUGH DISTRICT COUNCIL,2014827386,"29,004.0"
Department for Work and Pensions ,Jobcentre Plus,23/04/2010,NON PRIME CHARGES,JOBCENTRE PLUS,HM LAND REGISTRY,2014943387,"28,754.2"
Department for Work and Pensions ,Jobcentre Plus,12/04/2010,ACCOMMODATION,JOBCENTRE PLUS,TELEREAL TRILLIUM,2014745374,"28,687.1"
Department for Work and Pensions ,"Pension, Disability Carers Services",14/04/2010,PROFESSIONAL FEES,PDCS CORE,LEEDS METROPOLITAN UNIVERSITY POLICY RESEARCH INSTITUTE PRI,547733,"28,640.0"
Department for Work and Pensions ,Employment Programmes,27/04/2010,PROGRESS TO WORK,WWG CORE PROGRAMME,MAXIMUS EMPLOYMENT & TRAINING LTD,2014962035,"28,596.0"
Department for Work and Pensions ,Employment Programmes,09/04/2010,YOUNG PERSONS GUARANTEE (YPG) AND FUTURE JOBS FUND (FJF),WWG CORE PROGRAMME,ADCRIS CIC,2014735638,"28,582.0"
Department for Work and Pensions ,Housing Benefits,14/04/2010,HOUSING BENEFIT ADMIN,HOUSING BENEFIT,WEST SOMERSET DISTRICT COUNCIL,2014827611,"28,541.0"
Department for Work and Pensions ,Corporate,30/04/2010,ACCOMMODATION,GROUP FINANCE,TELEREAL TRILLIUM,2015099301,"28,530.4"
Department for Work and Pensions ,Corporate,14/04/2010,CONFERENCES AND MEETINGS,MISC RFR 5,LEWIS LIVE LTD,2014800806,"28,454.8"
Department for Work and Pensions ,Corporate,30/04/2010,TEMPORARY (TEMP) STAFF COSTS,GROUP FINANCE,LANCASHIRE COUNTY COUNCIL,2015099297,"28,421.0"
Department for Work and Pensions ,Employment Programmes,21/04/2010,YOUNG PERSONS GUARANTEE (YPG) AND FUTURE JOBS FUND (FJF),WWG CORE PROGRAMME,LONDON BOROUGH OF LAMBETH LEMBETH FIRST,2014903977,"28,378.7"
Department for Work and Pensions ,Employment Programmes,01/04/2010,WORKSTEP,WWG CORE PROGRAMME,SHEFFIELD CITY COUNCIL,2014649309,"28,355.6"
Department for Work and Pensions ,Employment Programmes,21/04/2010,YOUNG PERSONS GUARANTEE (YPG) AND FUTURE JOBS FUND (FJF),WWG CORE PROGRAMME,HANTA ASSOCIATES LTD,2014886891,"28,350.0"
Department for Work and Pensions ,"Pension, Disability Carers Services",21/04/2010,APPS DEV,PDCS CORE,HP ENTERPRISE SERVICES UK LTD,2014887013,"28,087.0"
Department for Work and Pensions ,Corporate,29/04/2010,CONFERENCES AND MEETINGS,MISC RFR 5,NYS CORPORATE LTD,2015051268,"28,073.7"
Department for Work and Pensions ,Corporate,14/04/2010,EMPLOYMENT ZONES,GROUP FINANCE,WEARSIDE FIRST CREDIT UNION,2014826509,"27,998.0"
Department for Work and Pensions ,Corporate,30/04/2010,PRIME CHARGES,GROUP FINANCE,TELEREAL TRILLIUM,2015099298,"27,955.5"
Department for Work and Pensions ,Employment Programmes,15/04/2010,YOUNG PERSONS GUARANTEE (YPG) AND FUTURE JOBS FUND (FJF),WWG CORE PROGRAMME,RENFREWSHIRE COUNCIL,2014834516,"27,914.0"
Department for Work and Pensions ,Employment Programmes,28/04/2010,YOUNG PERSONS GUARANTEE (YPG) AND FUTURE JOBS FUND (FJF),WWG CORE PROGRAMME,RENAISI LTD,2015022854,"27,900.0"
Department for Work and Pensions ,Housing Benefits,14/04/2010,HOUSING BENEFIT ADMIN,HOUSING BENEFIT,CRAVEN DISTRICT COUNCIL,2014827329,"27,871.0"
Department for Work and Pensions ,Corporate,14/04/2010,MISCELLANEOUS EXPENDITURE,WWG TOP LEVEL,UNIVERSITY OF WESTMINSTER PSI,2014824878,"27,825.0"
Department for Work and Pensions ,Corporate,21/04/2010,MISCELLANEOUS EXPENDITURE,WWG TOP LEVEL,NATCEN,2014911785,"27,763.0"
Department for Work and Pensions ,Jobcentre Plus,29/04/2010,STAFF COSTS,JOBCENTRE PLUS,AMA ASSOCIATES LTD,2015040687,"27,751.5"
Department for Work and Pensions ,Employment Programmes,16/04/2010,YOUNG PERSONS GUARANTEE (YPG) AND FUTURE JOBS FUND (FJF),WWG CORE PROGRAMME,ADCRIS CIC,2014838000,"27,733.4"
Department for Work and Pensions ,"Pension, Disability Carers Services",12/04/2010,TEMPORARY (TEMP) STAFF COSTS,PDCS CHANGE ,CAPITA RESOURCING LIMITED,2014742367,"27,715.1"
Department for Work and Pensions ,Corporate,09/04/2010,TOTAL IT & EQUIPMENT COSTS,DIRECTGOV ,TRIBAL CONSULTING,2014739688,"27,690.8"
Department for Work and Pensions ,Employment Programmes,14/04/2010,WORKSTEP,WWG CORE PROGRAMME,CITY OF BRADFORD METROPOLITAN COUNCIL,2014772065,"27,563.2"
Department for Work and Pensions ,Corporate,20/04/2010,COMPUTER SERVICES,SHARED SERVICES ,FUJITSU SERVICES LTD,2014854502,"27,527.9"
Department for Work and Pensions ,Corporate,12/04/2010,MARKETING,MISC RFR 5,STEVE DAVIDSON ADVERTISING,2014746734,"27,498.3"
Department for Work and Pensions ,"Pension, Disability Carers Services",29/04/2010,IS/IT,PDCS CORE,COMPUTACENTER UK LTD,2015042094,"27,448.5"
Department for Work and Pensions ,Corporate,29/04/2010,APPS DEV,WWG TOP LEVEL,HP ENTERPRISE SERVICES UK LTD,2015046041,"27,435.8"
Department for Work and Pensions ,Corporate,26/04/2010,CONFERENCES AND MEETINGS,MISC RFR 5,CROWN BUS COMMUNICATION,2014947768,"27,376.1"
Department for Work and Pensions ,Corporate,09/04/2010,FURNITURE AND FITTINGS (NON TRILLIUM),GROUP FINANCE,SENATOR INTERNATIONAL LTD,2014739467,"27,332.1"
Department for Work and Pensions ,Employment Programmes,16/04/2010,WORKSTEP,WWG CORE PROGRAMME,HIGHLAND COUNCIL,2014840247,"27,320.8"
Department for Work and Pensions ,Corporate,14/04/2010,OTHER GOODS AND SERVICES,GROUP FINANCE,FIRST WESSEX HOUSING GROUP,2014780638,"27,300.0"
Department for Work and Pensions ,Corporate,08/04/2010,CONTRACTED OUT OFFICE SERVICES,SHARED SERVICES ,XEROX UK LIMITED 3W,2014733187,"27,221.5"
Department for Work and Pensions ,Corporate,14/04/2010,CONFERENCES AND MEETINGS,MISC RFR 5,NYS CORPORATE LTD,2014808994,"27,198.8"
Department for Work and Pensions ,Corporate,27/04/2010,IS/IT,GROUP FINANCE,COMPUTACENTER UK LTD,2014955795,"27,194.3"
Department for Work and Pensions ,Jobcentre Plus,06/04/2010,NON PRIME CHARGES,JOBCENTRE PLUS,HERTFORD REGIONAL COLLEGE,2014655157,"27,192.0"
Department for Work and Pensions ,Corporate,15/04/2010,ACCOMMODATION,SHARED SERVICES ,TELEREAL TRILLIUM,2014833482,"27,190.5"
Department for Work and Pensions ,Corporate,20/04/2010,APPS DEV,CORPORATE IT,HP ENTERPRISE SERVICES UK LTD,2014855104,"27,175.8"
Department for Work and Pensions ,Jobcentre Plus,26/04/2010,JCP GENERAL & PROGRAMME RESEARCH, STRATEGY AND PLANNING,GFK NOP LTD,2014949860,"27,153.0"
Department for Work and Pensions ,Housing Benefits,14/04/2010,HOUSING BENEFIT ADMIN,HOUSING BENEFIT,RYEDALE DISTRICT COUNCIL,2014827520,"27,125.0"
Department for Work and Pensions ,Corporate,21/04/2010,STAFF COSTS,MISC RFR 5,ASK EUROPE PLC,2014868693,"27,120.0"
Department for Work and Pensions ,Corporate,29/04/2010,COMPUTER SERVICES,CORPORATE IT,ATOS ORIGIN IT SERVICES UK LTD,2015040748,"26,928.0"
Department for Work and Pensions ,Employment Programmes,12/04/2010,YOUNG PERSONS GUARANTEE (YPG) AND FUTURE JOBS FUND (FJF),WWG CORE PROGRAMME,PROJECT SCOTLAND,2014746074,"26,850.0"
Department for Work and Pensions ,Corporate,21/04/2010,STAFF COSTS,MISC RFR 5,SAS INSTITUTE,2014924487,"26,718.0"
Department for Work and Pensions ,Employment Programmes,26/04/2010,ACCESS TO WORK,WWG CORE PROGRAMME,BIRMINGHAM INSTITUTE FOR THE DEAF,2014947450,"26,612.2"
Department for Work and Pensions ,Employment Programmes,23/04/2010,WORKSTEP,WWG CORE PROGRAMME,WIGAN MBC,2014945397,"26,464.0"
Department for Work and Pensions ,Corporate,14/04/2010,EMPLOYMENT ZONES,GROUP FINANCE,HALTON CREDIT UNION LTD,2014784066,"26,462.0"
Department for Work and Pensions ,Corporate,14/04/2010,CAPITAL GRANTS,GROUP FINANCE,NORTH LINCOLNSHIRE CREDIT UNION LTD,2014808955,"26,447.0"
Department for Work and Pensions ,Corporate,22/04/2010,MARKETING,MISC RFR 5,XEROX UK LIMITED 3W,2014938781,"26,320.0"
Department for Work and Pensions ,Employment Programmes,27/04/2010,RAPID RESPONSE,WWG CORE PROGRAMME,RESOURCES LTD,2014963653,"26,250.0"
Department for Work and Pensions ,"Pension, Disability Carers Services",14/04/2010,COMPUTER SERVICES,PDCS CHANGE ,HP ENTERPRISE SERVICES UK LTD,2014784199,"26,229.2"
Department for Work and Pensions ,Housing Benefits,14/04/2010,HOUSING BENEFIT ADMIN,HOUSING BENEFIT,HART DISTRICT COUNCIL,2014827389,"26,214.0"
Department for Work and Pensions ,Corporate,23/04/2010,STAFF COSTS,GROUP FINANCE,ECOTEC RESEARCH & CONSULTING LIMITED,2014943125,"26,200.1"
Department for Work and Pensions ,Corporate,14/04/2010,TEMPORARY (TEMP) STAFF COSTS,GROUP FINANCE,GLASGOW HOUSING ASSOCIATION,2014782559,"26,126.8"
Department for Work and Pensions ,Jobcentre Plus,14/04/2010,PROFESSIONAL FEES,JOBCENTRE PLUS,THE BIG WORD INTERPRETING SERVICES LTD,2014824657,"26,119.6"
Department for Work and Pensions ,Jobcentre Plus,14/04/2010,PROFESSIONAL FEES,JOBCENTRE PLUS,THE BIG WORD INTERPRETING SERVICES LTD,2014824657,"26,103.7"
Department for Work and Pensions ,Corporate,14/04/2010,IS/IT,GROUP FINANCE,COMPUTACENTER UK LTD,2014772288,"26,081.7"
Department for Work and Pensions ,Housing Benefits,14/04/2010,HOUSING BENEFIT ADMIN,HOUSING BENEFIT,SOUTH BUCKS DISTRICT COUNCIL,2014827536,"26,050.0"
Department for Work and Pensions ,Corporate,30/04/2010,PRIME CHARGES,CORPORATE IT,TELEREAL TRILLIUM,2015099298,"26,019.5"
Department for Work and Pensions ,Employment Programmes,06/04/2010,YOUNG PERSONS GUARANTEE (YPG) AND FUTURE JOBS FUND (FJF),WWG CORE PROGRAMME,TROWBRIDGE TOWN COUNCIL,2014656185,"26,000.0"
Department for Work and Pensions ,Jobcentre Plus,20/04/2010,COMPUTER SERVICES,ISD,HP ENTERPRISE SERVICES UK LTD,2014855104,"26,000.0"
Department for Work and Pensions ,Corporate,28/04/2010,MISCELLANEOUS EXPENDITURE,WWG TOP LEVEL,ONS GEOGRAPHY,2015017742,"25,952.0"
Department for Work and Pensions ,Employment Programmes,16/04/2010,YOUNG PERSONS GUARANTEE (YPG) AND FUTURE JOBS FUND (FJF),WWG CORE PROGRAMME,WARWICKSHIRE COUNTY COUNCIL,2014842692,"25,950.0"
Department for Work and Pensions ,"Pension, Disability Carers Services",06/04/2010,PRINTING STATIONERY IT & CONSUMABLES,PDCS CORE,XEROX UK LIMITED 3W,2014656265,"25,907.0"
Department for Work and Pensions ,Employment Programmes,20/04/2010,PROGRESS TO WORK,WWG CORE PROGRAMME,TURNING POINT,2014861388,"25,893.8"
Department for Work and Pensions ,Corporate,28/04/2010,COMPUTER SERVICES,CORPORATE IT,HP ENTERPRISE SERVICES UK LTD,2014992041,"25,879.5"
Department for Work and Pensions ,Corporate,19/04/2010,TEMPORARY (TEMP) STAFF COSTS,GROUP FINANCE,CAPITA RESOURCING LIMITED,2014844791,"25,864.1"
Department for Work and Pensions ,Employment Programmes,13/04/2010,LOW VALUE PROCUREMENT,WWG CORE PROGRAMME,GATESHEAD COLLEGE,2014752678,"25,774.0"
Department for Work and Pensions ,Employment Programmes,09/04/2010,WORK PREPARATION,WWG CORE PROGRAMME,BTCV ENTERPRISES LTD,2014735807,"25,762.0"
Department for Work and Pensions ,Corporate,23/04/2010,CONTRACTED OUT OFFICE SERVICES,SHARED SERVICES ,FAIRFAX SOLICITORS LTD,2014943180,"25,576.9"
Department for Work and Pensions ,Corporate,13/04/2010,BANK COMMISSIONS,GROUP FINANCE,HSBC BANK PLC,2014752931,"25,535.6"
Department for Work and Pensions ,Corporate,14/04/2010,PRIME BILLABLE EXTRAS,MISC RFR 5,TELEREAL TRILLIUM,2014800734,"25,531.9"
Department for Work and Pensions ,Corporate,14/04/2010,CONTRACTED OUT OFFICE SERVICES,SHARED SERVICES ,IQOR RECOVERY SERVICES LTD,2014784805,"25,519.7"
Department for Work and Pensions ,Corporate,14/04/2010,CAPITAL GRANTS,GROUP FINANCE,WEARSIDE FIRST CREDIT UNION,2014826509,"25,515.0"
Department for Work and Pensions ,Employment Programmes,26/04/2010,WORKSTEP,WWG CORE PROGRAMME,BARROWMORE INDUSTRIES,2014947435,"25,474.8"
Department for Work and Pensions ,"Pension, Disability Carers Services",26/04/2010,TEMPORARY (TEMP) STAFF COSTS,PDCS CHANGE ,CAPITA RESOURCING LIMITED,2014947689,"25,421.3"
Department for Work and Pensions ,Corporate,14/04/2010,COMPUTER SERVICES,WWG TOP LEVEL,HP ENTERPRISE SERVICES UK LTD,2014784199,"25,420.5"
Department for Work and Pensions ,"Pension, Disability Carers Services",23/04/2010,PROFESSIONAL FEES,PDCS CORE,INNES,548669,"25,410.0"
Department for Work and Pensions ,Corporate,13/04/2010,APPS DEV,SHARED SERVICES ,HP ENTERPRISE SERVICES UK LTD,2014752928,"25,385.8"
Department for Work and Pensions ,Corporate,01/04/2010,EMPLOYMENT ZONES,WWG TOP LEVEL,NATIONAL CENTRE FOR SOCIAL RESEARCH,2014647504,"25,342.0"
Department for Work and Pensions ,Employment Programmes,30/04/2010,WORK PREPARATION,WWG CORE PROGRAMME,BTCV ENTERPRISES LTD,2015065436,"25,317.7"
Department for Work and Pensions ,Corporate,21/04/2010,MARKETING,MISC RFR 5,COI CENTRAL OFFICE OF INFO,2014874946,"25,295.0"
Department for Work and Pensions ,"Pension, Disability Carers Services",22/04/2010,COMPUTER SERVICES,PDCS CORE,HP ENTERPRISE SERVICES UK LTD,2014935691,"25,263.5"
Department for Work and Pensions ,Jobcentre Plus,23/04/2010,COMPUTER SERVICES,TPM PROGRAMMES,DAEMON SYSTEM CONSULTANTS LTD,2014941945,"25,203.8"
Department for Work and Pensions ,Corporate,14/04/2010,EMPLOYMENT ZONES,GROUP FINANCE,EREWASH CREDIT UNION LIMITED,2014779840,"25,112.0"
Department for Work and Pensions ,Housing Benefits,14/04/2010,HOUSING BENEFIT ADMIN,HOUSING BENEFIT,PURBECK DISTRICT COUNCIL,2014827501,"25,090.0"
Department for Work and Pensions ,Corporate,19/04/2010,NETWORK,CHANGE MANAGEMENT DIRECTORATE,BT SYNTEGRA,2014844602,"25,076.1"
Department for Work and Pensions ,"Pension, Disability Carers Services",13/04/2010,TOTAL SUPPLIES & SERVICES,PDCS CORE,ROYAL MAIL GROUP PLC,2014757346,"25,070.0"
Department for Work and Pensions ,"Pension, Disability Carers Services",13/04/2010,TOTAL SUPPLIES & SERVICES,PDCS CORE,ROYAL MAIL GROUP PLC,2014757346,"25,040.0"
Department for Work and Pensions ,Employment Programmes,08/04/2010,JOBCENTRE PLUS PATHWAYS TO WORK,WWG CORE PROGRAMME,DERBYSHIRE COUNTY COUNCIL PCT DCHS,2014729171,"25,000.0"
Department for Work and Pensions ,Corporate,08/04/2010,PROFESSIONAL FEES,WWG TOP LEVEL,MULTIPLE SCLEROSIS SOCIETY,2014731861,"25,000.0"
Department for Work and Pensions ,Corporate,14/04/2010,OTHER GOODS AND SERVICES,GROUP FINANCE,NORFOLK CREDIT UNION LTD,2014808948,"25,000.0"
Department for Work and Pensions ,"Pension, Disability Carers Services",20/04/2010,PUBLICITY,PDCS CORE,COI COMMUNICATIONS,2014852231,"25,000.0"
Department for Work and Pensions ,Employment Programmes,22/04/2010,ACCESS TO WORK,WWG CORE PROGRAMME,UNIVERSITY HOSPITAL OF SOUTH MANCHESTER,2014938604,"25,000.0"
Department for Work and Pensions ,Corporate,26/04/2010,OTHER GOODS AND SERVICES,GROUP FINANCE,QUAKER SOCIAL ACTION,2014951492,"25,000.0"
Department for Work and Pensions ,Corporate,26/04/2010,OTHER GOODS AND SERVICES,GROUP FINANCE,WALSAVE CREDIT UNION LTD,2014952339,"25,000.0"
Department for Work and Pensions ,Corporate,27/04/2010,MANAGEMENT CONSULTANCY,WWG TOP LEVEL,ATKINS LTD,2014954733,"25,000.0"
Department for Work and Pensions ,Corporate,30/04/2010,CONTRACTED OUT OFFICE SERVICES,GROUP FINANCE,CDFA,2015070134,"25,000.0"
Department for Work and Pensions ,Corporate,21/04/2010,MANAGEMENT CONSULTANCY,LSPG,ATKINS LTD,2014868707,"24,975.0"
Department for Work and Pensions ,Employment Programmes,26/04/2010,WORK PREPARATION,WWG CORE PROGRAMME,CAM YMLAEN,548900,"24,947.0"
Department for Work and Pensions ,Corporate,28/04/2010,COMPUTER SERVICES,CORPORATE IT,HP ENTERPRISE SERVICES UK LTD,2014992041,"24,814.7"
Department for Work and Pensions ,Corporate,30/04/2010,TEMPORARY (TEMP) STAFF COSTS,GROUP FINANCE,CAPITA RESOURCING LIMITED,2015070092,"24,766.3"
Department for Work and Pensions ,Corporate,14/04/2010,EMPLOYMENT ZONES,GROUP FINANCE,SCOTCASH,2014821452,"24,720.0"
